{"text_format":"1","workbook":"xlsx","n_sheets":2,"sheets":["Leningscalculator 1","Leningscalculator 2"],"not_rendered":{"charts":0,"images":1,"macros":1,"external_links":0,"defined_names":80,"comments":0,"pivot_tables":0},"unopened":[],"bounds":{"document_bytes":16777216,"sheet_cells":100000,"rows_first":2000,"rows_last":500,"rows_between":2000,"halvings":0,"cell_chars":16384,"cell_head_chars":4096},"cells_cut":0,"cells_raw":0,"read":"whole","date_system":"1900"}

{"sheet":"Leningscalculator 1","index":0,"n_rows":378,"n_cols":14,"rows_kept":378,"cut":false,"hidden":false,"merged":[[13,0,13,2],[14,0,14,2],[15,0,15,2],[11,0,11,2],[0,10,0,13],[6,0,6,2],[10,0,10,2],[12,0,12,2],[0,0,0,9],[3,0,3,2],[4,0,4,2],[5,0,5,2],[7,0,7,2],[3,6,8,9]]}
["Leningscalculator variabele of vaste rente",null,null,null,null,null,null,null,null,null,"Variabele rente tabel"]
[null,null,null,null,null,null,null,null,null,null,"Jaar","Rente","Jaar","Rente"]
[null,null,null,"Typ de waarden",null,null,"Instructies",null,null,null,1,{"$f":"Interest_Rate","v":0},16,{"$f":"IF(AND((Interest_Rate+Max_Interest_Rate)>L17+0.01,(((1+((((1+Interest_Rate)^(1/12))-1)*2))^(1*12))-1)>L17+0.01),L17+0.01,IF(L17>=Interest_Rate+Max_Interest_Rate,L17,IF(((1+((((1+Interest_Rate)^(1/12))-1)*2))^(1*12))-1>Interest_Rate+Max_Interest_Rate,Interest_Rate+Max_Interest_Rate,((1+((((1+Interest_Rate)^(1/12))-1)*2))^(1*12))-1)))","v":0}]
["Geleend bedrag",null,null,null,null,null,"De looptijd van de lening moet tussen 1 jaar en 30 jaar liggen. Blauwe vakjes in de variabele rente tabel mag je aanpassen om je lening nog preciezer te maken. De stijging van de rente kan nooit meer zijn dan het dubbele van het rentepercentage bij de aanvang van de lening.\nSnelkoppelingen\nKies 1 van onderstaande leningen of vul de variabele rente tabel manueel in.",null,null,null,2,{"$f":"IF(AND((Interest_Rate+Max_Interest_Rate)>L3+0.01,(((1+((((1+Interest_Rate)^(1/12))-1)*2))^(1*12))-1)>L3+0.01),L3+0.01,IF(L3>=Interest_Rate+Max_Interest_Rate,L3,IF(((1+((((1+Interest_Rate)^(1/12))-1)*2))^(1*12))-1>Interest_Rate+Max_Interest_Rate,Interest_Rate+Max_Interest_Rate,((1+((((1+Interest_Rate)^(1/12))-1)*2))^(1*12))-1)))","v":0},17,{"$f":"IF(AND((Interest_Rate+Max_Interest_Rate)>N3+0.01,(((1+((((1+Interest_Rate)^(1/12))-1)*2))^(1*12))-1)>N3+0.01),N3+0.01,IF(N3>=Interest_Rate+Max_Interest_Rate,N3,IF(((1+((((1+Interest_Rate)^(1/12))-1)*2))^(1*12))-1>Interest_Rate+Max_Interest_Rate,Interest_Rate+Max_Interest_Rate,((1+((((1+Interest_Rate)^(1/12))-1)*2))^(1*12))-1)))","v":0}]
["Start rentepercentage",null,null,null,null,null,null,null,null,null,3,0,18,0]
["Looptijd in jaren",null,null,null,null,null,null,null,null,null,4,0,19,0]
["Begindatum van lening",null,null,null,null,null,null,null,null,null,5,0,20,0]
["Maximale stijging rentepercentage (cap)",null,null,null,null,null,null,null,null,null,6,0,21,0]
[null,null,null,null,null,null,null,null,null,null,7,0,22,0]
[null,null,null,null,null,null,null,null,null,null,8,0,23,0]
["Minimale maandelijkse betalingen",null,null,{"$f":"IF(Values_Entered,MIN(Maandelijkse_aflossing),\"\")","v":""},null,null,null,null,null,null,9,0,24,0]
["Maximale maandelijkse betalingen",null,null,{"$f":"IF(Values_Entered,MAX(Maandelijkse_aflossing),\"\")","v":""},null,null,null,null,null,null,10,0,25,0]
["Gemiddelde maandelijkse betalingen",null,null,{"$f":"IF(Values_Entered,AVERAGE(Maandelijkse_aflossing),\"\")","v":""},null,null,null,null,null,null,11,0,26,0]
["Aantal betalingen",null,null,{"$f":"IF(Values_Entered,Loan_Years*12,\"\")","v":""},null,null,null,null,null,null,12,0,27,0]
["Totaal rentebedrag",null,null,{"$f":"IF(Values_Entered,SUMIF(Beg_Bal,\">0\",Int),\"\")","v":""},null,null,null,null,null,null,13,0,28,0]
["Totaal afbetaald",null,null,{"$f":"IF(Values_Entered,SUMIF(Beg_Bal,\">0\",Int)+Loan_Amount,\"\")","v":""},null,null,null,null,null,null,14,0,29,0]
[null,null,null,null,null,null,null,null,null,null,15,0,30,0]
["Nr.","Betaald op","Resterend saldo","Aflossing /Maand","Kapitaal","Intrest","Eindsaldo","Jaarlijk rente percentage","Maandelijkse rente percentage"]
[{"$f":"IF(Values_Entered,1,\"\")","v":""},{"$f":"IF(Pay_Num<>\"\",Loan_Start,\"\")","v":""},{"$f":"IF(Values_Entered,Loan_Amount,\"\")","v":""},{"$f":"IF(Values_Entered,-PMT(Maandelijkse_rente_percentage,(Loan_Years*12)-Pay_Num+1,Beg_Bal),\"\")","v":""},{"$f":"IF(Pay_Num<>\"\",Maandelijkse_aflossing-Int,\"\")","v":""},{"$f":"Beg_Bal*Maandelijkse_rente_percentage","v":{"$error":"#VALUE!"}},{"$f":"IF(Pay_Num<>\"\",Beg_Bal-Princ,\"\")","v":""},{"$f":"L3","v":0},{"$f":"((1+Jaarlijk_rente_percentage)^(1/12))-1","v":0}]
[{"$f":"IF(Values_Entered,A19+1,\"\")","v":""},{"$f":"IF(Pay_Num<>\"\",DATE(YEAR(B19),MONTH(B19)+1,DAY(B19)),\"\")","v":""},{"$f":"IF(Pay_Num<>\"\",G19,\"\")","v":""},{"$f":"IF(ISERROR(PMT(Maandelijkse_rente_percentage,(Loan_Years*12)-Pay_Num+1,Beg_Bal)),\"\",IF(Values_Entered,-PMT(Maandelijkse_rente_percentage,(Loan_Years*12)-Pay_Num+1,Beg_Bal),\"\"))","v":""},"",{"$error":"#VALUE!"},{"$f":"IF(Pay_Num<>\"\",Beg_Bal-Princ,\"\")","v":""},{"$f":"H19","v":0},0]
["","",{"$f":"IF(Pay_Num<>\"\",G20,\"\")","v":""},{"$f":"IF(ISERROR(PMT(Maandelijkse_rente_percentage,(Loan_Years*12)-Pay_Num+1,Beg_Bal)),\"\",IF(Values_Entered,-PMT(Maandelijkse_rente_percentage,(Loan_Years*12)-Pay_Num+1,Beg_Bal),\"\"))","v":""},"",{"$error":"#VALUE!"},"",{"$f":"H20","v":0},0]
["","","",{"$f":"IF(ISERROR(PMT(Maandelijkse_rente_percentage,(Loan_Years*12)-Pay_Num+1,Beg_Bal)),\"\",IF(Values_Entered,-PMT(Maandelijkse_rente_percentage,(Loan_Years*12)-Pay_Num+1,Beg_Bal),\"\"))","v":""},"",{"$error":"#VALUE!"},"",0,0]
["","","",{"$f":"IF(ISERROR(PMT(Maandelijkse_rente_percentage,(Loan_Years*12)-Pay_Num+1,Beg_Bal)),\"\",IF(Values_Entered,-PMT(Maandelijkse_rente_percentage,(Loan_Years*12)-Pay_Num+1,Beg_Bal),\"\"))","v":""},"",{"$error":"#VALUE!"},"",0,0]
["","","",{"$f":"IF(ISERROR(PMT(Maandelijkse_rente_percentage,(Loan_Years*12)-Pay_Num+1,Beg_Bal)),\"\",IF(Values_Entered,-PMT(Maandelijkse_rente_percentage,(Loan_Years*12)-Pay_Num+1,Beg_Bal),\"\"))","v":""},"",{"$error":"#VALUE!"},"",0,0]
["","","",{"$f":"IF(ISERROR(PMT(Maandelijkse_rente_percentage,(Loan_Years*12)-Pay_Num+1,Beg_Bal)),\"\",IF(Values_Entered,-PMT(Maandelijkse_rente_percentage,(Loan_Years*12)-Pay_Num+1,Beg_Bal),\"\"))","v":""},"",{"$error":"#VALUE!"},"",0,0]
["","","",{"$f":"IF(ISERROR(PMT(Maandelijkse_rente_percentage,(Loan_Years*12)-Pay_Num+1,Beg_Bal)),\"\",IF(Values_Entered,-PMT(Maandelijkse_rente_percentage,(Loan_Years*12)-Pay_Num+1,Beg_Bal),\"\"))","v":""},"",{"$error":"#VALUE!"},"",0,0]
["","","",{"$f":"IF(ISERROR(PMT(Maandelijkse_rente_percentage,(Loan_Years*12)-Pay_Num+1,Beg_Bal)),\"\",IF(Values_Entered,-PMT(Maandelijkse_rente_percentage,(Loan_Years*12)-Pay_Num+1,Beg_Bal),\"\"))","v":""},{"$f":"IF(Pay_Num<>\"\",Maandelijkse_aflossing-Int,\"\")","v":""},{"$error":"#VALUE!"},"",0,0]
["","","",{"$f":"IF(ISERROR(PMT(Maandelijkse_rente_percentage,(Loan_Years*12)-Pay_Num+1,Beg_Bal)),\"\",IF(Values_Entered,-PMT(Maandelijkse_rente_percentage,(Loan_Years*12)-Pay_Num+1,Beg_Bal),\"\"))","v":""},"",{"$error":"#VALUE!"},"",0,0]
["","","",{"$f":"IF(ISERROR(PMT(Maandelijkse_rente_percentage,(Loan_Years*12)-Pay_Num+1,Beg_Bal)),\"\",IF(Values_Entered,-PMT(Maandelijkse_rente_percentage,(Loan_Years*12)-Pay_Num+1,Beg_Bal),\"\"))","v":""},"",{"$error":"#VALUE!"},"",0,0]
["","","",{"$f":"IF(ISERROR(PMT(Maandelijkse_rente_percentage,(Loan_Years*12)-Pay_Num+1,Beg_Bal)),\"\",IF(Values_Entered,-PMT(Maandelijkse_rente_percentage,(Loan_Years*12)-Pay_Num+1,Beg_Bal),\"\"))","v":""},"",{"$error":"#VALUE!"},"",0,0]
["","","",{"$f":"IF(ISERROR(PMT(Maandelijkse_rente_percentage,(Loan_Years*12)-Pay_Num+1,Beg_Bal)),\"\",IF(Values_Entered,-PMT(Maandelijkse_rente_percentage,(Loan_Years*12)-Pay_Num+1,Beg_Bal),\"\"))","v":""},"",{"$error":"#VALUE!"},"",{"$f":"L4","v":0},0]
["","","",{"$f":"IF(ISERROR(PMT(Maandelijkse_rente_percentage,(Loan_Years*12)-Pay_Num+1,Beg_Bal)),\"\",IF(Values_Entered,-PMT(Maandelijkse_rente_percentage,(Loan_Years*12)-Pay_Num+1,Beg_Bal),\"\"))","v":""},"",{"$error":"#VALUE!"},"",0,0]
["","","",{"$f":"IF(ISERROR(PMT(Maandelijkse_rente_percentage,(Loan_Years*12)-Pay_Num+1,Beg_Bal)),\"\",IF(Values_Entered,-PMT(Maandelijkse_rente_percentage,(Loan_Years*12)-Pay_Num+1,Beg_Bal),\"\"))","v":""},"",{"$error":"#VALUE!"},"",0,0]
["","","",{"$f":"IF(ISERROR(PMT(Maandelijkse_rente_percentage,(Loan_Years*12)-Pay_Num+1,Beg_Bal)),\"\",IF(Values_Entered,-PMT(Maandelijkse_rente_percentage,(Loan_Years*12)-Pay_Num+1,Beg_Bal),\"\"))","v":""},"",{"$error":"#VALUE!"},"",0,0]
["","","",{"$f":"IF(ISERROR(PMT(Maandelijkse_rente_percentage,(Loan_Years*12)-Pay_Num+1,Beg_Bal)),\"\",IF(Values_Entered,-PMT(Maandelijkse_rente_percentage,(Loan_Years*12)-Pay_Num+1,Beg_Bal),\"\"))","v":""},"",{"$error":"#VALUE!"},"",0,0]
["","","",{"$f":"IF(ISERROR(PMT(Maandelijkse_rente_percentage,(Loan_Years*12)-Pay_Num+1,Beg_Bal)),\"\",IF(Values_Entered,-PMT(Maandelijkse_rente_percentage,(Loan_Years*12)-Pay_Num+1,Beg_Bal),\"\"))","v":""},"",{"$error":"#VALUE!"},"",0,0]
["","","",{"$f":"IF(ISERROR(PMT(Maandelijkse_rente_percentage,(Loan_Years*12)-Pay_Num+1,Beg_Bal)),\"\",IF(Values_Entered,-PMT(Maandelijkse_rente_percentage,(Loan_Years*12)-Pay_Num+1,Beg_Bal),\"\"))","v":""},"",{"$error":"#VALUE!"},"",0,0]
["","","",{"$f":"IF(ISERROR(PMT(Maandelijkse_rente_percentage,(Loan_Years*12)-Pay_Num+1,Beg_Bal)),\"\",IF(Values_Entered,-PMT(Maandelijkse_rente_percentage,(Loan_Years*12)-Pay_Num+1,Beg_Bal),\"\"))","v":""},"",{"$error":"#VALUE!"},"",0,0]
["","","",{"$f":"IF(ISERROR(PMT(Maandelijkse_rente_percentage,(Loan_Years*12)-Pay_Num+1,Beg_Bal)),\"\",IF(Values_Entered,-PMT(Maandelijkse_rente_percentage,(Loan_Years*12)-Pay_Num+1,Beg_Bal),\"\"))","v":""},"",{"$error":"#VALUE!"},"",0,0]
["","","",{"$f":"IF(ISERROR(PMT(Maandelijkse_rente_percentage,(Loan_Years*12)-Pay_Num+1,Beg_Bal)),\"\",IF(Values_Entered,-PMT(Maandelijkse_rente_percentage,(Loan_Years*12)-Pay_Num+1,Beg_Bal),\"\"))","v":""},"",{"$error":"#VALUE!"},"",0,0]
["","","",{"$f":"IF(ISERROR(PMT(Maandelijkse_rente_percentage,(Loan_Years*12)-Pay_Num+1,Beg_Bal)),\"\",IF(Values_Entered,-PMT(Maandelijkse_rente_percentage,(Loan_Years*12)-Pay_Num+1,Beg_Bal),\"\"))","v":""},"",{"$error":"#VALUE!"},"",0,0]
["","","",{"$f":"IF(ISERROR(PMT(Maandelijkse_rente_percentage,(Loan_Years*12)-Pay_Num+1,Beg_Bal)),\"\",IF(Values_Entered,-PMT(Maandelijkse_rente_percentage,(Loan_Years*12)-Pay_Num+1,Beg_Bal),\"\"))","v":""},"",{"$error":"#VALUE!"},"",0,0]
["","","",{"$f":"IF(ISERROR(PMT(Maandelijkse_rente_percentage,(Loan_Years*12)-Pay_Num+1,Beg_Bal)),\"\",IF(Values_Entered,-PMT(Maandelijkse_rente_percentage,(Loan_Years*12)-Pay_Num+1,Beg_Bal),\"\"))","v":""},"",{"$error":"#VALUE!"},"",{"$f":"L5","v":0},0]
["","","",{"$f":"IF(ISERROR(PMT(Maandelijkse_rente_percentage,(Loan_Years*12)-Pay_Num+1,Beg_Bal)),\"\",IF(Values_Entered,-PMT(Maandelijkse_rente_percentage,(Loan_Years*12)-Pay_Num+1,Beg_Bal),\"\"))","v":""},"",{"$error":"#VALUE!"},"",0,0]
["","","",{"$f":"IF(ISERROR(PMT(Maandelijkse_rente_percentage,(Loan_Years*12)-Pay_Num+1,Beg_Bal)),\"\",IF(Values_Entered,-PMT(Maandelijkse_rente_percentage,(Loan_Years*12)-Pay_Num+1,Beg_Bal),\"\"))","v":""},"",{"$error":"#VALUE!"},"",0,0]
["","","",{"$f":"IF(ISERROR(PMT(Maandelijkse_rente_percentage,(Loan_Years*12)-Pay_Num+1,Beg_Bal)),\"\",IF(Values_Entered,-PMT(Maandelijkse_rente_percentage,(Loan_Years*12)-Pay_Num+1,Beg_Bal),\"\"))","v":""},"",{"$error":"#VALUE!"},"",0,0]
["","","",{"$f":"IF(ISERROR(PMT(Maandelijkse_rente_percentage,(Loan_Years*12)-Pay_Num+1,Beg_Bal)),\"\",IF(Values_Entered,-PMT(Maandelijkse_rente_percentage,(Loan_Years*12)-Pay_Num+1,Beg_Bal),\"\"))","v":""},"",{"$error":"#VALUE!"},"",0,0]
["","","",{"$f":"IF(ISERROR(PMT(Maandelijkse_rente_percentage,(Loan_Years*12)-Pay_Num+1,Beg_Bal)),\"\",IF(Values_Entered,-PMT(Maandelijkse_rente_percentage,(Loan_Years*12)-Pay_Num+1,Beg_Bal),\"\"))","v":""},"",{"$error":"#VALUE!"},"",0,0]
["","","",{"$f":"IF(ISERROR(PMT(Maandelijkse_rente_percentage,(Loan_Years*12)-Pay_Num+1,Beg_Bal)),\"\",IF(Values_Entered,-PMT(Maandelijkse_rente_percentage,(Loan_Years*12)-Pay_Num+1,Beg_Bal),\"\"))","v":""},"",{"$error":"#VALUE!"},"",0,0]
["","","",{"$f":"IF(ISERROR(PMT(Maandelijkse_rente_percentage,(Loan_Years*12)-Pay_Num+1,Beg_Bal)),\"\",IF(Values_Entered,-PMT(Maandelijkse_rente_percentage,(Loan_Years*12)-Pay_Num+1,Beg_Bal),\"\"))","v":""},"",{"$error":"#VALUE!"},"",0,0]
["","","",{"$f":"IF(ISERROR(PMT(Maandelijkse_rente_percentage,(Loan_Years*12)-Pay_Num+1,Beg_Bal)),\"\",IF(Values_Entered,-PMT(Maandelijkse_rente_percentage,(Loan_Years*12)-Pay_Num+1,Beg_Bal),\"\"))","v":""},"",{"$error":"#VALUE!"},"",0,0]
["","","",{"$f":"IF(ISERROR(PMT(Maandelijkse_rente_percentage,(Loan_Years*12)-Pay_Num+1,Beg_Bal)),\"\",IF(Values_Entered,-PMT(Maandelijkse_rente_percentage,(Loan_Years*12)-Pay_Num+1,Beg_Bal),\"\"))","v":""},"",{"$error":"#VALUE!"},"",0,0]
["","","",{"$f":"IF(ISERROR(PMT(Maandelijkse_rente_percentage,(Loan_Years*12)-Pay_Num+1,Beg_Bal)),\"\",IF(Values_Entered,-PMT(Maandelijkse_rente_percentage,(Loan_Years*12)-Pay_Num+1,Beg_Bal),\"\"))","v":""},"",{"$error":"#VALUE!"},"",0,0]
["","","",{"$f":"IF(ISERROR(PMT(Maandelijkse_rente_percentage,(Loan_Years*12)-Pay_Num+1,Beg_Bal)),\"\",IF(Values_Entered,-PMT(Maandelijkse_rente_percentage,(Loan_Years*12)-Pay_Num+1,Beg_Bal),\"\"))","v":""},"",{"$error":"#VALUE!"},"",0,0]
["","","",{"$f":"IF(ISERROR(PMT(Maandelijkse_rente_percentage,(Loan_Years*12)-Pay_Num+1,Beg_Bal)),\"\",IF(Values_Entered,-PMT(Maandelijkse_rente_percentage,(Loan_Years*12)-Pay_Num+1,Beg_Bal),\"\"))","v":""},"",{"$error":"#VALUE!"},"",{"$f":"L6","v":0},0]
["","","",{"$f":"IF(ISERROR(PMT(Maandelijkse_rente_percentage,(Loan_Years*12)-Pay_Num+1,Beg_Bal)),\"\",IF(Values_Entered,-PMT(Maandelijkse_rente_percentage,(Loan_Years*12)-Pay_Num+1,Beg_Bal),\"\"))","v":""},"",{"$error":"#VALUE!"},"",0,0]
["","","",{"$f":"IF(ISERROR(PMT(Maandelijkse_rente_percentage,(Loan_Years*12)-Pay_Num+1,Beg_Bal)),\"\",IF(Values_Entered,-PMT(Maandelijkse_rente_percentage,(Loan_Years*12)-Pay_Num+1,Beg_Bal),\"\"))","v":""},"",{"$error":"#VALUE!"},"",0,0]
["","","",{"$f":"IF(ISERROR(PMT(Maandelijkse_rente_percentage,(Loan_Years*12)-Pay_Num+1,Beg_Bal)),\"\",IF(Values_Entered,-PMT(Maandelijkse_rente_percentage,(Loan_Years*12)-Pay_Num+1,Beg_Bal),\"\"))","v":""},"",{"$error":"#VALUE!"},"",0,0]
["","","",{"$f":"IF(ISERROR(PMT(Maandelijkse_rente_percentage,(Loan_Years*12)-Pay_Num+1,Beg_Bal)),\"\",IF(Values_Entered,-PMT(Maandelijkse_rente_percentage,(Loan_Years*12)-Pay_Num+1,Beg_Bal),\"\"))","v":""},"",{"$error":"#VALUE!"},"",0,0]
["","","",{"$f":"IF(ISERROR(PMT(Maandelijkse_rente_percentage,(Loan_Years*12)-Pay_Num+1,Beg_Bal)),\"\",IF(Values_Entered,-PMT(Maandelijkse_rente_percentage,(Loan_Years*12)-Pay_Num+1,Beg_Bal),\"\"))","v":""},"",{"$error":"#VALUE!"},"",0,0]
["","","",{"$f":"IF(ISERROR(PMT(Maandelijkse_rente_percentage,(Loan_Years*12)-Pay_Num+1,Beg_Bal)),\"\",IF(Values_Entered,-PMT(Maandelijkse_rente_percentage,(Loan_Years*12)-Pay_Num+1,Beg_Bal),\"\"))","v":""},"",{"$error":"#VALUE!"},"",0,0]
["","","",{"$f":"IF(ISERROR(PMT(Maandelijkse_rente_percentage,(Loan_Years*12)-Pay_Num+1,Beg_Bal)),\"\",IF(Values_Entered,-PMT(Maandelijkse_rente_percentage,(Loan_Years*12)-Pay_Num+1,Beg_Bal),\"\"))","v":""},"",{"$error":"#VALUE!"},"",0,0]
["","","",{"$f":"IF(ISERROR(PMT(Maandelijkse_rente_percentage,(Loan_Years*12)-Pay_Num+1,Beg_Bal)),\"\",IF(Values_Entered,-PMT(Maandelijkse_rente_percentage,(Loan_Years*12)-Pay_Num+1,Beg_Bal),\"\"))","v":""},"",{"$error":"#VALUE!"},"",0,0]
["","","",{"$f":"IF(ISERROR(PMT(Maandelijkse_rente_percentage,(Loan_Years*12)-Pay_Num+1,Beg_Bal)),\"\",IF(Values_Entered,-PMT(Maandelijkse_rente_percentage,(Loan_Years*12)-Pay_Num+1,Beg_Bal),\"\"))","v":""},"",{"$error":"#VALUE!"},"",0,0]
["","","",{"$f":"IF(ISERROR(PMT(Maandelijkse_rente_percentage,(Loan_Years*12)-Pay_Num+1,Beg_Bal)),\"\",IF(Values_Entered,-PMT(Maandelijkse_rente_percentage,(Loan_Years*12)-Pay_Num+1,Beg_Bal),\"\"))","v":""},"",{"$error":"#VALUE!"},"",0,0]
["","","",{"$f":"IF(ISERROR(PMT(Maandelijkse_rente_percentage,(Loan_Years*12)-Pay_Num+1,Beg_Bal)),\"\",IF(Values_Entered,-PMT(Maandelijkse_rente_percentage,(Loan_Years*12)-Pay_Num+1,Beg_Bal),\"\"))","v":""},"",{"$error":"#VALUE!"},"",0,0]
["","","",{"$f":"IF(ISERROR(PMT(Maandelijkse_rente_percentage,(Loan_Years*12)-Pay_Num+1,Beg_Bal)),\"\",IF(Values_Entered,-PMT(Maandelijkse_rente_percentage,(Loan_Years*12)-Pay_Num+1,Beg_Bal),\"\"))","v":""},"",{"$error":"#VALUE!"},"",{"$f":"L7","v":0},0]
["","","",{"$f":"IF(ISERROR(PMT(Maandelijkse_rente_percentage,(Loan_Years*12)-Pay_Num+1,Beg_Bal)),\"\",IF(Values_Entered,-PMT(Maandelijkse_rente_percentage,(Loan_Years*12)-Pay_Num+1,Beg_Bal),\"\"))","v":""},"",{"$error":"#VALUE!"},"",0,0]
["","","",{"$f":"IF(ISERROR(PMT(Maandelijkse_rente_percentage,(Loan_Years*12)-Pay_Num+1,Beg_Bal)),\"\",IF(Values_Entered,-PMT(Maandelijkse_rente_percentage,(Loan_Years*12)-Pay_Num+1,Beg_Bal),\"\"))","v":""},"",{"$error":"#VALUE!"},"",0,0]
["","","",{"$f":"IF(ISERROR(PMT(Maandelijkse_rente_percentage,(Loan_Years*12)-Pay_Num+1,Beg_Bal)),\"\",IF(Values_Entered,-PMT(Maandelijkse_rente_percentage,(Loan_Years*12)-Pay_Num+1,Beg_Bal),\"\"))","v":""},"",{"$error":"#VALUE!"},"",0,0]
["","","",{"$f":"IF(ISERROR(PMT(Maandelijkse_rente_percentage,(Loan_Years*12)-Pay_Num+1,Beg_Bal)),\"\",IF(Values_Entered,-PMT(Maandelijkse_rente_percentage,(Loan_Years*12)-Pay_Num+1,Beg_Bal),\"\"))","v":""},"",{"$error":"#VALUE!"},"",0,0]
["","","",{"$f":"IF(ISERROR(PMT(Maandelijkse_rente_percentage,(Loan_Years*12)-Pay_Num+1,Beg_Bal)),\"\",IF(Values_Entered,-PMT(Maandelijkse_rente_percentage,(Loan_Years*12)-Pay_Num+1,Beg_Bal),\"\"))","v":""},"",{"$error":"#VALUE!"},"",0,0]
["","","",{"$f":"IF(ISERROR(PMT(Maandelijkse_rente_percentage,(Loan_Years*12)-Pay_Num+1,Beg_Bal)),\"\",IF(Values_Entered,-PMT(Maandelijkse_rente_percentage,(Loan_Years*12)-Pay_Num+1,Beg_Bal),\"\"))","v":""},"",{"$error":"#VALUE!"},"",0,0]
["","","",{"$f":"IF(ISERROR(PMT(Maandelijkse_rente_percentage,(Loan_Years*12)-Pay_Num+1,Beg_Bal)),\"\",IF(Values_Entered,-PMT(Maandelijkse_rente_percentage,(Loan_Years*12)-Pay_Num+1,Beg_Bal),\"\"))","v":""},"",{"$error":"#VALUE!"},"",0,0]
["","","",{"$f":"IF(ISERROR(PMT(Maandelijkse_rente_percentage,(Loan_Years*12)-Pay_Num+1,Beg_Bal)),\"\",IF(Values_Entered,-PMT(Maandelijkse_rente_percentage,(Loan_Years*12)-Pay_Num+1,Beg_Bal),\"\"))","v":""},"",{"$error":"#VALUE!"},"",0,0]
["","","",{"$f":"IF(ISERROR(PMT(Maandelijkse_rente_percentage,(Loan_Years*12)-Pay_Num+1,Beg_Bal)),\"\",IF(Values_Entered,-PMT(Maandelijkse_rente_percentage,(Loan_Years*12)-Pay_Num+1,Beg_Bal),\"\"))","v":""},"",{"$error":"#VALUE!"},"",0,0]
["","","",{"$f":"IF(ISERROR(PMT(Maandelijkse_rente_percentage,(Loan_Years*12)-Pay_Num+1,Beg_Bal)),\"\",IF(Values_Entered,-PMT(Maandelijkse_rente_percentage,(Loan_Years*12)-Pay_Num+1,Beg_Bal),\"\"))","v":""},"",{"$error":"#VALUE!"},"",0,0]
["","","",{"$f":"IF(ISERROR(PMT(Maandelijkse_rente_percentage,(Loan_Years*12)-Pay_Num+1,Beg_Bal)),\"\",IF(Values_Entered,-PMT(Maandelijkse_rente_percentage,(Loan_Years*12)-Pay_Num+1,Beg_Bal),\"\"))","v":""},"",{"$error":"#VALUE!"},"",0,0]
["","","",{"$f":"IF(ISERROR(PMT(Maandelijkse_rente_percentage,(Loan_Years*12)-Pay_Num+1,Beg_Bal)),\"\",IF(Values_Entered,-PMT(Maandelijkse_rente_percentage,(Loan_Years*12)-Pay_Num+1,Beg_Bal),\"\"))","v":""},"",{"$error":"#VALUE!"},"",{"$f":"L8","v":0},0]
["","","",{"$f":"IF(ISERROR(PMT(Maandelijkse_rente_percentage,(Loan_Years*12)-Pay_Num+1,Beg_Bal)),\"\",IF(Values_Entered,-PMT(Maandelijkse_rente_percentage,(Loan_Years*12)-Pay_Num+1,Beg_Bal),\"\"))","v":""},"",{"$error":"#VALUE!"},"",{"$f":"H79","v":0},0]
["","","",{"$f":"IF(ISERROR(PMT(Maandelijkse_rente_percentage,(Loan_Years*12)-Pay_Num+1,Beg_Bal)),\"\",IF(Values_Entered,-PMT(Maandelijkse_rente_percentage,(Loan_Years*12)-Pay_Num+1,Beg_Bal),\"\"))","v":""},"",{"$error":"#VALUE!"},"",0,0]
["","","",{"$f":"IF(ISERROR(PMT(Maandelijkse_rente_percentage,(Loan_Years*12)-Pay_Num+1,Beg_Bal)),\"\",IF(Values_Entered,-PMT(Maandelijkse_rente_percentage,(Loan_Years*12)-Pay_Num+1,Beg_Bal),\"\"))","v":""},"",{"$error":"#VALUE!"},"",0,0]
["","","",{"$f":"IF(ISERROR(PMT(Maandelijkse_rente_percentage,(Loan_Years*12)-Pay_Num+1,Beg_Bal)),\"\",IF(Values_Entered,-PMT(Maandelijkse_rente_percentage,(Loan_Years*12)-Pay_Num+1,Beg_Bal),\"\"))","v":""},{"$f":"IF(Pay_Num<>\"\",Maandelijkse_aflossing-Int,\"\")","v":""},{"$f":"Beg_Bal*Maandelijkse_rente_percentage","v":{"$error":"#VALUE!"}},"",0,{"$f":"((1+Jaarlijk_rente_percentage)^(1/12))-1","v":0}]
[{"$f":"IF(Values_Entered,A83+1,\"\")","v":""},{"$f":"IF(Pay_Num<>\"\",DATE(YEAR(B83),MONTH(B83)+1,DAY(B83)),\"\")","v":""},"",{"$f":"IF(ISERROR(PMT(Maandelijkse_rente_percentage,(Loan_Years*12)-Pay_Num+1,Beg_Bal)),\"\",IF(Values_Entered,-PMT(Maandelijkse_rente_percentage,(Loan_Years*12)-Pay_Num+1,Beg_Bal),\"\"))","v":""},"",{"$error":"#VALUE!"},{"$f":"IF(Pay_Num<>\"\",Beg_Bal-Princ,\"\")","v":""},0,0]
["","",{"$f":"IF(Pay_Num<>\"\",G84,\"\")","v":""},{"$f":"IF(ISERROR(PMT(Maandelijkse_rente_percentage,(Loan_Years*12)-Pay_Num+1,Beg_Bal)),\"\",IF(Values_Entered,-PMT(Maandelijkse_rente_percentage,(Loan_Years*12)-Pay_Num+1,Beg_Bal),\"\"))","v":""},"",{"$error":"#VALUE!"},"",0,0]
["","","",{"$f":"IF(ISERROR(PMT(Maandelijkse_rente_percentage,(Loan_Years*12)-Pay_Num+1,Beg_Bal)),\"\",IF(Values_Entered,-PMT(Maandelijkse_rente_percentage,(Loan_Years*12)-Pay_Num+1,Beg_Bal),\"\"))","v":""},"",{"$error":"#VALUE!"},"",0,0]
["","","",{"$f":"IF(ISERROR(PMT(Maandelijkse_rente_percentage,(Loan_Years*12)-Pay_Num+1,Beg_Bal)),\"\",IF(Values_Entered,-PMT(Maandelijkse_rente_percentage,(Loan_Years*12)-Pay_Num+1,Beg_Bal),\"\"))","v":""},"",{"$error":"#VALUE!"},"",0,0]
["","","",{"$f":"IF(ISERROR(PMT(Maandelijkse_rente_percentage,(Loan_Years*12)-Pay_Num+1,Beg_Bal)),\"\",IF(Values_Entered,-PMT(Maandelijkse_rente_percentage,(Loan_Years*12)-Pay_Num+1,Beg_Bal),\"\"))","v":""},"",{"$error":"#VALUE!"},"",0,0]
["","","",{"$f":"IF(ISERROR(PMT(Maandelijkse_rente_percentage,(Loan_Years*12)-Pay_Num+1,Beg_Bal)),\"\",IF(Values_Entered,-PMT(Maandelijkse_rente_percentage,(Loan_Years*12)-Pay_Num+1,Beg_Bal),\"\"))","v":""},"",{"$error":"#VALUE!"},"",0,0]
["","","",{"$f":"IF(ISERROR(PMT(Maandelijkse_rente_percentage,(Loan_Years*12)-Pay_Num+1,Beg_Bal)),\"\",IF(Values_Entered,-PMT(Maandelijkse_rente_percentage,(Loan_Years*12)-Pay_Num+1,Beg_Bal),\"\"))","v":""},"",{"$error":"#VALUE!"},"",0,0]
["","","",{"$f":"IF(ISERROR(PMT(Maandelijkse_rente_percentage,(Loan_Years*12)-Pay_Num+1,Beg_Bal)),\"\",IF(Values_Entered,-PMT(Maandelijkse_rente_percentage,(Loan_Years*12)-Pay_Num+1,Beg_Bal),\"\"))","v":""},"",{"$error":"#VALUE!"},"",{"$f":"L9","v":0},0]
["","","",{"$f":"IF(ISERROR(PMT(Maandelijkse_rente_percentage,(Loan_Years*12)-Pay_Num+1,Beg_Bal)),\"\",IF(Values_Entered,-PMT(Maandelijkse_rente_percentage,(Loan_Years*12)-Pay_Num+1,Beg_Bal),\"\"))","v":""},"",{"$error":"#VALUE!"},"",0,0]
["","","",{"$f":"IF(ISERROR(PMT(Maandelijkse_rente_percentage,(Loan_Years*12)-Pay_Num+1,Beg_Bal)),\"\",IF(Values_Entered,-PMT(Maandelijkse_rente_percentage,(Loan_Years*12)-Pay_Num+1,Beg_Bal),\"\"))","v":""},"",{"$error":"#VALUE!"},"",0,0]
["","","",{"$f":"IF(ISERROR(PMT(Maandelijkse_rente_percentage,(Loan_Years*12)-Pay_Num+1,Beg_Bal)),\"\",IF(Values_Entered,-PMT(Maandelijkse_rente_percentage,(Loan_Years*12)-Pay_Num+1,Beg_Bal),\"\"))","v":""},"",{"$error":"#VALUE!"},"",0,0]
["","","",{"$f":"IF(ISERROR(PMT(Maandelijkse_rente_percentage,(Loan_Years*12)-Pay_Num+1,Beg_Bal)),\"\",IF(Values_Entered,-PMT(Maandelijkse_rente_percentage,(Loan_Years*12)-Pay_Num+1,Beg_Bal),\"\"))","v":""},"",{"$error":"#VALUE!"},"",0,0]
["","","",{"$f":"IF(ISERROR(PMT(Maandelijkse_rente_percentage,(Loan_Years*12)-Pay_Num+1,Beg_Bal)),\"\",IF(Values_Entered,-PMT(Maandelijkse_rente_percentage,(Loan_Years*12)-Pay_Num+1,Beg_Bal),\"\"))","v":""},"",{"$error":"#VALUE!"},"",0,0]
["","","",{"$f":"IF(ISERROR(PMT(Maandelijkse_rente_percentage,(Loan_Years*12)-Pay_Num+1,Beg_Bal)),\"\",IF(Values_Entered,-PMT(Maandelijkse_rente_percentage,(Loan_Years*12)-Pay_Num+1,Beg_Bal),\"\"))","v":""},"",{"$error":"#VALUE!"},"",0,0]
["","","",{"$f":"IF(ISERROR(PMT(Maandelijkse_rente_percentage,(Loan_Years*12)-Pay_Num+1,Beg_Bal)),\"\",IF(Values_Entered,-PMT(Maandelijkse_rente_percentage,(Loan_Years*12)-Pay_Num+1,Beg_Bal),\"\"))","v":""},"",{"$error":"#VALUE!"},"",0,0]
["","","",{"$f":"IF(ISERROR(PMT(Maandelijkse_rente_percentage,(Loan_Years*12)-Pay_Num+1,Beg_Bal)),\"\",IF(Values_Entered,-PMT(Maandelijkse_rente_percentage,(Loan_Years*12)-Pay_Num+1,Beg_Bal),\"\"))","v":""},"",{"$error":"#VALUE!"},"",0,0]
["","","",{"$f":"IF(ISERROR(PMT(Maandelijkse_rente_percentage,(Loan_Years*12)-Pay_Num+1,Beg_Bal)),\"\",IF(Values_Entered,-PMT(Maandelijkse_rente_percentage,(Loan_Years*12)-Pay_Num+1,Beg_Bal),\"\"))","v":""},"",{"$error":"#VALUE!"},"",0,0]
["","","",{"$f":"IF(ISERROR(PMT(Maandelijkse_rente_percentage,(Loan_Years*12)-Pay_Num+1,Beg_Bal)),\"\",IF(Values_Entered,-PMT(Maandelijkse_rente_percentage,(Loan_Years*12)-Pay_Num+1,Beg_Bal),\"\"))","v":""},"",{"$error":"#VALUE!"},"",0,0]
["","","",{"$f":"IF(ISERROR(PMT(Maandelijkse_rente_percentage,(Loan_Years*12)-Pay_Num+1,Beg_Bal)),\"\",IF(Values_Entered,-PMT(Maandelijkse_rente_percentage,(Loan_Years*12)-Pay_Num+1,Beg_Bal),\"\"))","v":""},"",{"$error":"#VALUE!"},"",0,0]
["","","",{"$f":"IF(ISERROR(PMT(Maandelijkse_rente_percentage,(Loan_Years*12)-Pay_Num+1,Beg_Bal)),\"\",IF(Values_Entered,-PMT(Maandelijkse_rente_percentage,(Loan_Years*12)-Pay_Num+1,Beg_Bal),\"\"))","v":""},"",{"$error":"#VALUE!"},"",{"$f":"L10","v":0},0]
["","","",{"$f":"IF(ISERROR(PMT(Maandelijkse_rente_percentage,(Loan_Years*12)-Pay_Num+1,Beg_Bal)),\"\",IF(Values_Entered,-PMT(Maandelijkse_rente_percentage,(Loan_Years*12)-Pay_Num+1,Beg_Bal),\"\"))","v":""},"",{"$error":"#VALUE!"},"",0,0]
["","","",{"$f":"IF(ISERROR(PMT(Maandelijkse_rente_percentage,(Loan_Years*12)-Pay_Num+1,Beg_Bal)),\"\",IF(Values_Entered,-PMT(Maandelijkse_rente_percentage,(Loan_Years*12)-Pay_Num+1,Beg_Bal),\"\"))","v":""},"",{"$error":"#VALUE!"},"",0,0]
["","","",{"$f":"IF(ISERROR(PMT(Maandelijkse_rente_percentage,(Loan_Years*12)-Pay_Num+1,Beg_Bal)),\"\",IF(Values_Entered,-PMT(Maandelijkse_rente_percentage,(Loan_Years*12)-Pay_Num+1,Beg_Bal),\"\"))","v":""},"",{"$error":"#VALUE!"},"",0,0]
["","","",{"$f":"IF(ISERROR(PMT(Maandelijkse_rente_percentage,(Loan_Years*12)-Pay_Num+1,Beg_Bal)),\"\",IF(Values_Entered,-PMT(Maandelijkse_rente_percentage,(Loan_Years*12)-Pay_Num+1,Beg_Bal),\"\"))","v":""},"",{"$error":"#VALUE!"},"",0,0]
["","","",{"$f":"IF(ISERROR(PMT(Maandelijkse_rente_percentage,(Loan_Years*12)-Pay_Num+1,Beg_Bal)),\"\",IF(Values_Entered,-PMT(Maandelijkse_rente_percentage,(Loan_Years*12)-Pay_Num+1,Beg_Bal),\"\"))","v":""},"",{"$error":"#VALUE!"},"",0,0]
["","","",{"$f":"IF(ISERROR(PMT(Maandelijkse_rente_percentage,(Loan_Years*12)-Pay_Num+1,Beg_Bal)),\"\",IF(Values_Entered,-PMT(Maandelijkse_rente_percentage,(Loan_Years*12)-Pay_Num+1,Beg_Bal),\"\"))","v":""},"",{"$error":"#VALUE!"},"",0,0]
["","","",{"$f":"IF(ISERROR(PMT(Maandelijkse_rente_percentage,(Loan_Years*12)-Pay_Num+1,Beg_Bal)),\"\",IF(Values_Entered,-PMT(Maandelijkse_rente_percentage,(Loan_Years*12)-Pay_Num+1,Beg_Bal),\"\"))","v":""},"",{"$error":"#VALUE!"},"",0,0]
["","","",{"$f":"IF(ISERROR(PMT(Maandelijkse_rente_percentage,(Loan_Years*12)-Pay_Num+1,Beg_Bal)),\"\",IF(Values_Entered,-PMT(Maandelijkse_rente_percentage,(Loan_Years*12)-Pay_Num+1,Beg_Bal),\"\"))","v":""},"",{"$error":"#VALUE!"},"",0,0]
["","","",{"$f":"IF(ISERROR(PMT(Maandelijkse_rente_percentage,(Loan_Years*12)-Pay_Num+1,Beg_Bal)),\"\",IF(Values_Entered,-PMT(Maandelijkse_rente_percentage,(Loan_Years*12)-Pay_Num+1,Beg_Bal),\"\"))","v":""},"",{"$error":"#VALUE!"},"",0,0]
["","","",{"$f":"IF(ISERROR(PMT(Maandelijkse_rente_percentage,(Loan_Years*12)-Pay_Num+1,Beg_Bal)),\"\",IF(Values_Entered,-PMT(Maandelijkse_rente_percentage,(Loan_Years*12)-Pay_Num+1,Beg_Bal),\"\"))","v":""},"",{"$error":"#VALUE!"},"",0,0]
["","","",{"$f":"IF(ISERROR(PMT(Maandelijkse_rente_percentage,(Loan_Years*12)-Pay_Num+1,Beg_Bal)),\"\",IF(Values_Entered,-PMT(Maandelijkse_rente_percentage,(Loan_Years*12)-Pay_Num+1,Beg_Bal),\"\"))","v":""},"",{"$error":"#VALUE!"},"",0,0]
["","","",{"$f":"IF(ISERROR(PMT(Maandelijkse_rente_percentage,(Loan_Years*12)-Pay_Num+1,Beg_Bal)),\"\",IF(Values_Entered,-PMT(Maandelijkse_rente_percentage,(Loan_Years*12)-Pay_Num+1,Beg_Bal),\"\"))","v":""},"",{"$error":"#VALUE!"},"",{"$f":"L11","v":0},0]
["","","",{"$f":"IF(ISERROR(PMT(Maandelijkse_rente_percentage,(Loan_Years*12)-Pay_Num+1,Beg_Bal)),\"\",IF(Values_Entered,-PMT(Maandelijkse_rente_percentage,(Loan_Years*12)-Pay_Num+1,Beg_Bal),\"\"))","v":""},"",{"$error":"#VALUE!"},"",0,0]
["","","",{"$f":"IF(ISERROR(PMT(Maandelijkse_rente_percentage,(Loan_Years*12)-Pay_Num+1,Beg_Bal)),\"\",IF(Values_Entered,-PMT(Maandelijkse_rente_percentage,(Loan_Years*12)-Pay_Num+1,Beg_Bal),\"\"))","v":""},"",{"$error":"#VALUE!"},"",0,0]
["","","",{"$f":"IF(ISERROR(PMT(Maandelijkse_rente_percentage,(Loan_Years*12)-Pay_Num+1,Beg_Bal)),\"\",IF(Values_Entered,-PMT(Maandelijkse_rente_percentage,(Loan_Years*12)-Pay_Num+1,Beg_Bal),\"\"))","v":""},"",{"$error":"#VALUE!"},"",0,0]
["","","",{"$f":"IF(ISERROR(PMT(Maandelijkse_rente_percentage,(Loan_Years*12)-Pay_Num+1,Beg_Bal)),\"\",IF(Values_Entered,-PMT(Maandelijkse_rente_percentage,(Loan_Years*12)-Pay_Num+1,Beg_Bal),\"\"))","v":""},"",{"$error":"#VALUE!"},"",0,0]
["","","",{"$f":"IF(ISERROR(PMT(Maandelijkse_rente_percentage,(Loan_Years*12)-Pay_Num+1,Beg_Bal)),\"\",IF(Values_Entered,-PMT(Maandelijkse_rente_percentage,(Loan_Years*12)-Pay_Num+1,Beg_Bal),\"\"))","v":""},"",{"$error":"#VALUE!"},"",0,0]
["","","",{"$f":"IF(ISERROR(PMT(Maandelijkse_rente_percentage,(Loan_Years*12)-Pay_Num+1,Beg_Bal)),\"\",IF(Values_Entered,-PMT(Maandelijkse_rente_percentage,(Loan_Years*12)-Pay_Num+1,Beg_Bal),\"\"))","v":""},"",{"$error":"#VALUE!"},"",0,0]
["","","",{"$f":"IF(ISERROR(PMT(Maandelijkse_rente_percentage,(Loan_Years*12)-Pay_Num+1,Beg_Bal)),\"\",IF(Values_Entered,-PMT(Maandelijkse_rente_percentage,(Loan_Years*12)-Pay_Num+1,Beg_Bal),\"\"))","v":""},"",{"$error":"#VALUE!"},"",0,0]
["","","",{"$f":"IF(ISERROR(PMT(Maandelijkse_rente_percentage,(Loan_Years*12)-Pay_Num+1,Beg_Bal)),\"\",IF(Values_Entered,-PMT(Maandelijkse_rente_percentage,(Loan_Years*12)-Pay_Num+1,Beg_Bal),\"\"))","v":""},"",{"$error":"#VALUE!"},"",0,0]
["","","",{"$f":"IF(ISERROR(PMT(Maandelijkse_rente_percentage,(Loan_Years*12)-Pay_Num+1,Beg_Bal)),\"\",IF(Values_Entered,-PMT(Maandelijkse_rente_percentage,(Loan_Years*12)-Pay_Num+1,Beg_Bal),\"\"))","v":""},"",{"$error":"#VALUE!"},"",0,0]
["","","",{"$f":"IF(ISERROR(PMT(Maandelijkse_rente_percentage,(Loan_Years*12)-Pay_Num+1,Beg_Bal)),\"\",IF(Values_Entered,-PMT(Maandelijkse_rente_percentage,(Loan_Years*12)-Pay_Num+1,Beg_Bal),\"\"))","v":""},"",{"$error":"#VALUE!"},"",0,0]
["","","",{"$f":"IF(ISERROR(PMT(Maandelijkse_rente_percentage,(Loan_Years*12)-Pay_Num+1,Beg_Bal)),\"\",IF(Values_Entered,-PMT(Maandelijkse_rente_percentage,(Loan_Years*12)-Pay_Num+1,Beg_Bal),\"\"))","v":""},"",{"$error":"#VALUE!"},"",0,0]
["","","",{"$f":"IF(ISERROR(PMT(Maandelijkse_rente_percentage,(Loan_Years*12)-Pay_Num+1,Beg_Bal)),\"\",IF(Values_Entered,-PMT(Maandelijkse_rente_percentage,(Loan_Years*12)-Pay_Num+1,Beg_Bal),\"\"))","v":""},"",{"$error":"#VALUE!"},"",{"$f":"L12","v":0},0]
["","","",{"$f":"IF(ISERROR(PMT(Maandelijkse_rente_percentage,(Loan_Years*12)-Pay_Num+1,Beg_Bal)),\"\",IF(Values_Entered,-PMT(Maandelijkse_rente_percentage,(Loan_Years*12)-Pay_Num+1,Beg_Bal),\"\"))","v":""},"",{"$error":"#VALUE!"},"",0,0]
["","","",{"$f":"IF(ISERROR(PMT(Maandelijkse_rente_percentage,(Loan_Years*12)-Pay_Num+1,Beg_Bal)),\"\",IF(Values_Entered,-PMT(Maandelijkse_rente_percentage,(Loan_Years*12)-Pay_Num+1,Beg_Bal),\"\"))","v":""},"",{"$error":"#VALUE!"},"",0,0]
["","","",{"$f":"IF(ISERROR(PMT(Maandelijkse_rente_percentage,(Loan_Years*12)-Pay_Num+1,Beg_Bal)),\"\",IF(Values_Entered,-PMT(Maandelijkse_rente_percentage,(Loan_Years*12)-Pay_Num+1,Beg_Bal),\"\"))","v":""},"",{"$error":"#VALUE!"},"",0,0]
["","","",{"$f":"IF(ISERROR(PMT(Maandelijkse_rente_percentage,(Loan_Years*12)-Pay_Num+1,Beg_Bal)),\"\",IF(Values_Entered,-PMT(Maandelijkse_rente_percentage,(Loan_Years*12)-Pay_Num+1,Beg_Bal),\"\"))","v":""},"",{"$error":"#VALUE!"},"",0,0]
["","","",{"$f":"IF(ISERROR(PMT(Maandelijkse_rente_percentage,(Loan_Years*12)-Pay_Num+1,Beg_Bal)),\"\",IF(Values_Entered,-PMT(Maandelijkse_rente_percentage,(Loan_Years*12)-Pay_Num+1,Beg_Bal),\"\"))","v":""},"",{"$error":"#VALUE!"},"",0,0]
["","","",{"$f":"IF(ISERROR(PMT(Maandelijkse_rente_percentage,(Loan_Years*12)-Pay_Num+1,Beg_Bal)),\"\",IF(Values_Entered,-PMT(Maandelijkse_rente_percentage,(Loan_Years*12)-Pay_Num+1,Beg_Bal),\"\"))","v":""},"",{"$error":"#VALUE!"},"",0,0]
["","","",{"$f":"IF(ISERROR(PMT(Maandelijkse_rente_percentage,(Loan_Years*12)-Pay_Num+1,Beg_Bal)),\"\",IF(Values_Entered,-PMT(Maandelijkse_rente_percentage,(Loan_Years*12)-Pay_Num+1,Beg_Bal),\"\"))","v":""},"",{"$error":"#VALUE!"},"",0,0]
["","","",{"$f":"IF(ISERROR(PMT(Maandelijkse_rente_percentage,(Loan_Years*12)-Pay_Num+1,Beg_Bal)),\"\",IF(Values_Entered,-PMT(Maandelijkse_rente_percentage,(Loan_Years*12)-Pay_Num+1,Beg_Bal),\"\"))","v":""},"",{"$error":"#VALUE!"},"",0,0]
["","","",{"$f":"IF(ISERROR(PMT(Maandelijkse_rente_percentage,(Loan_Years*12)-Pay_Num+1,Beg_Bal)),\"\",IF(Values_Entered,-PMT(Maandelijkse_rente_percentage,(Loan_Years*12)-Pay_Num+1,Beg_Bal),\"\"))","v":""},"",{"$error":"#VALUE!"},"",0,0]
["","","",{"$f":"IF(ISERROR(PMT(Maandelijkse_rente_percentage,(Loan_Years*12)-Pay_Num+1,Beg_Bal)),\"\",IF(Values_Entered,-PMT(Maandelijkse_rente_percentage,(Loan_Years*12)-Pay_Num+1,Beg_Bal),\"\"))","v":""},"",{"$error":"#VALUE!"},"",0,0]
["","","",{"$f":"IF(ISERROR(PMT(Maandelijkse_rente_percentage,(Loan_Years*12)-Pay_Num+1,Beg_Bal)),\"\",IF(Values_Entered,-PMT(Maandelijkse_rente_percentage,(Loan_Years*12)-Pay_Num+1,Beg_Bal),\"\"))","v":""},"",{"$error":"#VALUE!"},"",0,0]
["","","",{"$f":"IF(ISERROR(PMT(Maandelijkse_rente_percentage,(Loan_Years*12)-Pay_Num+1,Beg_Bal)),\"\",IF(Values_Entered,-PMT(Maandelijkse_rente_percentage,(Loan_Years*12)-Pay_Num+1,Beg_Bal),\"\"))","v":""},"",{"$error":"#VALUE!"},"",{"$f":"L13","v":0},0]
["","","",{"$f":"IF(ISERROR(PMT(Maandelijkse_rente_percentage,(Loan_Years*12)-Pay_Num+1,Beg_Bal)),\"\",IF(Values_Entered,-PMT(Maandelijkse_rente_percentage,(Loan_Years*12)-Pay_Num+1,Beg_Bal),\"\"))","v":""},"",{"$error":"#VALUE!"},"",0,0]
["","","",{"$f":"IF(ISERROR(PMT(Maandelijkse_rente_percentage,(Loan_Years*12)-Pay_Num+1,Beg_Bal)),\"\",IF(Values_Entered,-PMT(Maandelijkse_rente_percentage,(Loan_Years*12)-Pay_Num+1,Beg_Bal),\"\"))","v":""},"",{"$error":"#VALUE!"},"",0,0]
["","","",{"$f":"IF(ISERROR(PMT(Maandelijkse_rente_percentage,(Loan_Years*12)-Pay_Num+1,Beg_Bal)),\"\",IF(Values_Entered,-PMT(Maandelijkse_rente_percentage,(Loan_Years*12)-Pay_Num+1,Beg_Bal),\"\"))","v":""},"",{"$error":"#VALUE!"},"",0,0]
["","","",{"$f":"IF(ISERROR(PMT(Maandelijkse_rente_percentage,(Loan_Years*12)-Pay_Num+1,Beg_Bal)),\"\",IF(Values_Entered,-PMT(Maandelijkse_rente_percentage,(Loan_Years*12)-Pay_Num+1,Beg_Bal),\"\"))","v":""},"",{"$error":"#VALUE!"},"",{"$f":"H142","v":0},0]
["","","",{"$f":"IF(ISERROR(PMT(Maandelijkse_rente_percentage,(Loan_Years*12)-Pay_Num+1,Beg_Bal)),\"\",IF(Values_Entered,-PMT(Maandelijkse_rente_percentage,(Loan_Years*12)-Pay_Num+1,Beg_Bal),\"\"))","v":""},"",{"$error":"#VALUE!"},"",0,0]
["","","",{"$f":"IF(ISERROR(PMT(Maandelijkse_rente_percentage,(Loan_Years*12)-Pay_Num+1,Beg_Bal)),\"\",IF(Values_Entered,-PMT(Maandelijkse_rente_percentage,(Loan_Years*12)-Pay_Num+1,Beg_Bal),\"\"))","v":""},"",{"$error":"#VALUE!"},"",0,0]
["","","",{"$f":"IF(ISERROR(PMT(Maandelijkse_rente_percentage,(Loan_Years*12)-Pay_Num+1,Beg_Bal)),\"\",IF(Values_Entered,-PMT(Maandelijkse_rente_percentage,(Loan_Years*12)-Pay_Num+1,Beg_Bal),\"\"))","v":""},"",{"$error":"#VALUE!"},"",0,0]
["","","",{"$f":"IF(ISERROR(PMT(Maandelijkse_rente_percentage,(Loan_Years*12)-Pay_Num+1,Beg_Bal)),\"\",IF(Values_Entered,-PMT(Maandelijkse_rente_percentage,(Loan_Years*12)-Pay_Num+1,Beg_Bal),\"\"))","v":""},{"$f":"IF(Pay_Num<>\"\",Maandelijkse_aflossing-Int,\"\")","v":""},{"$f":"Beg_Bal*Maandelijkse_rente_percentage","v":{"$error":"#VALUE!"}},"",0,{"$f":"((1+Jaarlijk_rente_percentage)^(1/12))-1","v":0}]
[{"$f":"IF(Values_Entered,A147+1,\"\")","v":""},{"$f":"IF(Pay_Num<>\"\",DATE(YEAR(B147),MONTH(B147)+1,DAY(B147)),\"\")","v":""},"",{"$f":"IF(ISERROR(PMT(Maandelijkse_rente_percentage,(Loan_Years*12)-Pay_Num+1,Beg_Bal)),\"\",IF(Values_Entered,-PMT(Maandelijkse_rente_percentage,(Loan_Years*12)-Pay_Num+1,Beg_Bal),\"\"))","v":""},"",{"$error":"#VALUE!"},{"$f":"IF(Pay_Num<>\"\",Beg_Bal-Princ,\"\")","v":""},0,0]
["","",{"$f":"IF(Pay_Num<>\"\",G148,\"\")","v":""},{"$f":"IF(ISERROR(PMT(Maandelijkse_rente_percentage,(Loan_Years*12)-Pay_Num+1,Beg_Bal)),\"\",IF(Values_Entered,-PMT(Maandelijkse_rente_percentage,(Loan_Years*12)-Pay_Num+1,Beg_Bal),\"\"))","v":""},"",{"$error":"#VALUE!"},"",0,0]
["","","",{"$f":"IF(ISERROR(PMT(Maandelijkse_rente_percentage,(Loan_Years*12)-Pay_Num+1,Beg_Bal)),\"\",IF(Values_Entered,-PMT(Maandelijkse_rente_percentage,(Loan_Years*12)-Pay_Num+1,Beg_Bal),\"\"))","v":""},"",{"$error":"#VALUE!"},"",0,0]
["","","",{"$f":"IF(ISERROR(PMT(Maandelijkse_rente_percentage,(Loan_Years*12)-Pay_Num+1,Beg_Bal)),\"\",IF(Values_Entered,-PMT(Maandelijkse_rente_percentage,(Loan_Years*12)-Pay_Num+1,Beg_Bal),\"\"))","v":""},"",{"$error":"#VALUE!"},"",{"$f":"L14","v":0},0]
["","","",{"$f":"IF(ISERROR(PMT(Maandelijkse_rente_percentage,(Loan_Years*12)-Pay_Num+1,Beg_Bal)),\"\",IF(Values_Entered,-PMT(Maandelijkse_rente_percentage,(Loan_Years*12)-Pay_Num+1,Beg_Bal),\"\"))","v":""},"",{"$error":"#VALUE!"},"",0,0]
["","","",{"$f":"IF(ISERROR(PMT(Maandelijkse_rente_percentage,(Loan_Years*12)-Pay_Num+1,Beg_Bal)),\"\",IF(Values_Entered,-PMT(Maandelijkse_rente_percentage,(Loan_Years*12)-Pay_Num+1,Beg_Bal),\"\"))","v":""},"",{"$error":"#VALUE!"},"",0,0]
["","","",{"$f":"IF(ISERROR(PMT(Maandelijkse_rente_percentage,(Loan_Years*12)-Pay_Num+1,Beg_Bal)),\"\",IF(Values_Entered,-PMT(Maandelijkse_rente_percentage,(Loan_Years*12)-Pay_Num+1,Beg_Bal),\"\"))","v":""},"",{"$error":"#VALUE!"},"",0,0]
["","","",{"$f":"IF(ISERROR(PMT(Maandelijkse_rente_percentage,(Loan_Years*12)-Pay_Num+1,Beg_Bal)),\"\",IF(Values_Entered,-PMT(Maandelijkse_rente_percentage,(Loan_Years*12)-Pay_Num+1,Beg_Bal),\"\"))","v":""},"",{"$error":"#VALUE!"},"",0,0]
["","","",{"$f":"IF(ISERROR(PMT(Maandelijkse_rente_percentage,(Loan_Years*12)-Pay_Num+1,Beg_Bal)),\"\",IF(Values_Entered,-PMT(Maandelijkse_rente_percentage,(Loan_Years*12)-Pay_Num+1,Beg_Bal),\"\"))","v":""},"",{"$error":"#VALUE!"},"",0,0]
["","","",{"$f":"IF(ISERROR(PMT(Maandelijkse_rente_percentage,(Loan_Years*12)-Pay_Num+1,Beg_Bal)),\"\",IF(Values_Entered,-PMT(Maandelijkse_rente_percentage,(Loan_Years*12)-Pay_Num+1,Beg_Bal),\"\"))","v":""},"",{"$error":"#VALUE!"},"",0,0]
["","","",{"$f":"IF(ISERROR(PMT(Maandelijkse_rente_percentage,(Loan_Years*12)-Pay_Num+1,Beg_Bal)),\"\",IF(Values_Entered,-PMT(Maandelijkse_rente_percentage,(Loan_Years*12)-Pay_Num+1,Beg_Bal),\"\"))","v":""},"",{"$error":"#VALUE!"},"",0,0]
["","","",{"$f":"IF(ISERROR(PMT(Maandelijkse_rente_percentage,(Loan_Years*12)-Pay_Num+1,Beg_Bal)),\"\",IF(Values_Entered,-PMT(Maandelijkse_rente_percentage,(Loan_Years*12)-Pay_Num+1,Beg_Bal),\"\"))","v":""},"",{"$error":"#VALUE!"},"",0,0]
["","","",{"$f":"IF(ISERROR(PMT(Maandelijkse_rente_percentage,(Loan_Years*12)-Pay_Num+1,Beg_Bal)),\"\",IF(Values_Entered,-PMT(Maandelijkse_rente_percentage,(Loan_Years*12)-Pay_Num+1,Beg_Bal),\"\"))","v":""},"",{"$error":"#VALUE!"},"",0,0]
["","","",{"$f":"IF(ISERROR(PMT(Maandelijkse_rente_percentage,(Loan_Years*12)-Pay_Num+1,Beg_Bal)),\"\",IF(Values_Entered,-PMT(Maandelijkse_rente_percentage,(Loan_Years*12)-Pay_Num+1,Beg_Bal),\"\"))","v":""},"",{"$error":"#VALUE!"},"",0,0]
["","","",{"$f":"IF(ISERROR(PMT(Maandelijkse_rente_percentage,(Loan_Years*12)-Pay_Num+1,Beg_Bal)),\"\",IF(Values_Entered,-PMT(Maandelijkse_rente_percentage,(Loan_Years*12)-Pay_Num+1,Beg_Bal),\"\"))","v":""},"",{"$error":"#VALUE!"},"",0,0]
["","","",{"$f":"IF(ISERROR(PMT(Maandelijkse_rente_percentage,(Loan_Years*12)-Pay_Num+1,Beg_Bal)),\"\",IF(Values_Entered,-PMT(Maandelijkse_rente_percentage,(Loan_Years*12)-Pay_Num+1,Beg_Bal),\"\"))","v":""},"",{"$error":"#VALUE!"},"",{"$f":"L15","v":0},0]
["","","",{"$f":"IF(ISERROR(PMT(Maandelijkse_rente_percentage,(Loan_Years*12)-Pay_Num+1,Beg_Bal)),\"\",IF(Values_Entered,-PMT(Maandelijkse_rente_percentage,(Loan_Years*12)-Pay_Num+1,Beg_Bal),\"\"))","v":""},"",{"$error":"#VALUE!"},"",0,0]
["","","",{"$f":"IF(ISERROR(PMT(Maandelijkse_rente_percentage,(Loan_Years*12)-Pay_Num+1,Beg_Bal)),\"\",IF(Values_Entered,-PMT(Maandelijkse_rente_percentage,(Loan_Years*12)-Pay_Num+1,Beg_Bal),\"\"))","v":""},"",{"$error":"#VALUE!"},"",0,0]
["","","",{"$f":"IF(ISERROR(PMT(Maandelijkse_rente_percentage,(Loan_Years*12)-Pay_Num+1,Beg_Bal)),\"\",IF(Values_Entered,-PMT(Maandelijkse_rente_percentage,(Loan_Years*12)-Pay_Num+1,Beg_Bal),\"\"))","v":""},"",{"$error":"#VALUE!"},"",0,0]
["","","",{"$f":"IF(ISERROR(PMT(Maandelijkse_rente_percentage,(Loan_Years*12)-Pay_Num+1,Beg_Bal)),\"\",IF(Values_Entered,-PMT(Maandelijkse_rente_percentage,(Loan_Years*12)-Pay_Num+1,Beg_Bal),\"\"))","v":""},"",{"$error":"#VALUE!"},"",0,0]
["","","",{"$f":"IF(ISERROR(PMT(Maandelijkse_rente_percentage,(Loan_Years*12)-Pay_Num+1,Beg_Bal)),\"\",IF(Values_Entered,-PMT(Maandelijkse_rente_percentage,(Loan_Years*12)-Pay_Num+1,Beg_Bal),\"\"))","v":""},"",{"$error":"#VALUE!"},"",0,0]
["","","",{"$f":"IF(ISERROR(PMT(Maandelijkse_rente_percentage,(Loan_Years*12)-Pay_Num+1,Beg_Bal)),\"\",IF(Values_Entered,-PMT(Maandelijkse_rente_percentage,(Loan_Years*12)-Pay_Num+1,Beg_Bal),\"\"))","v":""},"",{"$error":"#VALUE!"},"",0,0]
["","","",{"$f":"IF(ISERROR(PMT(Maandelijkse_rente_percentage,(Loan_Years*12)-Pay_Num+1,Beg_Bal)),\"\",IF(Values_Entered,-PMT(Maandelijkse_rente_percentage,(Loan_Years*12)-Pay_Num+1,Beg_Bal),\"\"))","v":""},"",{"$error":"#VALUE!"},"",0,0]
["","","",{"$f":"IF(ISERROR(PMT(Maandelijkse_rente_percentage,(Loan_Years*12)-Pay_Num+1,Beg_Bal)),\"\",IF(Values_Entered,-PMT(Maandelijkse_rente_percentage,(Loan_Years*12)-Pay_Num+1,Beg_Bal),\"\"))","v":""},"",{"$error":"#VALUE!"},"",0,0]
["","","",{"$f":"IF(ISERROR(PMT(Maandelijkse_rente_percentage,(Loan_Years*12)-Pay_Num+1,Beg_Bal)),\"\",IF(Values_Entered,-PMT(Maandelijkse_rente_percentage,(Loan_Years*12)-Pay_Num+1,Beg_Bal),\"\"))","v":""},"",{"$error":"#VALUE!"},"",0,0]
["","","",{"$f":"IF(ISERROR(PMT(Maandelijkse_rente_percentage,(Loan_Years*12)-Pay_Num+1,Beg_Bal)),\"\",IF(Values_Entered,-PMT(Maandelijkse_rente_percentage,(Loan_Years*12)-Pay_Num+1,Beg_Bal),\"\"))","v":""},"",{"$error":"#VALUE!"},"",0,0]
["","","",{"$f":"IF(ISERROR(PMT(Maandelijkse_rente_percentage,(Loan_Years*12)-Pay_Num+1,Beg_Bal)),\"\",IF(Values_Entered,-PMT(Maandelijkse_rente_percentage,(Loan_Years*12)-Pay_Num+1,Beg_Bal),\"\"))","v":""},"",{"$error":"#VALUE!"},"",0,0]
["","","",{"$f":"IF(ISERROR(PMT(Maandelijkse_rente_percentage,(Loan_Years*12)-Pay_Num+1,Beg_Bal)),\"\",IF(Values_Entered,-PMT(Maandelijkse_rente_percentage,(Loan_Years*12)-Pay_Num+1,Beg_Bal),\"\"))","v":""},"",{"$error":"#VALUE!"},"",{"$f":"L16","v":0},0]
["","","",{"$f":"IF(ISERROR(PMT(Maandelijkse_rente_percentage,(Loan_Years*12)-Pay_Num+1,Beg_Bal)),\"\",IF(Values_Entered,-PMT(Maandelijkse_rente_percentage,(Loan_Years*12)-Pay_Num+1,Beg_Bal),\"\"))","v":""},"",{"$error":"#VALUE!"},"",0,0]
["","","",{"$f":"IF(ISERROR(PMT(Maandelijkse_rente_percentage,(Loan_Years*12)-Pay_Num+1,Beg_Bal)),\"\",IF(Values_Entered,-PMT(Maandelijkse_rente_percentage,(Loan_Years*12)-Pay_Num+1,Beg_Bal),\"\"))","v":""},"",{"$error":"#VALUE!"},"",0,0]
["","","",{"$f":"IF(ISERROR(PMT(Maandelijkse_rente_percentage,(Loan_Years*12)-Pay_Num+1,Beg_Bal)),\"\",IF(Values_Entered,-PMT(Maandelijkse_rente_percentage,(Loan_Years*12)-Pay_Num+1,Beg_Bal),\"\"))","v":""},"",{"$error":"#VALUE!"},"",0,0]
["","","",{"$f":"IF(ISERROR(PMT(Maandelijkse_rente_percentage,(Loan_Years*12)-Pay_Num+1,Beg_Bal)),\"\",IF(Values_Entered,-PMT(Maandelijkse_rente_percentage,(Loan_Years*12)-Pay_Num+1,Beg_Bal),\"\"))","v":""},"",{"$error":"#VALUE!"},"",0,0]
["","","",{"$f":"IF(ISERROR(PMT(Maandelijkse_rente_percentage,(Loan_Years*12)-Pay_Num+1,Beg_Bal)),\"\",IF(Values_Entered,-PMT(Maandelijkse_rente_percentage,(Loan_Years*12)-Pay_Num+1,Beg_Bal),\"\"))","v":""},"",{"$error":"#VALUE!"},"",0,0]
["","","",{"$f":"IF(ISERROR(PMT(Maandelijkse_rente_percentage,(Loan_Years*12)-Pay_Num+1,Beg_Bal)),\"\",IF(Values_Entered,-PMT(Maandelijkse_rente_percentage,(Loan_Years*12)-Pay_Num+1,Beg_Bal),\"\"))","v":""},"",{"$error":"#VALUE!"},"",0,0]
["","","",{"$f":"IF(ISERROR(PMT(Maandelijkse_rente_percentage,(Loan_Years*12)-Pay_Num+1,Beg_Bal)),\"\",IF(Values_Entered,-PMT(Maandelijkse_rente_percentage,(Loan_Years*12)-Pay_Num+1,Beg_Bal),\"\"))","v":""},"",{"$error":"#VALUE!"},"",0,0]
["","","",{"$f":"IF(ISERROR(PMT(Maandelijkse_rente_percentage,(Loan_Years*12)-Pay_Num+1,Beg_Bal)),\"\",IF(Values_Entered,-PMT(Maandelijkse_rente_percentage,(Loan_Years*12)-Pay_Num+1,Beg_Bal),\"\"))","v":""},"",{"$error":"#VALUE!"},"",0,0]
["","","",{"$f":"IF(ISERROR(PMT(Maandelijkse_rente_percentage,(Loan_Years*12)-Pay_Num+1,Beg_Bal)),\"\",IF(Values_Entered,-PMT(Maandelijkse_rente_percentage,(Loan_Years*12)-Pay_Num+1,Beg_Bal),\"\"))","v":""},"",{"$error":"#VALUE!"},"",0,0]
["","","",{"$f":"IF(ISERROR(PMT(Maandelijkse_rente_percentage,(Loan_Years*12)-Pay_Num+1,Beg_Bal)),\"\",IF(Values_Entered,-PMT(Maandelijkse_rente_percentage,(Loan_Years*12)-Pay_Num+1,Beg_Bal),\"\"))","v":""},"",{"$error":"#VALUE!"},"",0,0]
["","","",{"$f":"IF(ISERROR(PMT(Maandelijkse_rente_percentage,(Loan_Years*12)-Pay_Num+1,Beg_Bal)),\"\",IF(Values_Entered,-PMT(Maandelijkse_rente_percentage,(Loan_Years*12)-Pay_Num+1,Beg_Bal),\"\"))","v":""},"",{"$error":"#VALUE!"},"",0,0]
["","","",{"$f":"IF(ISERROR(PMT(Maandelijkse_rente_percentage,(Loan_Years*12)-Pay_Num+1,Beg_Bal)),\"\",IF(Values_Entered,-PMT(Maandelijkse_rente_percentage,(Loan_Years*12)-Pay_Num+1,Beg_Bal),\"\"))","v":""},"",{"$error":"#VALUE!"},"",{"$f":"L17","v":0},0]
["","","",{"$f":"IF(ISERROR(PMT(Maandelijkse_rente_percentage,(Loan_Years*12)-Pay_Num+1,Beg_Bal)),\"\",IF(Values_Entered,-PMT(Maandelijkse_rente_percentage,(Loan_Years*12)-Pay_Num+1,Beg_Bal),\"\"))","v":""},"",{"$error":"#VALUE!"},"",0,0]
["","","",{"$f":"IF(ISERROR(PMT(Maandelijkse_rente_percentage,(Loan_Years*12)-Pay_Num+1,Beg_Bal)),\"\",IF(Values_Entered,-PMT(Maandelijkse_rente_percentage,(Loan_Years*12)-Pay_Num+1,Beg_Bal),\"\"))","v":""},"",{"$error":"#VALUE!"},"",0,0]
["","","",{"$f":"IF(ISERROR(PMT(Maandelijkse_rente_percentage,(Loan_Years*12)-Pay_Num+1,Beg_Bal)),\"\",IF(Values_Entered,-PMT(Maandelijkse_rente_percentage,(Loan_Years*12)-Pay_Num+1,Beg_Bal),\"\"))","v":""},"",{"$error":"#VALUE!"},"",0,0]
["","","",{"$f":"IF(ISERROR(PMT(Maandelijkse_rente_percentage,(Loan_Years*12)-Pay_Num+1,Beg_Bal)),\"\",IF(Values_Entered,-PMT(Maandelijkse_rente_percentage,(Loan_Years*12)-Pay_Num+1,Beg_Bal),\"\"))","v":""},"",{"$error":"#VALUE!"},"",0,0]
["","","",{"$f":"IF(ISERROR(PMT(Maandelijkse_rente_percentage,(Loan_Years*12)-Pay_Num+1,Beg_Bal)),\"\",IF(Values_Entered,-PMT(Maandelijkse_rente_percentage,(Loan_Years*12)-Pay_Num+1,Beg_Bal),\"\"))","v":""},"",{"$error":"#VALUE!"},"",0,0]
["","","",{"$f":"IF(ISERROR(PMT(Maandelijkse_rente_percentage,(Loan_Years*12)-Pay_Num+1,Beg_Bal)),\"\",IF(Values_Entered,-PMT(Maandelijkse_rente_percentage,(Loan_Years*12)-Pay_Num+1,Beg_Bal),\"\"))","v":""},"",{"$error":"#VALUE!"},"",0,0]
["","","",{"$f":"IF(ISERROR(PMT(Maandelijkse_rente_percentage,(Loan_Years*12)-Pay_Num+1,Beg_Bal)),\"\",IF(Values_Entered,-PMT(Maandelijkse_rente_percentage,(Loan_Years*12)-Pay_Num+1,Beg_Bal),\"\"))","v":""},"",{"$error":"#VALUE!"},"",0,0]
["","","",{"$f":"IF(ISERROR(PMT(Maandelijkse_rente_percentage,(Loan_Years*12)-Pay_Num+1,Beg_Bal)),\"\",IF(Values_Entered,-PMT(Maandelijkse_rente_percentage,(Loan_Years*12)-Pay_Num+1,Beg_Bal),\"\"))","v":""},"",{"$error":"#VALUE!"},"",0,0]
["","","",{"$f":"IF(ISERROR(PMT(Maandelijkse_rente_percentage,(Loan_Years*12)-Pay_Num+1,Beg_Bal)),\"\",IF(Values_Entered,-PMT(Maandelijkse_rente_percentage,(Loan_Years*12)-Pay_Num+1,Beg_Bal),\"\"))","v":""},"",{"$error":"#VALUE!"},"",0,0]
["","","",{"$f":"IF(ISERROR(PMT(Maandelijkse_rente_percentage,(Loan_Years*12)-Pay_Num+1,Beg_Bal)),\"\",IF(Values_Entered,-PMT(Maandelijkse_rente_percentage,(Loan_Years*12)-Pay_Num+1,Beg_Bal),\"\"))","v":""},"",{"$error":"#VALUE!"},"",0,0]
["","","",{"$f":"IF(ISERROR(PMT(Maandelijkse_rente_percentage,(Loan_Years*12)-Pay_Num+1,Beg_Bal)),\"\",IF(Values_Entered,-PMT(Maandelijkse_rente_percentage,(Loan_Years*12)-Pay_Num+1,Beg_Bal),\"\"))","v":""},"",{"$error":"#VALUE!"},"",0,0]
["","","",{"$f":"IF(ISERROR(PMT(Maandelijkse_rente_percentage,(Loan_Years*12)-Pay_Num+1,Beg_Bal)),\"\",IF(Values_Entered,-PMT(Maandelijkse_rente_percentage,(Loan_Years*12)-Pay_Num+1,Beg_Bal),\"\"))","v":""},"",{"$error":"#VALUE!"},"",{"$f":"N3","v":0},0]
["","","",{"$f":"IF(ISERROR(PMT(Maandelijkse_rente_percentage,(Loan_Years*12)-Pay_Num+1,Beg_Bal)),\"\",IF(Values_Entered,-PMT(Maandelijkse_rente_percentage,(Loan_Years*12)-Pay_Num+1,Beg_Bal),\"\"))","v":""},"",{"$error":"#VALUE!"},"",0,0]
["","","",{"$f":"IF(ISERROR(PMT(Maandelijkse_rente_percentage,(Loan_Years*12)-Pay_Num+1,Beg_Bal)),\"\",IF(Values_Entered,-PMT(Maandelijkse_rente_percentage,(Loan_Years*12)-Pay_Num+1,Beg_Bal),\"\"))","v":""},"",{"$error":"#VALUE!"},"",0,0]
["","","",{"$f":"IF(ISERROR(PMT(Maandelijkse_rente_percentage,(Loan_Years*12)-Pay_Num+1,Beg_Bal)),\"\",IF(Values_Entered,-PMT(Maandelijkse_rente_percentage,(Loan_Years*12)-Pay_Num+1,Beg_Bal),\"\"))","v":""},"",{"$error":"#VALUE!"},"",0,0]
["","","",{"$f":"IF(ISERROR(PMT(Maandelijkse_rente_percentage,(Loan_Years*12)-Pay_Num+1,Beg_Bal)),\"\",IF(Values_Entered,-PMT(Maandelijkse_rente_percentage,(Loan_Years*12)-Pay_Num+1,Beg_Bal),\"\"))","v":""},"",{"$error":"#VALUE!"},"",0,0]
["","","",{"$f":"IF(ISERROR(PMT(Maandelijkse_rente_percentage,(Loan_Years*12)-Pay_Num+1,Beg_Bal)),\"\",IF(Values_Entered,-PMT(Maandelijkse_rente_percentage,(Loan_Years*12)-Pay_Num+1,Beg_Bal),\"\"))","v":""},"",{"$error":"#VALUE!"},"",0,0]
["","","",{"$f":"IF(ISERROR(PMT(Maandelijkse_rente_percentage,(Loan_Years*12)-Pay_Num+1,Beg_Bal)),\"\",IF(Values_Entered,-PMT(Maandelijkse_rente_percentage,(Loan_Years*12)-Pay_Num+1,Beg_Bal),\"\"))","v":""},"",{"$error":"#VALUE!"},"",0,0]
["","","",{"$f":"IF(ISERROR(PMT(Maandelijkse_rente_percentage,(Loan_Years*12)-Pay_Num+1,Beg_Bal)),\"\",IF(Values_Entered,-PMT(Maandelijkse_rente_percentage,(Loan_Years*12)-Pay_Num+1,Beg_Bal),\"\"))","v":""},"",{"$error":"#VALUE!"},"",0,0]
["","","",{"$f":"IF(ISERROR(PMT(Maandelijkse_rente_percentage,(Loan_Years*12)-Pay_Num+1,Beg_Bal)),\"\",IF(Values_Entered,-PMT(Maandelijkse_rente_percentage,(Loan_Years*12)-Pay_Num+1,Beg_Bal),\"\"))","v":""},"",{"$error":"#VALUE!"},"",{"$f":"H206","v":0},0]
["","","",{"$f":"IF(ISERROR(PMT(Maandelijkse_rente_percentage,(Loan_Years*12)-Pay_Num+1,Beg_Bal)),\"\",IF(Values_Entered,-PMT(Maandelijkse_rente_percentage,(Loan_Years*12)-Pay_Num+1,Beg_Bal),\"\"))","v":""},"",{"$error":"#VALUE!"},"",0,0]
["","","",{"$f":"IF(ISERROR(PMT(Maandelijkse_rente_percentage,(Loan_Years*12)-Pay_Num+1,Beg_Bal)),\"\",IF(Values_Entered,-PMT(Maandelijkse_rente_percentage,(Loan_Years*12)-Pay_Num+1,Beg_Bal),\"\"))","v":""},"",{"$error":"#VALUE!"},"",0,0]
["","","",{"$f":"IF(ISERROR(PMT(Maandelijkse_rente_percentage,(Loan_Years*12)-Pay_Num+1,Beg_Bal)),\"\",IF(Values_Entered,-PMT(Maandelijkse_rente_percentage,(Loan_Years*12)-Pay_Num+1,Beg_Bal),\"\"))","v":""},"",{"$error":"#VALUE!"},"",0,0]
["","","",{"$f":"IF(ISERROR(PMT(Maandelijkse_rente_percentage,(Loan_Years*12)-Pay_Num+1,Beg_Bal)),\"\",IF(Values_Entered,-PMT(Maandelijkse_rente_percentage,(Loan_Years*12)-Pay_Num+1,Beg_Bal),\"\"))","v":""},{"$f":"IF(Pay_Num<>\"\",Maandelijkse_aflossing-Int,\"\")","v":""},{"$f":"Beg_Bal*Maandelijkse_rente_percentage","v":{"$error":"#VALUE!"}},"",{"$f":"N4","v":0},{"$f":"((1+Jaarlijk_rente_percentage)^(1/12))-1","v":0}]
[{"$f":"IF(Values_Entered,A211+1,\"\")","v":""},{"$f":"IF(Pay_Num<>\"\",DATE(YEAR(B211),MONTH(B211)+1,DAY(B211)),\"\")","v":""},"",{"$f":"IF(ISERROR(PMT(Maandelijkse_rente_percentage,(Loan_Years*12)-Pay_Num+1,Beg_Bal)),\"\",IF(Values_Entered,-PMT(Maandelijkse_rente_percentage,(Loan_Years*12)-Pay_Num+1,Beg_Bal),\"\"))","v":""},"",{"$error":"#VALUE!"},{"$f":"IF(Pay_Num<>\"\",Beg_Bal-Princ,\"\")","v":""},0,0]
["","",{"$f":"IF(Pay_Num<>\"\",G212,\"\")","v":""},{"$f":"IF(ISERROR(PMT(Maandelijkse_rente_percentage,(Loan_Years*12)-Pay_Num+1,Beg_Bal)),\"\",IF(Values_Entered,-PMT(Maandelijkse_rente_percentage,(Loan_Years*12)-Pay_Num+1,Beg_Bal),\"\"))","v":""},"",{"$error":"#VALUE!"},"",0,0]
["","","",{"$f":"IF(ISERROR(PMT(Maandelijkse_rente_percentage,(Loan_Years*12)-Pay_Num+1,Beg_Bal)),\"\",IF(Values_Entered,-PMT(Maandelijkse_rente_percentage,(Loan_Years*12)-Pay_Num+1,Beg_Bal),\"\"))","v":""},"",{"$error":"#VALUE!"},"",0,0]
["","","",{"$f":"IF(ISERROR(PMT(Maandelijkse_rente_percentage,(Loan_Years*12)-Pay_Num+1,Beg_Bal)),\"\",IF(Values_Entered,-PMT(Maandelijkse_rente_percentage,(Loan_Years*12)-Pay_Num+1,Beg_Bal),\"\"))","v":""},"",{"$error":"#VALUE!"},"",0,0]
["","","",{"$f":"IF(ISERROR(PMT(Maandelijkse_rente_percentage,(Loan_Years*12)-Pay_Num+1,Beg_Bal)),\"\",IF(Values_Entered,-PMT(Maandelijkse_rente_percentage,(Loan_Years*12)-Pay_Num+1,Beg_Bal),\"\"))","v":""},"",{"$error":"#VALUE!"},"",0,0]
["","","",{"$f":"IF(ISERROR(PMT(Maandelijkse_rente_percentage,(Loan_Years*12)-Pay_Num+1,Beg_Bal)),\"\",IF(Values_Entered,-PMT(Maandelijkse_rente_percentage,(Loan_Years*12)-Pay_Num+1,Beg_Bal),\"\"))","v":""},"",{"$error":"#VALUE!"},"",0,0]
["","","",{"$f":"IF(ISERROR(PMT(Maandelijkse_rente_percentage,(Loan_Years*12)-Pay_Num+1,Beg_Bal)),\"\",IF(Values_Entered,-PMT(Maandelijkse_rente_percentage,(Loan_Years*12)-Pay_Num+1,Beg_Bal),\"\"))","v":""},"",{"$error":"#VALUE!"},"",0,0]
["","","",{"$f":"IF(ISERROR(PMT(Maandelijkse_rente_percentage,(Loan_Years*12)-Pay_Num+1,Beg_Bal)),\"\",IF(Values_Entered,-PMT(Maandelijkse_rente_percentage,(Loan_Years*12)-Pay_Num+1,Beg_Bal),\"\"))","v":""},"",{"$error":"#VALUE!"},"",0,0]
["","","",{"$f":"IF(ISERROR(PMT(Maandelijkse_rente_percentage,(Loan_Years*12)-Pay_Num+1,Beg_Bal)),\"\",IF(Values_Entered,-PMT(Maandelijkse_rente_percentage,(Loan_Years*12)-Pay_Num+1,Beg_Bal),\"\"))","v":""},"",{"$error":"#VALUE!"},"",0,0]
["","","",{"$f":"IF(ISERROR(PMT(Maandelijkse_rente_percentage,(Loan_Years*12)-Pay_Num+1,Beg_Bal)),\"\",IF(Values_Entered,-PMT(Maandelijkse_rente_percentage,(Loan_Years*12)-Pay_Num+1,Beg_Bal),\"\"))","v":""},"",{"$error":"#VALUE!"},"",0,0]
["","","",{"$f":"IF(ISERROR(PMT(Maandelijkse_rente_percentage,(Loan_Years*12)-Pay_Num+1,Beg_Bal)),\"\",IF(Values_Entered,-PMT(Maandelijkse_rente_percentage,(Loan_Years*12)-Pay_Num+1,Beg_Bal),\"\"))","v":""},"",{"$error":"#VALUE!"},"",0,0]
["","","",{"$f":"IF(ISERROR(PMT(Maandelijkse_rente_percentage,(Loan_Years*12)-Pay_Num+1,Beg_Bal)),\"\",IF(Values_Entered,-PMT(Maandelijkse_rente_percentage,(Loan_Years*12)-Pay_Num+1,Beg_Bal),\"\"))","v":""},"",{"$error":"#VALUE!"},"",{"$f":"N5","v":0},0]
["","","",{"$f":"IF(ISERROR(PMT(Maandelijkse_rente_percentage,(Loan_Years*12)-Pay_Num+1,Beg_Bal)),\"\",IF(Values_Entered,-PMT(Maandelijkse_rente_percentage,(Loan_Years*12)-Pay_Num+1,Beg_Bal),\"\"))","v":""},"",{"$error":"#VALUE!"},"",0,0]
["","","",{"$f":"IF(ISERROR(PMT(Maandelijkse_rente_percentage,(Loan_Years*12)-Pay_Num+1,Beg_Bal)),\"\",IF(Values_Entered,-PMT(Maandelijkse_rente_percentage,(Loan_Years*12)-Pay_Num+1,Beg_Bal),\"\"))","v":""},"",{"$error":"#VALUE!"},"",0,0]
["","","",{"$f":"IF(ISERROR(PMT(Maandelijkse_rente_percentage,(Loan_Years*12)-Pay_Num+1,Beg_Bal)),\"\",IF(Values_Entered,-PMT(Maandelijkse_rente_percentage,(Loan_Years*12)-Pay_Num+1,Beg_Bal),\"\"))","v":""},"",{"$error":"#VALUE!"},"",0,0]
["","","",{"$f":"IF(ISERROR(PMT(Maandelijkse_rente_percentage,(Loan_Years*12)-Pay_Num+1,Beg_Bal)),\"\",IF(Values_Entered,-PMT(Maandelijkse_rente_percentage,(Loan_Years*12)-Pay_Num+1,Beg_Bal),\"\"))","v":""},"",{"$error":"#VALUE!"},"",0,0]
["","","",{"$f":"IF(ISERROR(PMT(Maandelijkse_rente_percentage,(Loan_Years*12)-Pay_Num+1,Beg_Bal)),\"\",IF(Values_Entered,-PMT(Maandelijkse_rente_percentage,(Loan_Years*12)-Pay_Num+1,Beg_Bal),\"\"))","v":""},"",{"$error":"#VALUE!"},"",0,0]
["","","",{"$f":"IF(ISERROR(PMT(Maandelijkse_rente_percentage,(Loan_Years*12)-Pay_Num+1,Beg_Bal)),\"\",IF(Values_Entered,-PMT(Maandelijkse_rente_percentage,(Loan_Years*12)-Pay_Num+1,Beg_Bal),\"\"))","v":""},"",{"$error":"#VALUE!"},"",0,0]
["","","",{"$f":"IF(ISERROR(PMT(Maandelijkse_rente_percentage,(Loan_Years*12)-Pay_Num+1,Beg_Bal)),\"\",IF(Values_Entered,-PMT(Maandelijkse_rente_percentage,(Loan_Years*12)-Pay_Num+1,Beg_Bal),\"\"))","v":""},"",{"$error":"#VALUE!"},"",0,0]
["","","",{"$f":"IF(ISERROR(PMT(Maandelijkse_rente_percentage,(Loan_Years*12)-Pay_Num+1,Beg_Bal)),\"\",IF(Values_Entered,-PMT(Maandelijkse_rente_percentage,(Loan_Years*12)-Pay_Num+1,Beg_Bal),\"\"))","v":""},"",{"$error":"#VALUE!"},"",0,0]
["","","",{"$f":"IF(ISERROR(PMT(Maandelijkse_rente_percentage,(Loan_Years*12)-Pay_Num+1,Beg_Bal)),\"\",IF(Values_Entered,-PMT(Maandelijkse_rente_percentage,(Loan_Years*12)-Pay_Num+1,Beg_Bal),\"\"))","v":""},"",{"$error":"#VALUE!"},"",0,0]
["","","",{"$f":"IF(ISERROR(PMT(Maandelijkse_rente_percentage,(Loan_Years*12)-Pay_Num+1,Beg_Bal)),\"\",IF(Values_Entered,-PMT(Maandelijkse_rente_percentage,(Loan_Years*12)-Pay_Num+1,Beg_Bal),\"\"))","v":""},"",{"$error":"#VALUE!"},"",0,0]
["","","",{"$f":"IF(ISERROR(PMT(Maandelijkse_rente_percentage,(Loan_Years*12)-Pay_Num+1,Beg_Bal)),\"\",IF(Values_Entered,-PMT(Maandelijkse_rente_percentage,(Loan_Years*12)-Pay_Num+1,Beg_Bal),\"\"))","v":""},"",{"$error":"#VALUE!"},"",0,0]
["","","",{"$f":"IF(ISERROR(PMT(Maandelijkse_rente_percentage,(Loan_Years*12)-Pay_Num+1,Beg_Bal)),\"\",IF(Values_Entered,-PMT(Maandelijkse_rente_percentage,(Loan_Years*12)-Pay_Num+1,Beg_Bal),\"\"))","v":""},"",{"$error":"#VALUE!"},"",{"$f":"N6","v":0},0]
["","","",{"$f":"IF(ISERROR(PMT(Maandelijkse_rente_percentage,(Loan_Years*12)-Pay_Num+1,Beg_Bal)),\"\",IF(Values_Entered,-PMT(Maandelijkse_rente_percentage,(Loan_Years*12)-Pay_Num+1,Beg_Bal),\"\"))","v":""},"",{"$error":"#VALUE!"},"",0,0]
["","","",{"$f":"IF(ISERROR(PMT(Maandelijkse_rente_percentage,(Loan_Years*12)-Pay_Num+1,Beg_Bal)),\"\",IF(Values_Entered,-PMT(Maandelijkse_rente_percentage,(Loan_Years*12)-Pay_Num+1,Beg_Bal),\"\"))","v":""},"",{"$error":"#VALUE!"},"",0,0]
["","","",{"$f":"IF(ISERROR(PMT(Maandelijkse_rente_percentage,(Loan_Years*12)-Pay_Num+1,Beg_Bal)),\"\",IF(Values_Entered,-PMT(Maandelijkse_rente_percentage,(Loan_Years*12)-Pay_Num+1,Beg_Bal),\"\"))","v":""},"",{"$error":"#VALUE!"},"",0,0]
["","","",{"$f":"IF(ISERROR(PMT(Maandelijkse_rente_percentage,(Loan_Years*12)-Pay_Num+1,Beg_Bal)),\"\",IF(Values_Entered,-PMT(Maandelijkse_rente_percentage,(Loan_Years*12)-Pay_Num+1,Beg_Bal),\"\"))","v":""},"",{"$error":"#VALUE!"},"",0,0]
["","","",{"$f":"IF(ISERROR(PMT(Maandelijkse_rente_percentage,(Loan_Years*12)-Pay_Num+1,Beg_Bal)),\"\",IF(Values_Entered,-PMT(Maandelijkse_rente_percentage,(Loan_Years*12)-Pay_Num+1,Beg_Bal),\"\"))","v":""},"",{"$error":"#VALUE!"},"",0,0]
["","","",{"$f":"IF(ISERROR(PMT(Maandelijkse_rente_percentage,(Loan_Years*12)-Pay_Num+1,Beg_Bal)),\"\",IF(Values_Entered,-PMT(Maandelijkse_rente_percentage,(Loan_Years*12)-Pay_Num+1,Beg_Bal),\"\"))","v":""},"",{"$error":"#VALUE!"},"",0,0]
["","","",{"$f":"IF(ISERROR(PMT(Maandelijkse_rente_percentage,(Loan_Years*12)-Pay_Num+1,Beg_Bal)),\"\",IF(Values_Entered,-PMT(Maandelijkse_rente_percentage,(Loan_Years*12)-Pay_Num+1,Beg_Bal),\"\"))","v":""},"",{"$error":"#VALUE!"},"",0,0]
["","","",{"$f":"IF(ISERROR(PMT(Maandelijkse_rente_percentage,(Loan_Years*12)-Pay_Num+1,Beg_Bal)),\"\",IF(Values_Entered,-PMT(Maandelijkse_rente_percentage,(Loan_Years*12)-Pay_Num+1,Beg_Bal),\"\"))","v":""},"",{"$error":"#VALUE!"},"",0,0]
["","","",{"$f":"IF(ISERROR(PMT(Maandelijkse_rente_percentage,(Loan_Years*12)-Pay_Num+1,Beg_Bal)),\"\",IF(Values_Entered,-PMT(Maandelijkse_rente_percentage,(Loan_Years*12)-Pay_Num+1,Beg_Bal),\"\"))","v":""},"",{"$error":"#VALUE!"},"",0,0]
["","","",{"$f":"IF(ISERROR(PMT(Maandelijkse_rente_percentage,(Loan_Years*12)-Pay_Num+1,Beg_Bal)),\"\",IF(Values_Entered,-PMT(Maandelijkse_rente_percentage,(Loan_Years*12)-Pay_Num+1,Beg_Bal),\"\"))","v":""},"",{"$error":"#VALUE!"},"",0,0]
["","","",{"$f":"IF(ISERROR(PMT(Maandelijkse_rente_percentage,(Loan_Years*12)-Pay_Num+1,Beg_Bal)),\"\",IF(Values_Entered,-PMT(Maandelijkse_rente_percentage,(Loan_Years*12)-Pay_Num+1,Beg_Bal),\"\"))","v":""},"",{"$error":"#VALUE!"},"",0,0]
["","","",{"$f":"IF(ISERROR(PMT(Maandelijkse_rente_percentage,(Loan_Years*12)-Pay_Num+1,Beg_Bal)),\"\",IF(Values_Entered,-PMT(Maandelijkse_rente_percentage,(Loan_Years*12)-Pay_Num+1,Beg_Bal),\"\"))","v":""},"",{"$error":"#VALUE!"},"",{"$f":"N7","v":0},0]
["","","",{"$f":"IF(ISERROR(PMT(Maandelijkse_rente_percentage,(Loan_Years*12)-Pay_Num+1,Beg_Bal)),\"\",IF(Values_Entered,-PMT(Maandelijkse_rente_percentage,(Loan_Years*12)-Pay_Num+1,Beg_Bal),\"\"))","v":""},"",{"$error":"#VALUE!"},"",0,0]
["","","",{"$f":"IF(ISERROR(PMT(Maandelijkse_rente_percentage,(Loan_Years*12)-Pay_Num+1,Beg_Bal)),\"\",IF(Values_Entered,-PMT(Maandelijkse_rente_percentage,(Loan_Years*12)-Pay_Num+1,Beg_Bal),\"\"))","v":""},"",{"$error":"#VALUE!"},"",0,0]
["","","",{"$f":"IF(ISERROR(PMT(Maandelijkse_rente_percentage,(Loan_Years*12)-Pay_Num+1,Beg_Bal)),\"\",IF(Values_Entered,-PMT(Maandelijkse_rente_percentage,(Loan_Years*12)-Pay_Num+1,Beg_Bal),\"\"))","v":""},"",{"$error":"#VALUE!"},"",0,0]
["","","",{"$f":"IF(ISERROR(PMT(Maandelijkse_rente_percentage,(Loan_Years*12)-Pay_Num+1,Beg_Bal)),\"\",IF(Values_Entered,-PMT(Maandelijkse_rente_percentage,(Loan_Years*12)-Pay_Num+1,Beg_Bal),\"\"))","v":""},"",{"$error":"#VALUE!"},"",0,0]
["","","",{"$f":"IF(ISERROR(PMT(Maandelijkse_rente_percentage,(Loan_Years*12)-Pay_Num+1,Beg_Bal)),\"\",IF(Values_Entered,-PMT(Maandelijkse_rente_percentage,(Loan_Years*12)-Pay_Num+1,Beg_Bal),\"\"))","v":""},"",{"$error":"#VALUE!"},"",0,0]
["","","",{"$f":"IF(ISERROR(PMT(Maandelijkse_rente_percentage,(Loan_Years*12)-Pay_Num+1,Beg_Bal)),\"\",IF(Values_Entered,-PMT(Maandelijkse_rente_percentage,(Loan_Years*12)-Pay_Num+1,Beg_Bal),\"\"))","v":""},"",{"$error":"#VALUE!"},"",0,0]
["","","",{"$f":"IF(ISERROR(PMT(Maandelijkse_rente_percentage,(Loan_Years*12)-Pay_Num+1,Beg_Bal)),\"\",IF(Values_Entered,-PMT(Maandelijkse_rente_percentage,(Loan_Years*12)-Pay_Num+1,Beg_Bal),\"\"))","v":""},"",{"$error":"#VALUE!"},"",0,0]
["","","",{"$f":"IF(ISERROR(PMT(Maandelijkse_rente_percentage,(Loan_Years*12)-Pay_Num+1,Beg_Bal)),\"\",IF(Values_Entered,-PMT(Maandelijkse_rente_percentage,(Loan_Years*12)-Pay_Num+1,Beg_Bal),\"\"))","v":""},"",{"$error":"#VALUE!"},"",0,0]
["","","",{"$f":"IF(ISERROR(PMT(Maandelijkse_rente_percentage,(Loan_Years*12)-Pay_Num+1,Beg_Bal)),\"\",IF(Values_Entered,-PMT(Maandelijkse_rente_percentage,(Loan_Years*12)-Pay_Num+1,Beg_Bal),\"\"))","v":""},"",{"$error":"#VALUE!"},"",0,0]
["","","",{"$f":"IF(ISERROR(PMT(Maandelijkse_rente_percentage,(Loan_Years*12)-Pay_Num+1,Beg_Bal)),\"\",IF(Values_Entered,-PMT(Maandelijkse_rente_percentage,(Loan_Years*12)-Pay_Num+1,Beg_Bal),\"\"))","v":""},"",{"$error":"#VALUE!"},"",0,0]
["","","",{"$f":"IF(ISERROR(PMT(Maandelijkse_rente_percentage,(Loan_Years*12)-Pay_Num+1,Beg_Bal)),\"\",IF(Values_Entered,-PMT(Maandelijkse_rente_percentage,(Loan_Years*12)-Pay_Num+1,Beg_Bal),\"\"))","v":""},"",{"$error":"#VALUE!"},"",0,0]
["","","",{"$f":"IF(ISERROR(PMT(Maandelijkse_rente_percentage,(Loan_Years*12)-Pay_Num+1,Beg_Bal)),\"\",IF(Values_Entered,-PMT(Maandelijkse_rente_percentage,(Loan_Years*12)-Pay_Num+1,Beg_Bal),\"\"))","v":""},"",{"$error":"#VALUE!"},"",{"$f":"N8","v":0},0]
["","","",{"$f":"IF(ISERROR(PMT(Maandelijkse_rente_percentage,(Loan_Years*12)-Pay_Num+1,Beg_Bal)),\"\",IF(Values_Entered,-PMT(Maandelijkse_rente_percentage,(Loan_Years*12)-Pay_Num+1,Beg_Bal),\"\"))","v":""},"",{"$error":"#VALUE!"},"",0,0]
["","","",{"$f":"IF(ISERROR(PMT(Maandelijkse_rente_percentage,(Loan_Years*12)-Pay_Num+1,Beg_Bal)),\"\",IF(Values_Entered,-PMT(Maandelijkse_rente_percentage,(Loan_Years*12)-Pay_Num+1,Beg_Bal),\"\"))","v":""},"",{"$error":"#VALUE!"},"",0,0]
["","","",{"$f":"IF(ISERROR(PMT(Maandelijkse_rente_percentage,(Loan_Years*12)-Pay_Num+1,Beg_Bal)),\"\",IF(Values_Entered,-PMT(Maandelijkse_rente_percentage,(Loan_Years*12)-Pay_Num+1,Beg_Bal),\"\"))","v":""},"",{"$error":"#VALUE!"},"",0,0]
["","","",{"$f":"IF(ISERROR(PMT(Maandelijkse_rente_percentage,(Loan_Years*12)-Pay_Num+1,Beg_Bal)),\"\",IF(Values_Entered,-PMT(Maandelijkse_rente_percentage,(Loan_Years*12)-Pay_Num+1,Beg_Bal),\"\"))","v":""},"",{"$error":"#VALUE!"},"",0,0]
["","","",{"$f":"IF(ISERROR(PMT(Maandelijkse_rente_percentage,(Loan_Years*12)-Pay_Num+1,Beg_Bal)),\"\",IF(Values_Entered,-PMT(Maandelijkse_rente_percentage,(Loan_Years*12)-Pay_Num+1,Beg_Bal),\"\"))","v":""},"",{"$error":"#VALUE!"},"",0,0]
["","","",{"$f":"IF(ISERROR(PMT(Maandelijkse_rente_percentage,(Loan_Years*12)-Pay_Num+1,Beg_Bal)),\"\",IF(Values_Entered,-PMT(Maandelijkse_rente_percentage,(Loan_Years*12)-Pay_Num+1,Beg_Bal),\"\"))","v":""},"",{"$error":"#VALUE!"},"",0,0]
["","","",{"$f":"IF(ISERROR(PMT(Maandelijkse_rente_percentage,(Loan_Years*12)-Pay_Num+1,Beg_Bal)),\"\",IF(Values_Entered,-PMT(Maandelijkse_rente_percentage,(Loan_Years*12)-Pay_Num+1,Beg_Bal),\"\"))","v":""},"",{"$error":"#VALUE!"},"",0,0]
["","","",{"$f":"IF(ISERROR(PMT(Maandelijkse_rente_percentage,(Loan_Years*12)-Pay_Num+1,Beg_Bal)),\"\",IF(Values_Entered,-PMT(Maandelijkse_rente_percentage,(Loan_Years*12)-Pay_Num+1,Beg_Bal),\"\"))","v":""},"",{"$error":"#VALUE!"},"",0,0]
["","","",{"$f":"IF(ISERROR(PMT(Maandelijkse_rente_percentage,(Loan_Years*12)-Pay_Num+1,Beg_Bal)),\"\",IF(Values_Entered,-PMT(Maandelijkse_rente_percentage,(Loan_Years*12)-Pay_Num+1,Beg_Bal),\"\"))","v":""},"",{"$error":"#VALUE!"},"",0,0]
["","","",{"$f":"IF(ISERROR(PMT(Maandelijkse_rente_percentage,(Loan_Years*12)-Pay_Num+1,Beg_Bal)),\"\",IF(Values_Entered,-PMT(Maandelijkse_rente_percentage,(Loan_Years*12)-Pay_Num+1,Beg_Bal),\"\"))","v":""},"",{"$error":"#VALUE!"},"",0,0]
["","","",{"$f":"IF(ISERROR(PMT(Maandelijkse_rente_percentage,(Loan_Years*12)-Pay_Num+1,Beg_Bal)),\"\",IF(Values_Entered,-PMT(Maandelijkse_rente_percentage,(Loan_Years*12)-Pay_Num+1,Beg_Bal),\"\"))","v":""},"",{"$error":"#VALUE!"},"",0,0]
["","","",{"$f":"IF(ISERROR(PMT(Maandelijkse_rente_percentage,(Loan_Years*12)-Pay_Num+1,Beg_Bal)),\"\",IF(Values_Entered,-PMT(Maandelijkse_rente_percentage,(Loan_Years*12)-Pay_Num+1,Beg_Bal),\"\"))","v":""},"",{"$error":"#VALUE!"},"",{"$f":"N9","v":0},0]
["","","",{"$f":"IF(ISERROR(PMT(Maandelijkse_rente_percentage,(Loan_Years*12)-Pay_Num+1,Beg_Bal)),\"\",IF(Values_Entered,-PMT(Maandelijkse_rente_percentage,(Loan_Years*12)-Pay_Num+1,Beg_Bal),\"\"))","v":""},"",{"$error":"#VALUE!"},"",{"$f":"H271","v":0},0]
["","","",{"$f":"IF(ISERROR(PMT(Maandelijkse_rente_percentage,(Loan_Years*12)-Pay_Num+1,Beg_Bal)),\"\",IF(Values_Entered,-PMT(Maandelijkse_rente_percentage,(Loan_Years*12)-Pay_Num+1,Beg_Bal),\"\"))","v":""},"",{"$error":"#VALUE!"},"",0,0]
["","","",{"$f":"IF(ISERROR(PMT(Maandelijkse_rente_percentage,(Loan_Years*12)-Pay_Num+1,Beg_Bal)),\"\",IF(Values_Entered,-PMT(Maandelijkse_rente_percentage,(Loan_Years*12)-Pay_Num+1,Beg_Bal),\"\"))","v":""},"",{"$error":"#VALUE!"},"",0,0]
["","","",{"$f":"IF(ISERROR(PMT(Maandelijkse_rente_percentage,(Loan_Years*12)-Pay_Num+1,Beg_Bal)),\"\",IF(Values_Entered,-PMT(Maandelijkse_rente_percentage,(Loan_Years*12)-Pay_Num+1,Beg_Bal),\"\"))","v":""},{"$f":"IF(Pay_Num<>\"\",Maandelijkse_aflossing-Int,\"\")","v":""},{"$f":"Beg_Bal*Maandelijkse_rente_percentage","v":{"$error":"#VALUE!"}},"",0,{"$f":"((1+Jaarlijk_rente_percentage)^(1/12))-1","v":0}]
[{"$f":"IF(Values_Entered,A275+1,\"\")","v":""},{"$f":"IF(Pay_Num<>\"\",DATE(YEAR(B275),MONTH(B275)+1,DAY(B275)),\"\")","v":""},"",{"$f":"IF(ISERROR(PMT(Maandelijkse_rente_percentage,(Loan_Years*12)-Pay_Num+1,Beg_Bal)),\"\",IF(Values_Entered,-PMT(Maandelijkse_rente_percentage,(Loan_Years*12)-Pay_Num+1,Beg_Bal),\"\"))","v":""},"",{"$error":"#VALUE!"},{"$f":"IF(Pay_Num<>\"\",Beg_Bal-Princ,\"\")","v":""},0,0]
["","",{"$f":"IF(Pay_Num<>\"\",G276,\"\")","v":""},{"$f":"IF(ISERROR(PMT(Maandelijkse_rente_percentage,(Loan_Years*12)-Pay_Num+1,Beg_Bal)),\"\",IF(Values_Entered,-PMT(Maandelijkse_rente_percentage,(Loan_Years*12)-Pay_Num+1,Beg_Bal),\"\"))","v":""},"",{"$error":"#VALUE!"},"",0,0]
["","","",{"$f":"IF(ISERROR(PMT(Maandelijkse_rente_percentage,(Loan_Years*12)-Pay_Num+1,Beg_Bal)),\"\",IF(Values_Entered,-PMT(Maandelijkse_rente_percentage,(Loan_Years*12)-Pay_Num+1,Beg_Bal),\"\"))","v":""},"",{"$error":"#VALUE!"},"",0,0]
["","","",{"$f":"IF(ISERROR(PMT(Maandelijkse_rente_percentage,(Loan_Years*12)-Pay_Num+1,Beg_Bal)),\"\",IF(Values_Entered,-PMT(Maandelijkse_rente_percentage,(Loan_Years*12)-Pay_Num+1,Beg_Bal),\"\"))","v":""},"",{"$error":"#VALUE!"},"",0,0]
["","","",{"$f":"IF(ISERROR(PMT(Maandelijkse_rente_percentage,(Loan_Years*12)-Pay_Num+1,Beg_Bal)),\"\",IF(Values_Entered,-PMT(Maandelijkse_rente_percentage,(Loan_Years*12)-Pay_Num+1,Beg_Bal),\"\"))","v":""},"",{"$error":"#VALUE!"},"",0,0]
["","","",{"$f":"IF(ISERROR(PMT(Maandelijkse_rente_percentage,(Loan_Years*12)-Pay_Num+1,Beg_Bal)),\"\",IF(Values_Entered,-PMT(Maandelijkse_rente_percentage,(Loan_Years*12)-Pay_Num+1,Beg_Bal),\"\"))","v":""},"",{"$error":"#VALUE!"},"",0,0]
["","","",{"$f":"IF(ISERROR(PMT(Maandelijkse_rente_percentage,(Loan_Years*12)-Pay_Num+1,Beg_Bal)),\"\",IF(Values_Entered,-PMT(Maandelijkse_rente_percentage,(Loan_Years*12)-Pay_Num+1,Beg_Bal),\"\"))","v":""},"",{"$error":"#VALUE!"},"",0,0]
["","","",{"$f":"IF(ISERROR(PMT(Maandelijkse_rente_percentage,(Loan_Years*12)-Pay_Num+1,Beg_Bal)),\"\",IF(Values_Entered,-PMT(Maandelijkse_rente_percentage,(Loan_Years*12)-Pay_Num+1,Beg_Bal),\"\"))","v":""},"",{"$error":"#VALUE!"},"",{"$f":"N10","v":0},0]
["","","",{"$f":"IF(ISERROR(PMT(Maandelijkse_rente_percentage,(Loan_Years*12)-Pay_Num+1,Beg_Bal)),\"\",IF(Values_Entered,-PMT(Maandelijkse_rente_percentage,(Loan_Years*12)-Pay_Num+1,Beg_Bal),\"\"))","v":""},"",{"$error":"#VALUE!"},"",0,0]
["","","",{"$f":"IF(ISERROR(PMT(Maandelijkse_rente_percentage,(Loan_Years*12)-Pay_Num+1,Beg_Bal)),\"\",IF(Values_Entered,-PMT(Maandelijkse_rente_percentage,(Loan_Years*12)-Pay_Num+1,Beg_Bal),\"\"))","v":""},"",{"$error":"#VALUE!"},"",0,0]
["","","",{"$f":"IF(ISERROR(PMT(Maandelijkse_rente_percentage,(Loan_Years*12)-Pay_Num+1,Beg_Bal)),\"\",IF(Values_Entered,-PMT(Maandelijkse_rente_percentage,(Loan_Years*12)-Pay_Num+1,Beg_Bal),\"\"))","v":""},"",{"$error":"#VALUE!"},"",0,0]
["","","",{"$f":"IF(ISERROR(PMT(Maandelijkse_rente_percentage,(Loan_Years*12)-Pay_Num+1,Beg_Bal)),\"\",IF(Values_Entered,-PMT(Maandelijkse_rente_percentage,(Loan_Years*12)-Pay_Num+1,Beg_Bal),\"\"))","v":""},"",{"$error":"#VALUE!"},"",0,0]
["","","",{"$f":"IF(ISERROR(PMT(Maandelijkse_rente_percentage,(Loan_Years*12)-Pay_Num+1,Beg_Bal)),\"\",IF(Values_Entered,-PMT(Maandelijkse_rente_percentage,(Loan_Years*12)-Pay_Num+1,Beg_Bal),\"\"))","v":""},"",{"$error":"#VALUE!"},"",0,0]
["","","",{"$f":"IF(ISERROR(PMT(Maandelijkse_rente_percentage,(Loan_Years*12)-Pay_Num+1,Beg_Bal)),\"\",IF(Values_Entered,-PMT(Maandelijkse_rente_percentage,(Loan_Years*12)-Pay_Num+1,Beg_Bal),\"\"))","v":""},"",{"$error":"#VALUE!"},"",0,0]
["","","",{"$f":"IF(ISERROR(PMT(Maandelijkse_rente_percentage,(Loan_Years*12)-Pay_Num+1,Beg_Bal)),\"\",IF(Values_Entered,-PMT(Maandelijkse_rente_percentage,(Loan_Years*12)-Pay_Num+1,Beg_Bal),\"\"))","v":""},"",{"$error":"#VALUE!"},"",0,0]
["","","",{"$f":"IF(ISERROR(PMT(Maandelijkse_rente_percentage,(Loan_Years*12)-Pay_Num+1,Beg_Bal)),\"\",IF(Values_Entered,-PMT(Maandelijkse_rente_percentage,(Loan_Years*12)-Pay_Num+1,Beg_Bal),\"\"))","v":""},"",{"$error":"#VALUE!"},"",0,0]
["","","",{"$f":"IF(ISERROR(PMT(Maandelijkse_rente_percentage,(Loan_Years*12)-Pay_Num+1,Beg_Bal)),\"\",IF(Values_Entered,-PMT(Maandelijkse_rente_percentage,(Loan_Years*12)-Pay_Num+1,Beg_Bal),\"\"))","v":""},"",{"$error":"#VALUE!"},"",0,0]
["","","",{"$f":"IF(ISERROR(PMT(Maandelijkse_rente_percentage,(Loan_Years*12)-Pay_Num+1,Beg_Bal)),\"\",IF(Values_Entered,-PMT(Maandelijkse_rente_percentage,(Loan_Years*12)-Pay_Num+1,Beg_Bal),\"\"))","v":""},"",{"$error":"#VALUE!"},"",0,0]
["","","",{"$f":"IF(ISERROR(PMT(Maandelijkse_rente_percentage,(Loan_Years*12)-Pay_Num+1,Beg_Bal)),\"\",IF(Values_Entered,-PMT(Maandelijkse_rente_percentage,(Loan_Years*12)-Pay_Num+1,Beg_Bal),\"\"))","v":""},"",{"$error":"#VALUE!"},"",0,0]
["","","",{"$f":"IF(ISERROR(PMT(Maandelijkse_rente_percentage,(Loan_Years*12)-Pay_Num+1,Beg_Bal)),\"\",IF(Values_Entered,-PMT(Maandelijkse_rente_percentage,(Loan_Years*12)-Pay_Num+1,Beg_Bal),\"\"))","v":""},"",{"$error":"#VALUE!"},"",{"$f":"N11","v":0},0]
["","","",{"$f":"IF(ISERROR(PMT(Maandelijkse_rente_percentage,(Loan_Years*12)-Pay_Num+1,Beg_Bal)),\"\",IF(Values_Entered,-PMT(Maandelijkse_rente_percentage,(Loan_Years*12)-Pay_Num+1,Beg_Bal),\"\"))","v":""},"",{"$error":"#VALUE!"},"",0,0]
["","","",{"$f":"IF(ISERROR(PMT(Maandelijkse_rente_percentage,(Loan_Years*12)-Pay_Num+1,Beg_Bal)),\"\",IF(Values_Entered,-PMT(Maandelijkse_rente_percentage,(Loan_Years*12)-Pay_Num+1,Beg_Bal),\"\"))","v":""},"",{"$error":"#VALUE!"},"",0,0]
["","","",{"$f":"IF(ISERROR(PMT(Maandelijkse_rente_percentage,(Loan_Years*12)-Pay_Num+1,Beg_Bal)),\"\",IF(Values_Entered,-PMT(Maandelijkse_rente_percentage,(Loan_Years*12)-Pay_Num+1,Beg_Bal),\"\"))","v":""},"",{"$error":"#VALUE!"},"",0,0]
["","","",{"$f":"IF(ISERROR(PMT(Maandelijkse_rente_percentage,(Loan_Years*12)-Pay_Num+1,Beg_Bal)),\"\",IF(Values_Entered,-PMT(Maandelijkse_rente_percentage,(Loan_Years*12)-Pay_Num+1,Beg_Bal),\"\"))","v":""},"",{"$error":"#VALUE!"},"",0,0]
["","","",{"$f":"IF(ISERROR(PMT(Maandelijkse_rente_percentage,(Loan_Years*12)-Pay_Num+1,Beg_Bal)),\"\",IF(Values_Entered,-PMT(Maandelijkse_rente_percentage,(Loan_Years*12)-Pay_Num+1,Beg_Bal),\"\"))","v":""},"",{"$error":"#VALUE!"},"",0,0]
["","","",{"$f":"IF(ISERROR(PMT(Maandelijkse_rente_percentage,(Loan_Years*12)-Pay_Num+1,Beg_Bal)),\"\",IF(Values_Entered,-PMT(Maandelijkse_rente_percentage,(Loan_Years*12)-Pay_Num+1,Beg_Bal),\"\"))","v":""},"",{"$error":"#VALUE!"},"",0,0]
["","","",{"$f":"IF(ISERROR(PMT(Maandelijkse_rente_percentage,(Loan_Years*12)-Pay_Num+1,Beg_Bal)),\"\",IF(Values_Entered,-PMT(Maandelijkse_rente_percentage,(Loan_Years*12)-Pay_Num+1,Beg_Bal),\"\"))","v":""},"",{"$error":"#VALUE!"},"",0,0]
["","","",{"$f":"IF(ISERROR(PMT(Maandelijkse_rente_percentage,(Loan_Years*12)-Pay_Num+1,Beg_Bal)),\"\",IF(Values_Entered,-PMT(Maandelijkse_rente_percentage,(Loan_Years*12)-Pay_Num+1,Beg_Bal),\"\"))","v":""},"",{"$error":"#VALUE!"},"",0,0]
["","","",{"$f":"IF(ISERROR(PMT(Maandelijkse_rente_percentage,(Loan_Years*12)-Pay_Num+1,Beg_Bal)),\"\",IF(Values_Entered,-PMT(Maandelijkse_rente_percentage,(Loan_Years*12)-Pay_Num+1,Beg_Bal),\"\"))","v":""},"",{"$error":"#VALUE!"},"",0,0]
["","","",{"$f":"IF(ISERROR(PMT(Maandelijkse_rente_percentage,(Loan_Years*12)-Pay_Num+1,Beg_Bal)),\"\",IF(Values_Entered,-PMT(Maandelijkse_rente_percentage,(Loan_Years*12)-Pay_Num+1,Beg_Bal),\"\"))","v":""},"",{"$error":"#VALUE!"},"",0,0]
["","","",{"$f":"IF(ISERROR(PMT(Maandelijkse_rente_percentage,(Loan_Years*12)-Pay_Num+1,Beg_Bal)),\"\",IF(Values_Entered,-PMT(Maandelijkse_rente_percentage,(Loan_Years*12)-Pay_Num+1,Beg_Bal),\"\"))","v":""},"",{"$error":"#VALUE!"},"",0,0]
["","","",{"$f":"IF(ISERROR(PMT(Maandelijkse_rente_percentage,(Loan_Years*12)-Pay_Num+1,Beg_Bal)),\"\",IF(Values_Entered,-PMT(Maandelijkse_rente_percentage,(Loan_Years*12)-Pay_Num+1,Beg_Bal),\"\"))","v":""},"",{"$error":"#VALUE!"},"",{"$f":"N12","v":0},0]
["","","",{"$f":"IF(ISERROR(PMT(Maandelijkse_rente_percentage,(Loan_Years*12)-Pay_Num+1,Beg_Bal)),\"\",IF(Values_Entered,-PMT(Maandelijkse_rente_percentage,(Loan_Years*12)-Pay_Num+1,Beg_Bal),\"\"))","v":""},"",{"$error":"#VALUE!"},"",0,0]
["","","",{"$f":"IF(ISERROR(PMT(Maandelijkse_rente_percentage,(Loan_Years*12)-Pay_Num+1,Beg_Bal)),\"\",IF(Values_Entered,-PMT(Maandelijkse_rente_percentage,(Loan_Years*12)-Pay_Num+1,Beg_Bal),\"\"))","v":""},"",{"$error":"#VALUE!"},"",0,0]
["","","",{"$f":"IF(ISERROR(PMT(Maandelijkse_rente_percentage,(Loan_Years*12)-Pay_Num+1,Beg_Bal)),\"\",IF(Values_Entered,-PMT(Maandelijkse_rente_percentage,(Loan_Years*12)-Pay_Num+1,Beg_Bal),\"\"))","v":""},"",{"$error":"#VALUE!"},"",0,0]
["","","",{"$f":"IF(ISERROR(PMT(Maandelijkse_rente_percentage,(Loan_Years*12)-Pay_Num+1,Beg_Bal)),\"\",IF(Values_Entered,-PMT(Maandelijkse_rente_percentage,(Loan_Years*12)-Pay_Num+1,Beg_Bal),\"\"))","v":""},"",{"$error":"#VALUE!"},"",0,0]
["","","",{"$f":"IF(ISERROR(PMT(Maandelijkse_rente_percentage,(Loan_Years*12)-Pay_Num+1,Beg_Bal)),\"\",IF(Values_Entered,-PMT(Maandelijkse_rente_percentage,(Loan_Years*12)-Pay_Num+1,Beg_Bal),\"\"))","v":""},"",{"$error":"#VALUE!"},"",0,0]
["","","",{"$f":"IF(ISERROR(PMT(Maandelijkse_rente_percentage,(Loan_Years*12)-Pay_Num+1,Beg_Bal)),\"\",IF(Values_Entered,-PMT(Maandelijkse_rente_percentage,(Loan_Years*12)-Pay_Num+1,Beg_Bal),\"\"))","v":""},"",{"$error":"#VALUE!"},"",0,0]
["","","",{"$f":"IF(ISERROR(PMT(Maandelijkse_rente_percentage,(Loan_Years*12)-Pay_Num+1,Beg_Bal)),\"\",IF(Values_Entered,-PMT(Maandelijkse_rente_percentage,(Loan_Years*12)-Pay_Num+1,Beg_Bal),\"\"))","v":""},"",{"$error":"#VALUE!"},"",0,0]
["","","",{"$f":"IF(ISERROR(PMT(Maandelijkse_rente_percentage,(Loan_Years*12)-Pay_Num+1,Beg_Bal)),\"\",IF(Values_Entered,-PMT(Maandelijkse_rente_percentage,(Loan_Years*12)-Pay_Num+1,Beg_Bal),\"\"))","v":""},"",{"$error":"#VALUE!"},"",0,0]
["","","",{"$f":"IF(ISERROR(PMT(Maandelijkse_rente_percentage,(Loan_Years*12)-Pay_Num+1,Beg_Bal)),\"\",IF(Values_Entered,-PMT(Maandelijkse_rente_percentage,(Loan_Years*12)-Pay_Num+1,Beg_Bal),\"\"))","v":""},"",{"$error":"#VALUE!"},"",0,0]
["","","",{"$f":"IF(ISERROR(PMT(Maandelijkse_rente_percentage,(Loan_Years*12)-Pay_Num+1,Beg_Bal)),\"\",IF(Values_Entered,-PMT(Maandelijkse_rente_percentage,(Loan_Years*12)-Pay_Num+1,Beg_Bal),\"\"))","v":""},"",{"$error":"#VALUE!"},"",0,0]
["","","",{"$f":"IF(ISERROR(PMT(Maandelijkse_rente_percentage,(Loan_Years*12)-Pay_Num+1,Beg_Bal)),\"\",IF(Values_Entered,-PMT(Maandelijkse_rente_percentage,(Loan_Years*12)-Pay_Num+1,Beg_Bal),\"\"))","v":""},"",{"$error":"#VALUE!"},"",0,0]
["","","",{"$f":"IF(ISERROR(PMT(Maandelijkse_rente_percentage,(Loan_Years*12)-Pay_Num+1,Beg_Bal)),\"\",IF(Values_Entered,-PMT(Maandelijkse_rente_percentage,(Loan_Years*12)-Pay_Num+1,Beg_Bal),\"\"))","v":""},"",{"$error":"#VALUE!"},"",{"$f":"N13","v":0},0]
["","","",{"$f":"IF(ISERROR(PMT(Maandelijkse_rente_percentage,(Loan_Years*12)-Pay_Num+1,Beg_Bal)),\"\",IF(Values_Entered,-PMT(Maandelijkse_rente_percentage,(Loan_Years*12)-Pay_Num+1,Beg_Bal),\"\"))","v":""},"",{"$error":"#VALUE!"},"",0,0]
["","","",{"$f":"IF(ISERROR(PMT(Maandelijkse_rente_percentage,(Loan_Years*12)-Pay_Num+1,Beg_Bal)),\"\",IF(Values_Entered,-PMT(Maandelijkse_rente_percentage,(Loan_Years*12)-Pay_Num+1,Beg_Bal),\"\"))","v":""},"",{"$error":"#VALUE!"},"",0,0]
["","","",{"$f":"IF(ISERROR(PMT(Maandelijkse_rente_percentage,(Loan_Years*12)-Pay_Num+1,Beg_Bal)),\"\",IF(Values_Entered,-PMT(Maandelijkse_rente_percentage,(Loan_Years*12)-Pay_Num+1,Beg_Bal),\"\"))","v":""},"",{"$error":"#VALUE!"},"",0,0]
["","","",{"$f":"IF(ISERROR(PMT(Maandelijkse_rente_percentage,(Loan_Years*12)-Pay_Num+1,Beg_Bal)),\"\",IF(Values_Entered,-PMT(Maandelijkse_rente_percentage,(Loan_Years*12)-Pay_Num+1,Beg_Bal),\"\"))","v":""},"",{"$error":"#VALUE!"},"",0,0]
["","","",{"$f":"IF(ISERROR(PMT(Maandelijkse_rente_percentage,(Loan_Years*12)-Pay_Num+1,Beg_Bal)),\"\",IF(Values_Entered,-PMT(Maandelijkse_rente_percentage,(Loan_Years*12)-Pay_Num+1,Beg_Bal),\"\"))","v":""},"",{"$error":"#VALUE!"},"",0,0]
["","","",{"$f":"IF(ISERROR(PMT(Maandelijkse_rente_percentage,(Loan_Years*12)-Pay_Num+1,Beg_Bal)),\"\",IF(Values_Entered,-PMT(Maandelijkse_rente_percentage,(Loan_Years*12)-Pay_Num+1,Beg_Bal),\"\"))","v":""},"",{"$error":"#VALUE!"},"",0,0]
["","","",{"$f":"IF(ISERROR(PMT(Maandelijkse_rente_percentage,(Loan_Years*12)-Pay_Num+1,Beg_Bal)),\"\",IF(Values_Entered,-PMT(Maandelijkse_rente_percentage,(Loan_Years*12)-Pay_Num+1,Beg_Bal),\"\"))","v":""},"",{"$error":"#VALUE!"},"",0,0]
["","","",{"$f":"IF(ISERROR(PMT(Maandelijkse_rente_percentage,(Loan_Years*12)-Pay_Num+1,Beg_Bal)),\"\",IF(Values_Entered,-PMT(Maandelijkse_rente_percentage,(Loan_Years*12)-Pay_Num+1,Beg_Bal),\"\"))","v":""},"",{"$error":"#VALUE!"},"",0,0]
["","","",{"$f":"IF(ISERROR(PMT(Maandelijkse_rente_percentage,(Loan_Years*12)-Pay_Num+1,Beg_Bal)),\"\",IF(Values_Entered,-PMT(Maandelijkse_rente_percentage,(Loan_Years*12)-Pay_Num+1,Beg_Bal),\"\"))","v":""},"",{"$error":"#VALUE!"},"",0,0]
["","","",{"$f":"IF(ISERROR(PMT(Maandelijkse_rente_percentage,(Loan_Years*12)-Pay_Num+1,Beg_Bal)),\"\",IF(Values_Entered,-PMT(Maandelijkse_rente_percentage,(Loan_Years*12)-Pay_Num+1,Beg_Bal),\"\"))","v":""},"",{"$error":"#VALUE!"},"",0,0]
["","","",{"$f":"IF(ISERROR(PMT(Maandelijkse_rente_percentage,(Loan_Years*12)-Pay_Num+1,Beg_Bal)),\"\",IF(Values_Entered,-PMT(Maandelijkse_rente_percentage,(Loan_Years*12)-Pay_Num+1,Beg_Bal),\"\"))","v":""},"",{"$error":"#VALUE!"},"",0,0]
["","","",{"$f":"IF(ISERROR(PMT(Maandelijkse_rente_percentage,(Loan_Years*12)-Pay_Num+1,Beg_Bal)),\"\",IF(Values_Entered,-PMT(Maandelijkse_rente_percentage,(Loan_Years*12)-Pay_Num+1,Beg_Bal),\"\"))","v":""},"",{"$error":"#VALUE!"},"",{"$f":"N14","v":0},0]
["","","",{"$f":"IF(ISERROR(PMT(Maandelijkse_rente_percentage,(Loan_Years*12)-Pay_Num+1,Beg_Bal)),\"\",IF(Values_Entered,-PMT(Maandelijkse_rente_percentage,(Loan_Years*12)-Pay_Num+1,Beg_Bal),\"\"))","v":""},"",{"$error":"#VALUE!"},"",0,0]
["","","",{"$f":"IF(ISERROR(PMT(Maandelijkse_rente_percentage,(Loan_Years*12)-Pay_Num+1,Beg_Bal)),\"\",IF(Values_Entered,-PMT(Maandelijkse_rente_percentage,(Loan_Years*12)-Pay_Num+1,Beg_Bal),\"\"))","v":""},"",{"$error":"#VALUE!"},"",0,0]
["","","",{"$f":"IF(ISERROR(PMT(Maandelijkse_rente_percentage,(Loan_Years*12)-Pay_Num+1,Beg_Bal)),\"\",IF(Values_Entered,-PMT(Maandelijkse_rente_percentage,(Loan_Years*12)-Pay_Num+1,Beg_Bal),\"\"))","v":""},"",{"$error":"#VALUE!"},"",0,0]
["","","",{"$f":"IF(ISERROR(PMT(Maandelijkse_rente_percentage,(Loan_Years*12)-Pay_Num+1,Beg_Bal)),\"\",IF(Values_Entered,-PMT(Maandelijkse_rente_percentage,(Loan_Years*12)-Pay_Num+1,Beg_Bal),\"\"))","v":""},"",{"$error":"#VALUE!"},"",{"$f":"H334","v":0},0]
["","","",{"$f":"IF(ISERROR(PMT(Maandelijkse_rente_percentage,(Loan_Years*12)-Pay_Num+1,Beg_Bal)),\"\",IF(Values_Entered,-PMT(Maandelijkse_rente_percentage,(Loan_Years*12)-Pay_Num+1,Beg_Bal),\"\"))","v":""},"",{"$error":"#VALUE!"},"",0,0]
["","","",{"$f":"IF(ISERROR(PMT(Maandelijkse_rente_percentage,(Loan_Years*12)-Pay_Num+1,Beg_Bal)),\"\",IF(Values_Entered,-PMT(Maandelijkse_rente_percentage,(Loan_Years*12)-Pay_Num+1,Beg_Bal),\"\"))","v":""},"",{"$error":"#VALUE!"},"",0,0]
["","","",{"$f":"IF(ISERROR(PMT(Maandelijkse_rente_percentage,(Loan_Years*12)-Pay_Num+1,Beg_Bal)),\"\",IF(Values_Entered,-PMT(Maandelijkse_rente_percentage,(Loan_Years*12)-Pay_Num+1,Beg_Bal),\"\"))","v":""},"",{"$error":"#VALUE!"},"",0,0]
["","","",{"$f":"IF(ISERROR(PMT(Maandelijkse_rente_percentage,(Loan_Years*12)-Pay_Num+1,Beg_Bal)),\"\",IF(Values_Entered,-PMT(Maandelijkse_rente_percentage,(Loan_Years*12)-Pay_Num+1,Beg_Bal),\"\"))","v":""},{"$f":"IF(Pay_Num<>\"\",Maandelijkse_aflossing-Int,\"\")","v":""},{"$f":"Beg_Bal*Maandelijkse_rente_percentage","v":{"$error":"#VALUE!"}},"",0,{"$f":"((1+Jaarlijk_rente_percentage)^(1/12))-1","v":0}]
[{"$f":"IF(Values_Entered,A339+1,\"\")","v":""},{"$f":"IF(Pay_Num<>\"\",DATE(YEAR(B339),MONTH(B339)+1,DAY(B339)),\"\")","v":""},"",{"$f":"IF(ISERROR(PMT(Maandelijkse_rente_percentage,(Loan_Years*12)-Pay_Num+1,Beg_Bal)),\"\",IF(Values_Entered,-PMT(Maandelijkse_rente_percentage,(Loan_Years*12)-Pay_Num+1,Beg_Bal),\"\"))","v":""},"",{"$error":"#VALUE!"},{"$f":"IF(Pay_Num<>\"\",Beg_Bal-Princ,\"\")","v":""},0,0]
["","",{"$f":"IF(Pay_Num<>\"\",G340,\"\")","v":""},{"$f":"IF(ISERROR(PMT(Maandelijkse_rente_percentage,(Loan_Years*12)-Pay_Num+1,Beg_Bal)),\"\",IF(Values_Entered,-PMT(Maandelijkse_rente_percentage,(Loan_Years*12)-Pay_Num+1,Beg_Bal),\"\"))","v":""},"",{"$error":"#VALUE!"},"",0,0]
["","","",{"$f":"IF(ISERROR(PMT(Maandelijkse_rente_percentage,(Loan_Years*12)-Pay_Num+1,Beg_Bal)),\"\",IF(Values_Entered,-PMT(Maandelijkse_rente_percentage,(Loan_Years*12)-Pay_Num+1,Beg_Bal),\"\"))","v":""},"",{"$error":"#VALUE!"},"",0,0]
["","","",{"$f":"IF(ISERROR(PMT(Maandelijkse_rente_percentage,(Loan_Years*12)-Pay_Num+1,Beg_Bal)),\"\",IF(Values_Entered,-PMT(Maandelijkse_rente_percentage,(Loan_Years*12)-Pay_Num+1,Beg_Bal),\"\"))","v":""},"",{"$error":"#VALUE!"},"",{"$f":"N15","v":0},0]
["","","",{"$f":"IF(ISERROR(PMT(Maandelijkse_rente_percentage,(Loan_Years*12)-Pay_Num+1,Beg_Bal)),\"\",IF(Values_Entered,-PMT(Maandelijkse_rente_percentage,(Loan_Years*12)-Pay_Num+1,Beg_Bal),\"\"))","v":""},"",{"$error":"#VALUE!"},"",0,0]
["","","",{"$f":"IF(ISERROR(PMT(Maandelijkse_rente_percentage,(Loan_Years*12)-Pay_Num+1,Beg_Bal)),\"\",IF(Values_Entered,-PMT(Maandelijkse_rente_percentage,(Loan_Years*12)-Pay_Num+1,Beg_Bal),\"\"))","v":""},"",{"$error":"#VALUE!"},"",0,0]
["","","",{"$f":"IF(ISERROR(PMT(Maandelijkse_rente_percentage,(Loan_Years*12)-Pay_Num+1,Beg_Bal)),\"\",IF(Values_Entered,-PMT(Maandelijkse_rente_percentage,(Loan_Years*12)-Pay_Num+1,Beg_Bal),\"\"))","v":""},"",{"$error":"#VALUE!"},"",0,0]
["","","",{"$f":"IF(ISERROR(PMT(Maandelijkse_rente_percentage,(Loan_Years*12)-Pay_Num+1,Beg_Bal)),\"\",IF(Values_Entered,-PMT(Maandelijkse_rente_percentage,(Loan_Years*12)-Pay_Num+1,Beg_Bal),\"\"))","v":""},"",{"$error":"#VALUE!"},"",0,0]
["","","",{"$f":"IF(ISERROR(PMT(Maandelijkse_rente_percentage,(Loan_Years*12)-Pay_Num+1,Beg_Bal)),\"\",IF(Values_Entered,-PMT(Maandelijkse_rente_percentage,(Loan_Years*12)-Pay_Num+1,Beg_Bal),\"\"))","v":""},"",{"$error":"#VALUE!"},"",0,0]
["","","",{"$f":"IF(ISERROR(PMT(Maandelijkse_rente_percentage,(Loan_Years*12)-Pay_Num+1,Beg_Bal)),\"\",IF(Values_Entered,-PMT(Maandelijkse_rente_percentage,(Loan_Years*12)-Pay_Num+1,Beg_Bal),\"\"))","v":""},"",{"$error":"#VALUE!"},"",0,0]
["","","",{"$f":"IF(ISERROR(PMT(Maandelijkse_rente_percentage,(Loan_Years*12)-Pay_Num+1,Beg_Bal)),\"\",IF(Values_Entered,-PMT(Maandelijkse_rente_percentage,(Loan_Years*12)-Pay_Num+1,Beg_Bal),\"\"))","v":""},"",{"$error":"#VALUE!"},"",0,0]
["","","",{"$f":"IF(ISERROR(PMT(Maandelijkse_rente_percentage,(Loan_Years*12)-Pay_Num+1,Beg_Bal)),\"\",IF(Values_Entered,-PMT(Maandelijkse_rente_percentage,(Loan_Years*12)-Pay_Num+1,Beg_Bal),\"\"))","v":""},"",{"$error":"#VALUE!"},"",0,0]
["","","",{"$f":"IF(ISERROR(PMT(Maandelijkse_rente_percentage,(Loan_Years*12)-Pay_Num+1,Beg_Bal)),\"\",IF(Values_Entered,-PMT(Maandelijkse_rente_percentage,(Loan_Years*12)-Pay_Num+1,Beg_Bal),\"\"))","v":""},"",{"$error":"#VALUE!"},"",0,0]
["","","",{"$f":"IF(ISERROR(PMT(Maandelijkse_rente_percentage,(Loan_Years*12)-Pay_Num+1,Beg_Bal)),\"\",IF(Values_Entered,-PMT(Maandelijkse_rente_percentage,(Loan_Years*12)-Pay_Num+1,Beg_Bal),\"\"))","v":""},"",{"$error":"#VALUE!"},"",0,0]
["","","",{"$f":"IF(ISERROR(PMT(Maandelijkse_rente_percentage,(Loan_Years*12)-Pay_Num+1,Beg_Bal)),\"\",IF(Values_Entered,-PMT(Maandelijkse_rente_percentage,(Loan_Years*12)-Pay_Num+1,Beg_Bal),\"\"))","v":""},"",{"$error":"#VALUE!"},"",0,0]
["","","",{"$f":"IF(ISERROR(PMT(Maandelijkse_rente_percentage,(Loan_Years*12)-Pay_Num+1,Beg_Bal)),\"\",IF(Values_Entered,-PMT(Maandelijkse_rente_percentage,(Loan_Years*12)-Pay_Num+1,Beg_Bal),\"\"))","v":""},"",{"$error":"#VALUE!"},"",{"$f":"N16","v":0},0]
["","","",{"$f":"IF(ISERROR(PMT(Maandelijkse_rente_percentage,(Loan_Years*12)-Pay_Num+1,Beg_Bal)),\"\",IF(Values_Entered,-PMT(Maandelijkse_rente_percentage,(Loan_Years*12)-Pay_Num+1,Beg_Bal),\"\"))","v":""},"",{"$error":"#VALUE!"},"",0,0]
["","","",{"$f":"IF(ISERROR(PMT(Maandelijkse_rente_percentage,(Loan_Years*12)-Pay_Num+1,Beg_Bal)),\"\",IF(Values_Entered,-PMT(Maandelijkse_rente_percentage,(Loan_Years*12)-Pay_Num+1,Beg_Bal),\"\"))","v":""},"",{"$error":"#VALUE!"},"",0,0]
["","","",{"$f":"IF(ISERROR(PMT(Maandelijkse_rente_percentage,(Loan_Years*12)-Pay_Num+1,Beg_Bal)),\"\",IF(Values_Entered,-PMT(Maandelijkse_rente_percentage,(Loan_Years*12)-Pay_Num+1,Beg_Bal),\"\"))","v":""},"",{"$error":"#VALUE!"},"",0,0]
["","","",{"$f":"IF(ISERROR(PMT(Maandelijkse_rente_percentage,(Loan_Years*12)-Pay_Num+1,Beg_Bal)),\"\",IF(Values_Entered,-PMT(Maandelijkse_rente_percentage,(Loan_Years*12)-Pay_Num+1,Beg_Bal),\"\"))","v":""},"",{"$error":"#VALUE!"},"",0,0]
["","","",{"$f":"IF(ISERROR(PMT(Maandelijkse_rente_percentage,(Loan_Years*12)-Pay_Num+1,Beg_Bal)),\"\",IF(Values_Entered,-PMT(Maandelijkse_rente_percentage,(Loan_Years*12)-Pay_Num+1,Beg_Bal),\"\"))","v":""},"",{"$error":"#VALUE!"},"",0,0]
["","","",{"$f":"IF(ISERROR(PMT(Maandelijkse_rente_percentage,(Loan_Years*12)-Pay_Num+1,Beg_Bal)),\"\",IF(Values_Entered,-PMT(Maandelijkse_rente_percentage,(Loan_Years*12)-Pay_Num+1,Beg_Bal),\"\"))","v":""},"",{"$error":"#VALUE!"},"",0,0]
["","","",{"$f":"IF(ISERROR(PMT(Maandelijkse_rente_percentage,(Loan_Years*12)-Pay_Num+1,Beg_Bal)),\"\",IF(Values_Entered,-PMT(Maandelijkse_rente_percentage,(Loan_Years*12)-Pay_Num+1,Beg_Bal),\"\"))","v":""},"",{"$error":"#VALUE!"},"",0,0]
["","","",{"$f":"IF(ISERROR(PMT(Maandelijkse_rente_percentage,(Loan_Years*12)-Pay_Num+1,Beg_Bal)),\"\",IF(Values_Entered,-PMT(Maandelijkse_rente_percentage,(Loan_Years*12)-Pay_Num+1,Beg_Bal),\"\"))","v":""},"",{"$error":"#VALUE!"},"",0,0]
["","","",{"$f":"IF(ISERROR(PMT(Maandelijkse_rente_percentage,(Loan_Years*12)-Pay_Num+1,Beg_Bal)),\"\",IF(Values_Entered,-PMT(Maandelijkse_rente_percentage,(Loan_Years*12)-Pay_Num+1,Beg_Bal),\"\"))","v":""},"",{"$error":"#VALUE!"},"",0,0]
["","","",{"$f":"IF(ISERROR(PMT(Maandelijkse_rente_percentage,(Loan_Years*12)-Pay_Num+1,Beg_Bal)),\"\",IF(Values_Entered,-PMT(Maandelijkse_rente_percentage,(Loan_Years*12)-Pay_Num+1,Beg_Bal),\"\"))","v":""},"",{"$error":"#VALUE!"},"",0,0]
["","","",{"$f":"IF(ISERROR(PMT(Maandelijkse_rente_percentage,(Loan_Years*12)-Pay_Num+1,Beg_Bal)),\"\",IF(Values_Entered,-PMT(Maandelijkse_rente_percentage,(Loan_Years*12)-Pay_Num+1,Beg_Bal),\"\"))","v":""},"",{"$error":"#VALUE!"},"",0,0]
["","","",{"$f":"IF(ISERROR(PMT(Maandelijkse_rente_percentage,(Loan_Years*12)-Pay_Num+1,Beg_Bal)),\"\",IF(Values_Entered,-PMT(Maandelijkse_rente_percentage,(Loan_Years*12)-Pay_Num+1,Beg_Bal),\"\"))","v":""},"",{"$error":"#VALUE!"},"",{"$f":"N17","v":0},0]
["","","",{"$f":"IF(ISERROR(PMT(Maandelijkse_rente_percentage,(Loan_Years*12)-Pay_Num+1,Beg_Bal)),\"\",IF(Values_Entered,-PMT(Maandelijkse_rente_percentage,(Loan_Years*12)-Pay_Num+1,Beg_Bal),\"\"))","v":""},"",{"$error":"#VALUE!"},"",0,0]
["","","",{"$f":"IF(ISERROR(PMT(Maandelijkse_rente_percentage,(Loan_Years*12)-Pay_Num+1,Beg_Bal)),\"\",IF(Values_Entered,-PMT(Maandelijkse_rente_percentage,(Loan_Years*12)-Pay_Num+1,Beg_Bal),\"\"))","v":""},"",{"$error":"#VALUE!"},"",0,0]
["","","",{"$f":"IF(ISERROR(PMT(Maandelijkse_rente_percentage,(Loan_Years*12)-Pay_Num+1,Beg_Bal)),\"\",IF(Values_Entered,-PMT(Maandelijkse_rente_percentage,(Loan_Years*12)-Pay_Num+1,Beg_Bal),\"\"))","v":""},"",{"$error":"#VALUE!"},"",0,0]
["","","",{"$f":"IF(ISERROR(PMT(Maandelijkse_rente_percentage,(Loan_Years*12)-Pay_Num+1,Beg_Bal)),\"\",IF(Values_Entered,-PMT(Maandelijkse_rente_percentage,(Loan_Years*12)-Pay_Num+1,Beg_Bal),\"\"))","v":""},"",{"$error":"#VALUE!"},"",0,0]
["","","",{"$f":"IF(ISERROR(PMT(Maandelijkse_rente_percentage,(Loan_Years*12)-Pay_Num+1,Beg_Bal)),\"\",IF(Values_Entered,-PMT(Maandelijkse_rente_percentage,(Loan_Years*12)-Pay_Num+1,Beg_Bal),\"\"))","v":""},"",{"$error":"#VALUE!"},"",0,0]
["","","",{"$f":"IF(ISERROR(PMT(Maandelijkse_rente_percentage,(Loan_Years*12)-Pay_Num+1,Beg_Bal)),\"\",IF(Values_Entered,-PMT(Maandelijkse_rente_percentage,(Loan_Years*12)-Pay_Num+1,Beg_Bal),\"\"))","v":""},"",{"$error":"#VALUE!"},"",0,0]
["","","",{"$f":"IF(ISERROR(PMT(Maandelijkse_rente_percentage,(Loan_Years*12)-Pay_Num+1,Beg_Bal)),\"\",IF(Values_Entered,-PMT(Maandelijkse_rente_percentage,(Loan_Years*12)-Pay_Num+1,Beg_Bal),\"\"))","v":""},"",{"$error":"#VALUE!"},"",0,0]
["","","",{"$f":"IF(ISERROR(PMT(Maandelijkse_rente_percentage,(Loan_Years*12)-Pay_Num+1,Beg_Bal)),\"\",IF(Values_Entered,-PMT(Maandelijkse_rente_percentage,(Loan_Years*12)-Pay_Num+1,Beg_Bal),\"\"))","v":""},"",{"$error":"#VALUE!"},"",0,0]
["","","",{"$f":"IF(ISERROR(PMT(Maandelijkse_rente_percentage,(Loan_Years*12)-Pay_Num+1,Beg_Bal)),\"\",IF(Values_Entered,-PMT(Maandelijkse_rente_percentage,(Loan_Years*12)-Pay_Num+1,Beg_Bal),\"\"))","v":""},"",{"$error":"#VALUE!"},"",0,0]
["","","",{"$f":"IF(ISERROR(PMT(Maandelijkse_rente_percentage,(Loan_Years*12)-Pay_Num+1,Beg_Bal)),\"\",IF(Values_Entered,-PMT(Maandelijkse_rente_percentage,(Loan_Years*12)-Pay_Num+1,Beg_Bal),\"\"))","v":""},"",{"$error":"#VALUE!"},"",0,0]
["","","",{"$f":"IF(ISERROR(PMT(Maandelijkse_rente_percentage,(Loan_Years*12)-Pay_Num+1,Beg_Bal)),\"\",IF(Values_Entered,-PMT(Maandelijkse_rente_percentage,(Loan_Years*12)-Pay_Num+1,Beg_Bal),\"\"))","v":""},"",{"$error":"#VALUE!"},"",0,0]

{"sheet":"Leningscalculator 2","index":1,"n_rows":378,"n_cols":14,"rows_kept":378,"cut":false,"hidden":false,"merged":[[15,0,15,2],[0,0,0,9],[0,10,0,13],[3,0,3,2],[3,6,8,9],[4,0,4,2],[5,0,5,2],[6,0,6,2],[7,0,7,2],[10,0,10,2],[11,0,11,2],[12,0,12,2],[13,0,13,2],[14,0,14,2]]}
["Leningscalculator variabele of vaste rente",null,null,null,null,null,null,null,null,null,"Variabele rente tabel"]
[null,null,null,null,null,null,null,null,null,null,"Jaar","Rente","Jaar","Rente"]
[null,null,null,"Typ de waarden",null,null,"Instructies",null,null,null,1,{"$f":"Interest_Rate","v":0},16,{"$f":"L17","v":0}]
["Geleend bedrag",null,null,null,null,null,"De looptijd van de lening moet tussen 1 jaar en 30 jaar liggen. Blauwe vakjes in de variabele rente tabel mag je aanpassen om je lening nog preciezer te maken. De stijging van de rente kan nooit meer zijn dan het dubbele van het rentepercentage bij de aanvang van de lening.\nSnelkoppelingen\nKies 1 van onderstaande leningen of vul de variabele rente tabel manueel in.",null,null,null,2,{"$f":"L3","v":0},17,{"$f":"N3","v":0}]
["Start rentepercentage",null,null,null,null,null,null,null,null,null,3,{"$f":"L4","v":0},18,{"$f":"N4","v":0}]
["Looptijd in jaren",null,null,null,null,null,null,null,null,null,4,0,19,0]
["Begindatum van lening",null,null,null,null,null,null,null,null,null,5,0,20,0]
["Maximale stijging rentepercentage (cap)",null,null,null,null,null,null,null,null,null,6,0,21,0]
[null,null,null,null,null,null,null,null,null,null,7,0,22,0]
[null,null,null,null,null,null,null,null,null,null,8,0,23,0]
["Minimale maandelijkse betalingen",null,null,{"$f":"IF(Values_Entered,MIN(Maandelijkse_aflossing),\"\")","v":""},null,null,null,null,null,null,9,0,24,0]
["Maximale maandelijkse betalingen",null,null,{"$f":"IF(Values_Entered,MAX(Maandelijkse_aflossing),\"\")","v":""},null,null,null,null,null,null,10,0,25,0]
["Maandelijkse betalingen",null,null,{"$f":"IF(Values_Entered,AVERAGE(Maandelijkse_aflossing),\"\")","v":""},null,null,null,null,null,null,11,0,26,0]
["Aantal betalingen",null,null,{"$f":"IF(Values_Entered,Loan_Years*12,\"\")","v":""},null,null,null,null,null,null,12,0,27,0]
["Totaal rentebedrag",null,null,{"$f":"IF(Values_Entered,SUMIF(Beg_Bal,\">0\",Int),\"\")","v":""},null,null,null,null,null,null,13,0,28,0]
["Totaal afbetaald",null,null,{"$f":"IF(Values_Entered,SUMIF(Beg_Bal,\">0\",Int)+Loan_Amount,\"\")","v":""},null,null,null,null,null,null,14,0,29,0]
[null,null,null,null,null,null,null,null,null,null,15,0,30,0]
["Nr.","Betaald op","Resterend saldo","Aflossing /Maand","Kapitaal","Intrest","Eindsaldo","Jaarlijk rente percentage","Maandelijkse rente percentage"]
[{"$f":"IF(Values_Entered,1,\"\")","v":""},{"$f":"IF(Pay_Num<>\"\",Loan_Start,\"\")","v":""},{"$f":"IF(Values_Entered,Loan_Amount,\"\")","v":""},{"$f":"IF(Values_Entered,-PMT(Maandelijkse_rente_percentage,(Loan_Years*12)-Pay_Num+1,Beg_Bal),\"\")","v":""},{"$f":"IF(Pay_Num<>\"\",Maandelijkse_aflossing-Int,\"\")","v":""},{"$f":"Beg_Bal*Maandelijkse_rente_percentage","v":{"$error":"#VALUE!"}},{"$f":"IF(Pay_Num<>\"\",Beg_Bal-Princ,\"\")","v":""},{"$f":"L3","v":0},{"$f":"((1+Jaarlijk_rente_percentage)^(1/12))-1","v":0}]
[{"$f":"IF(Values_Entered,A19+1,\"\")","v":""},{"$f":"IF(Pay_Num<>\"\",DATE(YEAR(B19),MONTH(B19)+1,DAY(B19)),\"\")","v":""},{"$f":"IF(Pay_Num<>\"\",G19,\"\")","v":""},{"$f":"IF(ISERROR(PMT(Maandelijkse_rente_percentage,(Loan_Years*12)-Pay_Num+1,Beg_Bal)),\"\",IF(Values_Entered,-PMT(Maandelijkse_rente_percentage,(Loan_Years*12)-Pay_Num+1,Beg_Bal),\"\"))","v":""},"",{"$error":"#VALUE!"},{"$f":"IF(Pay_Num<>\"\",Beg_Bal-Princ,\"\")","v":""},{"$f":"H19","v":0},0]
["","",{"$f":"IF(Pay_Num<>\"\",G20,\"\")","v":""},{"$f":"IF(ISERROR(PMT(Maandelijkse_rente_percentage,(Loan_Years*12)-Pay_Num+1,Beg_Bal)),\"\",IF(Values_Entered,-PMT(Maandelijkse_rente_percentage,(Loan_Years*12)-Pay_Num+1,Beg_Bal),\"\"))","v":""},"",{"$error":"#VALUE!"},"",{"$f":"H20","v":0},0]
["","","",{"$f":"IF(ISERROR(PMT(Maandelijkse_rente_percentage,(Loan_Years*12)-Pay_Num+1,Beg_Bal)),\"\",IF(Values_Entered,-PMT(Maandelijkse_rente_percentage,(Loan_Years*12)-Pay_Num+1,Beg_Bal),\"\"))","v":""},"",{"$error":"#VALUE!"},"",0,0]
["","","",{"$f":"IF(ISERROR(PMT(Maandelijkse_rente_percentage,(Loan_Years*12)-Pay_Num+1,Beg_Bal)),\"\",IF(Values_Entered,-PMT(Maandelijkse_rente_percentage,(Loan_Years*12)-Pay_Num+1,Beg_Bal),\"\"))","v":""},"",{"$error":"#VALUE!"},"",0,0]
["","","",{"$f":"IF(ISERROR(PMT(Maandelijkse_rente_percentage,(Loan_Years*12)-Pay_Num+1,Beg_Bal)),\"\",IF(Values_Entered,-PMT(Maandelijkse_rente_percentage,(Loan_Years*12)-Pay_Num+1,Beg_Bal),\"\"))","v":""},"",{"$error":"#VALUE!"},"",0,0]
["","","",{"$f":"IF(ISERROR(PMT(Maandelijkse_rente_percentage,(Loan_Years*12)-Pay_Num+1,Beg_Bal)),\"\",IF(Values_Entered,-PMT(Maandelijkse_rente_percentage,(Loan_Years*12)-Pay_Num+1,Beg_Bal),\"\"))","v":""},"",{"$error":"#VALUE!"},"",0,0]
["","","",{"$f":"IF(ISERROR(PMT(Maandelijkse_rente_percentage,(Loan_Years*12)-Pay_Num+1,Beg_Bal)),\"\",IF(Values_Entered,-PMT(Maandelijkse_rente_percentage,(Loan_Years*12)-Pay_Num+1,Beg_Bal),\"\"))","v":""},"",{"$error":"#VALUE!"},"",0,0]
["","","",{"$f":"IF(ISERROR(PMT(Maandelijkse_rente_percentage,(Loan_Years*12)-Pay_Num+1,Beg_Bal)),\"\",IF(Values_Entered,-PMT(Maandelijkse_rente_percentage,(Loan_Years*12)-Pay_Num+1,Beg_Bal),\"\"))","v":""},{"$f":"IF(Pay_Num<>\"\",Maandelijkse_aflossing-Int,\"\")","v":""},{"$error":"#VALUE!"},"",0,0]
["","","",{"$f":"IF(ISERROR(PMT(Maandelijkse_rente_percentage,(Loan_Years*12)-Pay_Num+1,Beg_Bal)),\"\",IF(Values_Entered,-PMT(Maandelijkse_rente_percentage,(Loan_Years*12)-Pay_Num+1,Beg_Bal),\"\"))","v":""},"",{"$error":"#VALUE!"},"",0,0]
["","","",{"$f":"IF(ISERROR(PMT(Maandelijkse_rente_percentage,(Loan_Years*12)-Pay_Num+1,Beg_Bal)),\"\",IF(Values_Entered,-PMT(Maandelijkse_rente_percentage,(Loan_Years*12)-Pay_Num+1,Beg_Bal),\"\"))","v":""},"",{"$error":"#VALUE!"},"",0,0]
["","","",{"$f":"IF(ISERROR(PMT(Maandelijkse_rente_percentage,(Loan_Years*12)-Pay_Num+1,Beg_Bal)),\"\",IF(Values_Entered,-PMT(Maandelijkse_rente_percentage,(Loan_Years*12)-Pay_Num+1,Beg_Bal),\"\"))","v":""},"",{"$error":"#VALUE!"},"",0,0]
["","","",{"$f":"IF(ISERROR(PMT(Maandelijkse_rente_percentage,(Loan_Years*12)-Pay_Num+1,Beg_Bal)),\"\",IF(Values_Entered,-PMT(Maandelijkse_rente_percentage,(Loan_Years*12)-Pay_Num+1,Beg_Bal),\"\"))","v":""},"",{"$error":"#VALUE!"},"",{"$f":"L4","v":0},0]
["","","",{"$f":"IF(ISERROR(PMT(Maandelijkse_rente_percentage,(Loan_Years*12)-Pay_Num+1,Beg_Bal)),\"\",IF(Values_Entered,-PMT(Maandelijkse_rente_percentage,(Loan_Years*12)-Pay_Num+1,Beg_Bal),\"\"))","v":""},"",{"$error":"#VALUE!"},"",0,0]
["","","",{"$f":"IF(ISERROR(PMT(Maandelijkse_rente_percentage,(Loan_Years*12)-Pay_Num+1,Beg_Bal)),\"\",IF(Values_Entered,-PMT(Maandelijkse_rente_percentage,(Loan_Years*12)-Pay_Num+1,Beg_Bal),\"\"))","v":""},"",{"$error":"#VALUE!"},"",0,0]
["","","",{"$f":"IF(ISERROR(PMT(Maandelijkse_rente_percentage,(Loan_Years*12)-Pay_Num+1,Beg_Bal)),\"\",IF(Values_Entered,-PMT(Maandelijkse_rente_percentage,(Loan_Years*12)-Pay_Num+1,Beg_Bal),\"\"))","v":""},"",{"$error":"#VALUE!"},"",0,0]
["","","",{"$f":"IF(ISERROR(PMT(Maandelijkse_rente_percentage,(Loan_Years*12)-Pay_Num+1,Beg_Bal)),\"\",IF(Values_Entered,-PMT(Maandelijkse_rente_percentage,(Loan_Years*12)-Pay_Num+1,Beg_Bal),\"\"))","v":""},"",{"$error":"#VALUE!"},"",0,0]
["","","",{"$f":"IF(ISERROR(PMT(Maandelijkse_rente_percentage,(Loan_Years*12)-Pay_Num+1,Beg_Bal)),\"\",IF(Values_Entered,-PMT(Maandelijkse_rente_percentage,(Loan_Years*12)-Pay_Num+1,Beg_Bal),\"\"))","v":""},"",{"$error":"#VALUE!"},"",0,0]
["","","",{"$f":"IF(ISERROR(PMT(Maandelijkse_rente_percentage,(Loan_Years*12)-Pay_Num+1,Beg_Bal)),\"\",IF(Values_Entered,-PMT(Maandelijkse_rente_percentage,(Loan_Years*12)-Pay_Num+1,Beg_Bal),\"\"))","v":""},"",{"$error":"#VALUE!"},"",0,0]
["","","",{"$f":"IF(ISERROR(PMT(Maandelijkse_rente_percentage,(Loan_Years*12)-Pay_Num+1,Beg_Bal)),\"\",IF(Values_Entered,-PMT(Maandelijkse_rente_percentage,(Loan_Years*12)-Pay_Num+1,Beg_Bal),\"\"))","v":""},"",{"$error":"#VALUE!"},"",0,0]
["","","",{"$f":"IF(ISERROR(PMT(Maandelijkse_rente_percentage,(Loan_Years*12)-Pay_Num+1,Beg_Bal)),\"\",IF(Values_Entered,-PMT(Maandelijkse_rente_percentage,(Loan_Years*12)-Pay_Num+1,Beg_Bal),\"\"))","v":""},"",{"$error":"#VALUE!"},"",0,0]
["","","",{"$f":"IF(ISERROR(PMT(Maandelijkse_rente_percentage,(Loan_Years*12)-Pay_Num+1,Beg_Bal)),\"\",IF(Values_Entered,-PMT(Maandelijkse_rente_percentage,(Loan_Years*12)-Pay_Num+1,Beg_Bal),\"\"))","v":""},"",{"$error":"#VALUE!"},"",0,0]
["","","",{"$f":"IF(ISERROR(PMT(Maandelijkse_rente_percentage,(Loan_Years*12)-Pay_Num+1,Beg_Bal)),\"\",IF(Values_Entered,-PMT(Maandelijkse_rente_percentage,(Loan_Years*12)-Pay_Num+1,Beg_Bal),\"\"))","v":""},"",{"$error":"#VALUE!"},"",0,0]
["","","",{"$f":"IF(ISERROR(PMT(Maandelijkse_rente_percentage,(Loan_Years*12)-Pay_Num+1,Beg_Bal)),\"\",IF(Values_Entered,-PMT(Maandelijkse_rente_percentage,(Loan_Years*12)-Pay_Num+1,Beg_Bal),\"\"))","v":""},"",{"$error":"#VALUE!"},"",0,0]
["","","",{"$f":"IF(ISERROR(PMT(Maandelijkse_rente_percentage,(Loan_Years*12)-Pay_Num+1,Beg_Bal)),\"\",IF(Values_Entered,-PMT(Maandelijkse_rente_percentage,(Loan_Years*12)-Pay_Num+1,Beg_Bal),\"\"))","v":""},"",{"$error":"#VALUE!"},"",{"$f":"L5","v":0},0]
["","","",{"$f":"IF(ISERROR(PMT(Maandelijkse_rente_percentage,(Loan_Years*12)-Pay_Num+1,Beg_Bal)),\"\",IF(Values_Entered,-PMT(Maandelijkse_rente_percentage,(Loan_Years*12)-Pay_Num+1,Beg_Bal),\"\"))","v":""},"",{"$error":"#VALUE!"},"",0,0]
["","","",{"$f":"IF(ISERROR(PMT(Maandelijkse_rente_percentage,(Loan_Years*12)-Pay_Num+1,Beg_Bal)),\"\",IF(Values_Entered,-PMT(Maandelijkse_rente_percentage,(Loan_Years*12)-Pay_Num+1,Beg_Bal),\"\"))","v":""},"",{"$error":"#VALUE!"},"",0,0]
["","","",{"$f":"IF(ISERROR(PMT(Maandelijkse_rente_percentage,(Loan_Years*12)-Pay_Num+1,Beg_Bal)),\"\",IF(Values_Entered,-PMT(Maandelijkse_rente_percentage,(Loan_Years*12)-Pay_Num+1,Beg_Bal),\"\"))","v":""},"",{"$error":"#VALUE!"},"",0,0]
["","","",{"$f":"IF(ISERROR(PMT(Maandelijkse_rente_percentage,(Loan_Years*12)-Pay_Num+1,Beg_Bal)),\"\",IF(Values_Entered,-PMT(Maandelijkse_rente_percentage,(Loan_Years*12)-Pay_Num+1,Beg_Bal),\"\"))","v":""},"",{"$error":"#VALUE!"},"",0,0]
["","","",{"$f":"IF(ISERROR(PMT(Maandelijkse_rente_percentage,(Loan_Years*12)-Pay_Num+1,Beg_Bal)),\"\",IF(Values_Entered,-PMT(Maandelijkse_rente_percentage,(Loan_Years*12)-Pay_Num+1,Beg_Bal),\"\"))","v":""},"",{"$error":"#VALUE!"},"",0,0]
["","","",{"$f":"IF(ISERROR(PMT(Maandelijkse_rente_percentage,(Loan_Years*12)-Pay_Num+1,Beg_Bal)),\"\",IF(Values_Entered,-PMT(Maandelijkse_rente_percentage,(Loan_Years*12)-Pay_Num+1,Beg_Bal),\"\"))","v":""},"",{"$error":"#VALUE!"},"",0,0]
["","","",{"$f":"IF(ISERROR(PMT(Maandelijkse_rente_percentage,(Loan_Years*12)-Pay_Num+1,Beg_Bal)),\"\",IF(Values_Entered,-PMT(Maandelijkse_rente_percentage,(Loan_Years*12)-Pay_Num+1,Beg_Bal),\"\"))","v":""},"",{"$error":"#VALUE!"},"",0,0]
["","","",{"$f":"IF(ISERROR(PMT(Maandelijkse_rente_percentage,(Loan_Years*12)-Pay_Num+1,Beg_Bal)),\"\",IF(Values_Entered,-PMT(Maandelijkse_rente_percentage,(Loan_Years*12)-Pay_Num+1,Beg_Bal),\"\"))","v":""},"",{"$error":"#VALUE!"},"",0,0]
["","","",{"$f":"IF(ISERROR(PMT(Maandelijkse_rente_percentage,(Loan_Years*12)-Pay_Num+1,Beg_Bal)),\"\",IF(Values_Entered,-PMT(Maandelijkse_rente_percentage,(Loan_Years*12)-Pay_Num+1,Beg_Bal),\"\"))","v":""},"",{"$error":"#VALUE!"},"",0,0]
["","","",{"$f":"IF(ISERROR(PMT(Maandelijkse_rente_percentage,(Loan_Years*12)-Pay_Num+1,Beg_Bal)),\"\",IF(Values_Entered,-PMT(Maandelijkse_rente_percentage,(Loan_Years*12)-Pay_Num+1,Beg_Bal),\"\"))","v":""},"",{"$error":"#VALUE!"},"",0,0]
["","","",{"$f":"IF(ISERROR(PMT(Maandelijkse_rente_percentage,(Loan_Years*12)-Pay_Num+1,Beg_Bal)),\"\",IF(Values_Entered,-PMT(Maandelijkse_rente_percentage,(Loan_Years*12)-Pay_Num+1,Beg_Bal),\"\"))","v":""},"",{"$error":"#VALUE!"},"",0,0]
["","","",{"$f":"IF(ISERROR(PMT(Maandelijkse_rente_percentage,(Loan_Years*12)-Pay_Num+1,Beg_Bal)),\"\",IF(Values_Entered,-PMT(Maandelijkse_rente_percentage,(Loan_Years*12)-Pay_Num+1,Beg_Bal),\"\"))","v":""},"",{"$error":"#VALUE!"},"",{"$f":"L6","v":0},0]
["","","",{"$f":"IF(ISERROR(PMT(Maandelijkse_rente_percentage,(Loan_Years*12)-Pay_Num+1,Beg_Bal)),\"\",IF(Values_Entered,-PMT(Maandelijkse_rente_percentage,(Loan_Years*12)-Pay_Num+1,Beg_Bal),\"\"))","v":""},"",{"$error":"#VALUE!"},"",0,0]
["","","",{"$f":"IF(ISERROR(PMT(Maandelijkse_rente_percentage,(Loan_Years*12)-Pay_Num+1,Beg_Bal)),\"\",IF(Values_Entered,-PMT(Maandelijkse_rente_percentage,(Loan_Years*12)-Pay_Num+1,Beg_Bal),\"\"))","v":""},"",{"$error":"#VALUE!"},"",0,0]
["","","",{"$f":"IF(ISERROR(PMT(Maandelijkse_rente_percentage,(Loan_Years*12)-Pay_Num+1,Beg_Bal)),\"\",IF(Values_Entered,-PMT(Maandelijkse_rente_percentage,(Loan_Years*12)-Pay_Num+1,Beg_Bal),\"\"))","v":""},"",{"$error":"#VALUE!"},"",0,0]
["","","",{"$f":"IF(ISERROR(PMT(Maandelijkse_rente_percentage,(Loan_Years*12)-Pay_Num+1,Beg_Bal)),\"\",IF(Values_Entered,-PMT(Maandelijkse_rente_percentage,(Loan_Years*12)-Pay_Num+1,Beg_Bal),\"\"))","v":""},"",{"$error":"#VALUE!"},"",0,0]
["","","",{"$f":"IF(ISERROR(PMT(Maandelijkse_rente_percentage,(Loan_Years*12)-Pay_Num+1,Beg_Bal)),\"\",IF(Values_Entered,-PMT(Maandelijkse_rente_percentage,(Loan_Years*12)-Pay_Num+1,Beg_Bal),\"\"))","v":""},"",{"$error":"#VALUE!"},"",0,0]
["","","",{"$f":"IF(ISERROR(PMT(Maandelijkse_rente_percentage,(Loan_Years*12)-Pay_Num+1,Beg_Bal)),\"\",IF(Values_Entered,-PMT(Maandelijkse_rente_percentage,(Loan_Years*12)-Pay_Num+1,Beg_Bal),\"\"))","v":""},"",{"$error":"#VALUE!"},"",0,0]
["","","",{"$f":"IF(ISERROR(PMT(Maandelijkse_rente_percentage,(Loan_Years*12)-Pay_Num+1,Beg_Bal)),\"\",IF(Values_Entered,-PMT(Maandelijkse_rente_percentage,(Loan_Years*12)-Pay_Num+1,Beg_Bal),\"\"))","v":""},"",{"$error":"#VALUE!"},"",0,0]
["","","",{"$f":"IF(ISERROR(PMT(Maandelijkse_rente_percentage,(Loan_Years*12)-Pay_Num+1,Beg_Bal)),\"\",IF(Values_Entered,-PMT(Maandelijkse_rente_percentage,(Loan_Years*12)-Pay_Num+1,Beg_Bal),\"\"))","v":""},"",{"$error":"#VALUE!"},"",0,0]
["","","",{"$f":"IF(ISERROR(PMT(Maandelijkse_rente_percentage,(Loan_Years*12)-Pay_Num+1,Beg_Bal)),\"\",IF(Values_Entered,-PMT(Maandelijkse_rente_percentage,(Loan_Years*12)-Pay_Num+1,Beg_Bal),\"\"))","v":""},"",{"$error":"#VALUE!"},"",0,0]
["","","",{"$f":"IF(ISERROR(PMT(Maandelijkse_rente_percentage,(Loan_Years*12)-Pay_Num+1,Beg_Bal)),\"\",IF(Values_Entered,-PMT(Maandelijkse_rente_percentage,(Loan_Years*12)-Pay_Num+1,Beg_Bal),\"\"))","v":""},"",{"$error":"#VALUE!"},"",0,0]
["","","",{"$f":"IF(ISERROR(PMT(Maandelijkse_rente_percentage,(Loan_Years*12)-Pay_Num+1,Beg_Bal)),\"\",IF(Values_Entered,-PMT(Maandelijkse_rente_percentage,(Loan_Years*12)-Pay_Num+1,Beg_Bal),\"\"))","v":""},"",{"$error":"#VALUE!"},"",0,0]
["","","",{"$f":"IF(ISERROR(PMT(Maandelijkse_rente_percentage,(Loan_Years*12)-Pay_Num+1,Beg_Bal)),\"\",IF(Values_Entered,-PMT(Maandelijkse_rente_percentage,(Loan_Years*12)-Pay_Num+1,Beg_Bal),\"\"))","v":""},"",{"$error":"#VALUE!"},"",{"$f":"L7","v":0},0]
["","","",{"$f":"IF(ISERROR(PMT(Maandelijkse_rente_percentage,(Loan_Years*12)-Pay_Num+1,Beg_Bal)),\"\",IF(Values_Entered,-PMT(Maandelijkse_rente_percentage,(Loan_Years*12)-Pay_Num+1,Beg_Bal),\"\"))","v":""},"",{"$error":"#VALUE!"},"",0,0]
["","","",{"$f":"IF(ISERROR(PMT(Maandelijkse_rente_percentage,(Loan_Years*12)-Pay_Num+1,Beg_Bal)),\"\",IF(Values_Entered,-PMT(Maandelijkse_rente_percentage,(Loan_Years*12)-Pay_Num+1,Beg_Bal),\"\"))","v":""},"",{"$error":"#VALUE!"},"",0,0]
["","","",{"$f":"IF(ISERROR(PMT(Maandelijkse_rente_percentage,(Loan_Years*12)-Pay_Num+1,Beg_Bal)),\"\",IF(Values_Entered,-PMT(Maandelijkse_rente_percentage,(Loan_Years*12)-Pay_Num+1,Beg_Bal),\"\"))","v":""},"",{"$error":"#VALUE!"},"",0,0]
["","","",{"$f":"IF(ISERROR(PMT(Maandelijkse_rente_percentage,(Loan_Years*12)-Pay_Num+1,Beg_Bal)),\"\",IF(Values_Entered,-PMT(Maandelijkse_rente_percentage,(Loan_Years*12)-Pay_Num+1,Beg_Bal),\"\"))","v":""},"",{"$error":"#VALUE!"},"",0,0]
["","","",{"$f":"IF(ISERROR(PMT(Maandelijkse_rente_percentage,(Loan_Years*12)-Pay_Num+1,Beg_Bal)),\"\",IF(Values_Entered,-PMT(Maandelijkse_rente_percentage,(Loan_Years*12)-Pay_Num+1,Beg_Bal),\"\"))","v":""},"",{"$error":"#VALUE!"},"",0,0]
["","","",{"$f":"IF(ISERROR(PMT(Maandelijkse_rente_percentage,(Loan_Years*12)-Pay_Num+1,Beg_Bal)),\"\",IF(Values_Entered,-PMT(Maandelijkse_rente_percentage,(Loan_Years*12)-Pay_Num+1,Beg_Bal),\"\"))","v":""},"",{"$error":"#VALUE!"},"",0,0]
["","","",{"$f":"IF(ISERROR(PMT(Maandelijkse_rente_percentage,(Loan_Years*12)-Pay_Num+1,Beg_Bal)),\"\",IF(Values_Entered,-PMT(Maandelijkse_rente_percentage,(Loan_Years*12)-Pay_Num+1,Beg_Bal),\"\"))","v":""},"",{"$error":"#VALUE!"},"",0,0]
["","","",{"$f":"IF(ISERROR(PMT(Maandelijkse_rente_percentage,(Loan_Years*12)-Pay_Num+1,Beg_Bal)),\"\",IF(Values_Entered,-PMT(Maandelijkse_rente_percentage,(Loan_Years*12)-Pay_Num+1,Beg_Bal),\"\"))","v":""},"",{"$error":"#VALUE!"},"",0,0]
["","","",{"$f":"IF(ISERROR(PMT(Maandelijkse_rente_percentage,(Loan_Years*12)-Pay_Num+1,Beg_Bal)),\"\",IF(Values_Entered,-PMT(Maandelijkse_rente_percentage,(Loan_Years*12)-Pay_Num+1,Beg_Bal),\"\"))","v":""},"",{"$error":"#VALUE!"},"",0,0]
["","","",{"$f":"IF(ISERROR(PMT(Maandelijkse_rente_percentage,(Loan_Years*12)-Pay_Num+1,Beg_Bal)),\"\",IF(Values_Entered,-PMT(Maandelijkse_rente_percentage,(Loan_Years*12)-Pay_Num+1,Beg_Bal),\"\"))","v":""},"",{"$error":"#VALUE!"},"",0,0]
["","","",{"$f":"IF(ISERROR(PMT(Maandelijkse_rente_percentage,(Loan_Years*12)-Pay_Num+1,Beg_Bal)),\"\",IF(Values_Entered,-PMT(Maandelijkse_rente_percentage,(Loan_Years*12)-Pay_Num+1,Beg_Bal),\"\"))","v":""},"",{"$error":"#VALUE!"},"",0,0]
["","","",{"$f":"IF(ISERROR(PMT(Maandelijkse_rente_percentage,(Loan_Years*12)-Pay_Num+1,Beg_Bal)),\"\",IF(Values_Entered,-PMT(Maandelijkse_rente_percentage,(Loan_Years*12)-Pay_Num+1,Beg_Bal),\"\"))","v":""},"",{"$error":"#VALUE!"},"",{"$f":"L8","v":0},0]
["","","",{"$f":"IF(ISERROR(PMT(Maandelijkse_rente_percentage,(Loan_Years*12)-Pay_Num+1,Beg_Bal)),\"\",IF(Values_Entered,-PMT(Maandelijkse_rente_percentage,(Loan_Years*12)-Pay_Num+1,Beg_Bal),\"\"))","v":""},"",{"$error":"#VALUE!"},"",{"$f":"H79","v":0},0]
["","","",{"$f":"IF(ISERROR(PMT(Maandelijkse_rente_percentage,(Loan_Years*12)-Pay_Num+1,Beg_Bal)),\"\",IF(Values_Entered,-PMT(Maandelijkse_rente_percentage,(Loan_Years*12)-Pay_Num+1,Beg_Bal),\"\"))","v":""},"",{"$error":"#VALUE!"},"",0,0]
["","","",{"$f":"IF(ISERROR(PMT(Maandelijkse_rente_percentage,(Loan_Years*12)-Pay_Num+1,Beg_Bal)),\"\",IF(Values_Entered,-PMT(Maandelijkse_rente_percentage,(Loan_Years*12)-Pay_Num+1,Beg_Bal),\"\"))","v":""},"",{"$error":"#VALUE!"},"",0,0]
["","","",{"$f":"IF(ISERROR(PMT(Maandelijkse_rente_percentage,(Loan_Years*12)-Pay_Num+1,Beg_Bal)),\"\",IF(Values_Entered,-PMT(Maandelijkse_rente_percentage,(Loan_Years*12)-Pay_Num+1,Beg_Bal),\"\"))","v":""},{"$f":"IF(Pay_Num<>\"\",Maandelijkse_aflossing-Int,\"\")","v":""},{"$f":"Beg_Bal*Maandelijkse_rente_percentage","v":{"$error":"#VALUE!"}},"",0,{"$f":"((1+Jaarlijk_rente_percentage)^(1/12))-1","v":0}]
[{"$f":"IF(Values_Entered,A83+1,\"\")","v":""},{"$f":"IF(Pay_Num<>\"\",DATE(YEAR(B83),MONTH(B83)+1,DAY(B83)),\"\")","v":""},"",{"$f":"IF(ISERROR(PMT(Maandelijkse_rente_percentage,(Loan_Years*12)-Pay_Num+1,Beg_Bal)),\"\",IF(Values_Entered,-PMT(Maandelijkse_rente_percentage,(Loan_Years*12)-Pay_Num+1,Beg_Bal),\"\"))","v":""},"",{"$error":"#VALUE!"},{"$f":"IF(Pay_Num<>\"\",Beg_Bal-Princ,\"\")","v":""},0,0]
["","",{"$f":"IF(Pay_Num<>\"\",G84,\"\")","v":""},{"$f":"IF(ISERROR(PMT(Maandelijkse_rente_percentage,(Loan_Years*12)-Pay_Num+1,Beg_Bal)),\"\",IF(Values_Entered,-PMT(Maandelijkse_rente_percentage,(Loan_Years*12)-Pay_Num+1,Beg_Bal),\"\"))","v":""},"",{"$error":"#VALUE!"},"",0,0]
["","","",{"$f":"IF(ISERROR(PMT(Maandelijkse_rente_percentage,(Loan_Years*12)-Pay_Num+1,Beg_Bal)),\"\",IF(Values_Entered,-PMT(Maandelijkse_rente_percentage,(Loan_Years*12)-Pay_Num+1,Beg_Bal),\"\"))","v":""},"",{"$error":"#VALUE!"},"",0,0]
["","","",{"$f":"IF(ISERROR(PMT(Maandelijkse_rente_percentage,(Loan_Years*12)-Pay_Num+1,Beg_Bal)),\"\",IF(Values_Entered,-PMT(Maandelijkse_rente_percentage,(Loan_Years*12)-Pay_Num+1,Beg_Bal),\"\"))","v":""},"",{"$error":"#VALUE!"},"",0,0]
["","","",{"$f":"IF(ISERROR(PMT(Maandelijkse_rente_percentage,(Loan_Years*12)-Pay_Num+1,Beg_Bal)),\"\",IF(Values_Entered,-PMT(Maandelijkse_rente_percentage,(Loan_Years*12)-Pay_Num+1,Beg_Bal),\"\"))","v":""},"",{"$error":"#VALUE!"},"",0,0]
["","","",{"$f":"IF(ISERROR(PMT(Maandelijkse_rente_percentage,(Loan_Years*12)-Pay_Num+1,Beg_Bal)),\"\",IF(Values_Entered,-PMT(Maandelijkse_rente_percentage,(Loan_Years*12)-Pay_Num+1,Beg_Bal),\"\"))","v":""},"",{"$error":"#VALUE!"},"",0,0]
["","","",{"$f":"IF(ISERROR(PMT(Maandelijkse_rente_percentage,(Loan_Years*12)-Pay_Num+1,Beg_Bal)),\"\",IF(Values_Entered,-PMT(Maandelijkse_rente_percentage,(Loan_Years*12)-Pay_Num+1,Beg_Bal),\"\"))","v":""},"",{"$error":"#VALUE!"},"",0,0]
["","","",{"$f":"IF(ISERROR(PMT(Maandelijkse_rente_percentage,(Loan_Years*12)-Pay_Num+1,Beg_Bal)),\"\",IF(Values_Entered,-PMT(Maandelijkse_rente_percentage,(Loan_Years*12)-Pay_Num+1,Beg_Bal),\"\"))","v":""},"",{"$error":"#VALUE!"},"",{"$f":"L9","v":0},0]
["","","",{"$f":"IF(ISERROR(PMT(Maandelijkse_rente_percentage,(Loan_Years*12)-Pay_Num+1,Beg_Bal)),\"\",IF(Values_Entered,-PMT(Maandelijkse_rente_percentage,(Loan_Years*12)-Pay_Num+1,Beg_Bal),\"\"))","v":""},"",{"$error":"#VALUE!"},"",0,0]
["","","",{"$f":"IF(ISERROR(PMT(Maandelijkse_rente_percentage,(Loan_Years*12)-Pay_Num+1,Beg_Bal)),\"\",IF(Values_Entered,-PMT(Maandelijkse_rente_percentage,(Loan_Years*12)-Pay_Num+1,Beg_Bal),\"\"))","v":""},"",{"$error":"#VALUE!"},"",0,0]
["","","",{"$f":"IF(ISERROR(PMT(Maandelijkse_rente_percentage,(Loan_Years*12)-Pay_Num+1,Beg_Bal)),\"\",IF(Values_Entered,-PMT(Maandelijkse_rente_percentage,(Loan_Years*12)-Pay_Num+1,Beg_Bal),\"\"))","v":""},"",{"$error":"#VALUE!"},"",0,0]
["","","",{"$f":"IF(ISERROR(PMT(Maandelijkse_rente_percentage,(Loan_Years*12)-Pay_Num+1,Beg_Bal)),\"\",IF(Values_Entered,-PMT(Maandelijkse_rente_percentage,(Loan_Years*12)-Pay_Num+1,Beg_Bal),\"\"))","v":""},"",{"$error":"#VALUE!"},"",0,0]
["","","",{"$f":"IF(ISERROR(PMT(Maandelijkse_rente_percentage,(Loan_Years*12)-Pay_Num+1,Beg_Bal)),\"\",IF(Values_Entered,-PMT(Maandelijkse_rente_percentage,(Loan_Years*12)-Pay_Num+1,Beg_Bal),\"\"))","v":""},"",{"$error":"#VALUE!"},"",0,0]
["","","",{"$f":"IF(ISERROR(PMT(Maandelijkse_rente_percentage,(Loan_Years*12)-Pay_Num+1,Beg_Bal)),\"\",IF(Values_Entered,-PMT(Maandelijkse_rente_percentage,(Loan_Years*12)-Pay_Num+1,Beg_Bal),\"\"))","v":""},"",{"$error":"#VALUE!"},"",0,0]
["","","",{"$f":"IF(ISERROR(PMT(Maandelijkse_rente_percentage,(Loan_Years*12)-Pay_Num+1,Beg_Bal)),\"\",IF(Values_Entered,-PMT(Maandelijkse_rente_percentage,(Loan_Years*12)-Pay_Num+1,Beg_Bal),\"\"))","v":""},"",{"$error":"#VALUE!"},"",0,0]
["","","",{"$f":"IF(ISERROR(PMT(Maandelijkse_rente_percentage,(Loan_Years*12)-Pay_Num+1,Beg_Bal)),\"\",IF(Values_Entered,-PMT(Maandelijkse_rente_percentage,(Loan_Years*12)-Pay_Num+1,Beg_Bal),\"\"))","v":""},"",{"$error":"#VALUE!"},"",0,0]
["","","",{"$f":"IF(ISERROR(PMT(Maandelijkse_rente_percentage,(Loan_Years*12)-Pay_Num+1,Beg_Bal)),\"\",IF(Values_Entered,-PMT(Maandelijkse_rente_percentage,(Loan_Years*12)-Pay_Num+1,Beg_Bal),\"\"))","v":""},"",{"$error":"#VALUE!"},"",0,0]
["","","",{"$f":"IF(ISERROR(PMT(Maandelijkse_rente_percentage,(Loan_Years*12)-Pay_Num+1,Beg_Bal)),\"\",IF(Values_Entered,-PMT(Maandelijkse_rente_percentage,(Loan_Years*12)-Pay_Num+1,Beg_Bal),\"\"))","v":""},"",{"$error":"#VALUE!"},"",0,0]
["","","",{"$f":"IF(ISERROR(PMT(Maandelijkse_rente_percentage,(Loan_Years*12)-Pay_Num+1,Beg_Bal)),\"\",IF(Values_Entered,-PMT(Maandelijkse_rente_percentage,(Loan_Years*12)-Pay_Num+1,Beg_Bal),\"\"))","v":""},"",{"$error":"#VALUE!"},"",0,0]
["","","",{"$f":"IF(ISERROR(PMT(Maandelijkse_rente_percentage,(Loan_Years*12)-Pay_Num+1,Beg_Bal)),\"\",IF(Values_Entered,-PMT(Maandelijkse_rente_percentage,(Loan_Years*12)-Pay_Num+1,Beg_Bal),\"\"))","v":""},"",{"$error":"#VALUE!"},"",{"$f":"L10","v":0},0]
["","","",{"$f":"IF(ISERROR(PMT(Maandelijkse_rente_percentage,(Loan_Years*12)-Pay_Num+1,Beg_Bal)),\"\",IF(Values_Entered,-PMT(Maandelijkse_rente_percentage,(Loan_Years*12)-Pay_Num+1,Beg_Bal),\"\"))","v":""},"",{"$error":"#VALUE!"},"",0,0]
["","","",{"$f":"IF(ISERROR(PMT(Maandelijkse_rente_percentage,(Loan_Years*12)-Pay_Num+1,Beg_Bal)),\"\",IF(Values_Entered,-PMT(Maandelijkse_rente_percentage,(Loan_Years*12)-Pay_Num+1,Beg_Bal),\"\"))","v":""},"",{"$error":"#VALUE!"},"",0,0]
["","","",{"$f":"IF(ISERROR(PMT(Maandelijkse_rente_percentage,(Loan_Years*12)-Pay_Num+1,Beg_Bal)),\"\",IF(Values_Entered,-PMT(Maandelijkse_rente_percentage,(Loan_Years*12)-Pay_Num+1,Beg_Bal),\"\"))","v":""},"",{"$error":"#VALUE!"},"",0,0]
["","","",{"$f":"IF(ISERROR(PMT(Maandelijkse_rente_percentage,(Loan_Years*12)-Pay_Num+1,Beg_Bal)),\"\",IF(Values_Entered,-PMT(Maandelijkse_rente_percentage,(Loan_Years*12)-Pay_Num+1,Beg_Bal),\"\"))","v":""},"",{"$error":"#VALUE!"},"",0,0]
["","","",{"$f":"IF(ISERROR(PMT(Maandelijkse_rente_percentage,(Loan_Years*12)-Pay_Num+1,Beg_Bal)),\"\",IF(Values_Entered,-PMT(Maandelijkse_rente_percentage,(Loan_Years*12)-Pay_Num+1,Beg_Bal),\"\"))","v":""},"",{"$error":"#VALUE!"},"",0,0]
["","","",{"$f":"IF(ISERROR(PMT(Maandelijkse_rente_percentage,(Loan_Years*12)-Pay_Num+1,Beg_Bal)),\"\",IF(Values_Entered,-PMT(Maandelijkse_rente_percentage,(Loan_Years*12)-Pay_Num+1,Beg_Bal),\"\"))","v":""},"",{"$error":"#VALUE!"},"",0,0]
["","","",{"$f":"IF(ISERROR(PMT(Maandelijkse_rente_percentage,(Loan_Years*12)-Pay_Num+1,Beg_Bal)),\"\",IF(Values_Entered,-PMT(Maandelijkse_rente_percentage,(Loan_Years*12)-Pay_Num+1,Beg_Bal),\"\"))","v":""},"",{"$error":"#VALUE!"},"",0,0]
["","","",{"$f":"IF(ISERROR(PMT(Maandelijkse_rente_percentage,(Loan_Years*12)-Pay_Num+1,Beg_Bal)),\"\",IF(Values_Entered,-PMT(Maandelijkse_rente_percentage,(Loan_Years*12)-Pay_Num+1,Beg_Bal),\"\"))","v":""},"",{"$error":"#VALUE!"},"",0,0]
["","","",{"$f":"IF(ISERROR(PMT(Maandelijkse_rente_percentage,(Loan_Years*12)-Pay_Num+1,Beg_Bal)),\"\",IF(Values_Entered,-PMT(Maandelijkse_rente_percentage,(Loan_Years*12)-Pay_Num+1,Beg_Bal),\"\"))","v":""},"",{"$error":"#VALUE!"},"",0,0]
["","","",{"$f":"IF(ISERROR(PMT(Maandelijkse_rente_percentage,(Loan_Years*12)-Pay_Num+1,Beg_Bal)),\"\",IF(Values_Entered,-PMT(Maandelijkse_rente_percentage,(Loan_Years*12)-Pay_Num+1,Beg_Bal),\"\"))","v":""},"",{"$error":"#VALUE!"},"",0,0]
["","","",{"$f":"IF(ISERROR(PMT(Maandelijkse_rente_percentage,(Loan_Years*12)-Pay_Num+1,Beg_Bal)),\"\",IF(Values_Entered,-PMT(Maandelijkse_rente_percentage,(Loan_Years*12)-Pay_Num+1,Beg_Bal),\"\"))","v":""},"",{"$error":"#VALUE!"},"",0,0]
["","","",{"$f":"IF(ISERROR(PMT(Maandelijkse_rente_percentage,(Loan_Years*12)-Pay_Num+1,Beg_Bal)),\"\",IF(Values_Entered,-PMT(Maandelijkse_rente_percentage,(Loan_Years*12)-Pay_Num+1,Beg_Bal),\"\"))","v":""},"",{"$error":"#VALUE!"},"",{"$f":"L11","v":0},0]
["","","",{"$f":"IF(ISERROR(PMT(Maandelijkse_rente_percentage,(Loan_Years*12)-Pay_Num+1,Beg_Bal)),\"\",IF(Values_Entered,-PMT(Maandelijkse_rente_percentage,(Loan_Years*12)-Pay_Num+1,Beg_Bal),\"\"))","v":""},"",{"$error":"#VALUE!"},"",0,0]
["","","",{"$f":"IF(ISERROR(PMT(Maandelijkse_rente_percentage,(Loan_Years*12)-Pay_Num+1,Beg_Bal)),\"\",IF(Values_Entered,-PMT(Maandelijkse_rente_percentage,(Loan_Years*12)-Pay_Num+1,Beg_Bal),\"\"))","v":""},"",{"$error":"#VALUE!"},"",0,0]
["","","",{"$f":"IF(ISERROR(PMT(Maandelijkse_rente_percentage,(Loan_Years*12)-Pay_Num+1,Beg_Bal)),\"\",IF(Values_Entered,-PMT(Maandelijkse_rente_percentage,(Loan_Years*12)-Pay_Num+1,Beg_Bal),\"\"))","v":""},"",{"$error":"#VALUE!"},"",0,0]
["","","",{"$f":"IF(ISERROR(PMT(Maandelijkse_rente_percentage,(Loan_Years*12)-Pay_Num+1,Beg_Bal)),\"\",IF(Values_Entered,-PMT(Maandelijkse_rente_percentage,(Loan_Years*12)-Pay_Num+1,Beg_Bal),\"\"))","v":""},"",{"$error":"#VALUE!"},"",0,0]
["","","",{"$f":"IF(ISERROR(PMT(Maandelijkse_rente_percentage,(Loan_Years*12)-Pay_Num+1,Beg_Bal)),\"\",IF(Values_Entered,-PMT(Maandelijkse_rente_percentage,(Loan_Years*12)-Pay_Num+1,Beg_Bal),\"\"))","v":""},"",{"$error":"#VALUE!"},"",0,0]
["","","",{"$f":"IF(ISERROR(PMT(Maandelijkse_rente_percentage,(Loan_Years*12)-Pay_Num+1,Beg_Bal)),\"\",IF(Values_Entered,-PMT(Maandelijkse_rente_percentage,(Loan_Years*12)-Pay_Num+1,Beg_Bal),\"\"))","v":""},"",{"$error":"#VALUE!"},"",0,0]
["","","",{"$f":"IF(ISERROR(PMT(Maandelijkse_rente_percentage,(Loan_Years*12)-Pay_Num+1,Beg_Bal)),\"\",IF(Values_Entered,-PMT(Maandelijkse_rente_percentage,(Loan_Years*12)-Pay_Num+1,Beg_Bal),\"\"))","v":""},"",{"$error":"#VALUE!"},"",0,0]
["","","",{"$f":"IF(ISERROR(PMT(Maandelijkse_rente_percentage,(Loan_Years*12)-Pay_Num+1,Beg_Bal)),\"\",IF(Values_Entered,-PMT(Maandelijkse_rente_percentage,(Loan_Years*12)-Pay_Num+1,Beg_Bal),\"\"))","v":""},"",{"$error":"#VALUE!"},"",0,0]
["","","",{"$f":"IF(ISERROR(PMT(Maandelijkse_rente_percentage,(Loan_Years*12)-Pay_Num+1,Beg_Bal)),\"\",IF(Values_Entered,-PMT(Maandelijkse_rente_percentage,(Loan_Years*12)-Pay_Num+1,Beg_Bal),\"\"))","v":""},"",{"$error":"#VALUE!"},"",0,0]
["","","",{"$f":"IF(ISERROR(PMT(Maandelijkse_rente_percentage,(Loan_Years*12)-Pay_Num+1,Beg_Bal)),\"\",IF(Values_Entered,-PMT(Maandelijkse_rente_percentage,(Loan_Years*12)-Pay_Num+1,Beg_Bal),\"\"))","v":""},"",{"$error":"#VALUE!"},"",0,0]
["","","",{"$f":"IF(ISERROR(PMT(Maandelijkse_rente_percentage,(Loan_Years*12)-Pay_Num+1,Beg_Bal)),\"\",IF(Values_Entered,-PMT(Maandelijkse_rente_percentage,(Loan_Years*12)-Pay_Num+1,Beg_Bal),\"\"))","v":""},"",{"$error":"#VALUE!"},"",0,0]
["","","",{"$f":"IF(ISERROR(PMT(Maandelijkse_rente_percentage,(Loan_Years*12)-Pay_Num+1,Beg_Bal)),\"\",IF(Values_Entered,-PMT(Maandelijkse_rente_percentage,(Loan_Years*12)-Pay_Num+1,Beg_Bal),\"\"))","v":""},"",{"$error":"#VALUE!"},"",{"$f":"L12","v":0},0]
["","","",{"$f":"IF(ISERROR(PMT(Maandelijkse_rente_percentage,(Loan_Years*12)-Pay_Num+1,Beg_Bal)),\"\",IF(Values_Entered,-PMT(Maandelijkse_rente_percentage,(Loan_Years*12)-Pay_Num+1,Beg_Bal),\"\"))","v":""},"",{"$error":"#VALUE!"},"",0,0]
["","","",{"$f":"IF(ISERROR(PMT(Maandelijkse_rente_percentage,(Loan_Years*12)-Pay_Num+1,Beg_Bal)),\"\",IF(Values_Entered,-PMT(Maandelijkse_rente_percentage,(Loan_Years*12)-Pay_Num+1,Beg_Bal),\"\"))","v":""},"",{"$error":"#VALUE!"},"",0,0]
["","","",{"$f":"IF(ISERROR(PMT(Maandelijkse_rente_percentage,(Loan_Years*12)-Pay_Num+1,Beg_Bal)),\"\",IF(Values_Entered,-PMT(Maandelijkse_rente_percentage,(Loan_Years*12)-Pay_Num+1,Beg_Bal),\"\"))","v":""},"",{"$error":"#VALUE!"},"",0,0]
["","","",{"$f":"IF(ISERROR(PMT(Maandelijkse_rente_percentage,(Loan_Years*12)-Pay_Num+1,Beg_Bal)),\"\",IF(Values_Entered,-PMT(Maandelijkse_rente_percentage,(Loan_Years*12)-Pay_Num+1,Beg_Bal),\"\"))","v":""},"",{"$error":"#VALUE!"},"",0,0]
["","","",{"$f":"IF(ISERROR(PMT(Maandelijkse_rente_percentage,(Loan_Years*12)-Pay_Num+1,Beg_Bal)),\"\",IF(Values_Entered,-PMT(Maandelijkse_rente_percentage,(Loan_Years*12)-Pay_Num+1,Beg_Bal),\"\"))","v":""},"",{"$error":"#VALUE!"},"",0,0]
["","","",{"$f":"IF(ISERROR(PMT(Maandelijkse_rente_percentage,(Loan_Years*12)-Pay_Num+1,Beg_Bal)),\"\",IF(Values_Entered,-PMT(Maandelijkse_rente_percentage,(Loan_Years*12)-Pay_Num+1,Beg_Bal),\"\"))","v":""},"",{"$error":"#VALUE!"},"",0,0]
["","","",{"$f":"IF(ISERROR(PMT(Maandelijkse_rente_percentage,(Loan_Years*12)-Pay_Num+1,Beg_Bal)),\"\",IF(Values_Entered,-PMT(Maandelijkse_rente_percentage,(Loan_Years*12)-Pay_Num+1,Beg_Bal),\"\"))","v":""},"",{"$error":"#VALUE!"},"",0,0]
["","","",{"$f":"IF(ISERROR(PMT(Maandelijkse_rente_percentage,(Loan_Years*12)-Pay_Num+1,Beg_Bal)),\"\",IF(Values_Entered,-PMT(Maandelijkse_rente_percentage,(Loan_Years*12)-Pay_Num+1,Beg_Bal),\"\"))","v":""},"",{"$error":"#VALUE!"},"",0,0]
["","","",{"$f":"IF(ISERROR(PMT(Maandelijkse_rente_percentage,(Loan_Years*12)-Pay_Num+1,Beg_Bal)),\"\",IF(Values_Entered,-PMT(Maandelijkse_rente_percentage,(Loan_Years*12)-Pay_Num+1,Beg_Bal),\"\"))","v":""},"",{"$error":"#VALUE!"},"",0,0]
["","","",{"$f":"IF(ISERROR(PMT(Maandelijkse_rente_percentage,(Loan_Years*12)-Pay_Num+1,Beg_Bal)),\"\",IF(Values_Entered,-PMT(Maandelijkse_rente_percentage,(Loan_Years*12)-Pay_Num+1,Beg_Bal),\"\"))","v":""},"",{"$error":"#VALUE!"},"",0,0]
["","","",{"$f":"IF(ISERROR(PMT(Maandelijkse_rente_percentage,(Loan_Years*12)-Pay_Num+1,Beg_Bal)),\"\",IF(Values_Entered,-PMT(Maandelijkse_rente_percentage,(Loan_Years*12)-Pay_Num+1,Beg_Bal),\"\"))","v":""},"",{"$error":"#VALUE!"},"",0,0]
["","","",{"$f":"IF(ISERROR(PMT(Maandelijkse_rente_percentage,(Loan_Years*12)-Pay_Num+1,Beg_Bal)),\"\",IF(Values_Entered,-PMT(Maandelijkse_rente_percentage,(Loan_Years*12)-Pay_Num+1,Beg_Bal),\"\"))","v":""},"",{"$error":"#VALUE!"},"",{"$f":"L13","v":0},0]
["","","",{"$f":"IF(ISERROR(PMT(Maandelijkse_rente_percentage,(Loan_Years*12)-Pay_Num+1,Beg_Bal)),\"\",IF(Values_Entered,-PMT(Maandelijkse_rente_percentage,(Loan_Years*12)-Pay_Num+1,Beg_Bal),\"\"))","v":""},"",{"$error":"#VALUE!"},"",0,0]
["","","",{"$f":"IF(ISERROR(PMT(Maandelijkse_rente_percentage,(Loan_Years*12)-Pay_Num+1,Beg_Bal)),\"\",IF(Values_Entered,-PMT(Maandelijkse_rente_percentage,(Loan_Years*12)-Pay_Num+1,Beg_Bal),\"\"))","v":""},"",{"$error":"#VALUE!"},"",0,0]
["","","",{"$f":"IF(ISERROR(PMT(Maandelijkse_rente_percentage,(Loan_Years*12)-Pay_Num+1,Beg_Bal)),\"\",IF(Values_Entered,-PMT(Maandelijkse_rente_percentage,(Loan_Years*12)-Pay_Num+1,Beg_Bal),\"\"))","v":""},"",{"$error":"#VALUE!"},"",0,0]
["","","",{"$f":"IF(ISERROR(PMT(Maandelijkse_rente_percentage,(Loan_Years*12)-Pay_Num+1,Beg_Bal)),\"\",IF(Values_Entered,-PMT(Maandelijkse_rente_percentage,(Loan_Years*12)-Pay_Num+1,Beg_Bal),\"\"))","v":""},"",{"$error":"#VALUE!"},"",0,0]
["","","",{"$f":"IF(ISERROR(PMT(Maandelijkse_rente_percentage,(Loan_Years*12)-Pay_Num+1,Beg_Bal)),\"\",IF(Values_Entered,-PMT(Maandelijkse_rente_percentage,(Loan_Years*12)-Pay_Num+1,Beg_Bal),\"\"))","v":""},"",{"$error":"#VALUE!"},"",{"$f":"H143","v":0},0]
["","","",{"$f":"IF(ISERROR(PMT(Maandelijkse_rente_percentage,(Loan_Years*12)-Pay_Num+1,Beg_Bal)),\"\",IF(Values_Entered,-PMT(Maandelijkse_rente_percentage,(Loan_Years*12)-Pay_Num+1,Beg_Bal),\"\"))","v":""},"",{"$error":"#VALUE!"},"",0,0]
["","","",{"$f":"IF(ISERROR(PMT(Maandelijkse_rente_percentage,(Loan_Years*12)-Pay_Num+1,Beg_Bal)),\"\",IF(Values_Entered,-PMT(Maandelijkse_rente_percentage,(Loan_Years*12)-Pay_Num+1,Beg_Bal),\"\"))","v":""},"",{"$error":"#VALUE!"},"",0,0]
["","","",{"$f":"IF(ISERROR(PMT(Maandelijkse_rente_percentage,(Loan_Years*12)-Pay_Num+1,Beg_Bal)),\"\",IF(Values_Entered,-PMT(Maandelijkse_rente_percentage,(Loan_Years*12)-Pay_Num+1,Beg_Bal),\"\"))","v":""},{"$f":"IF(Pay_Num<>\"\",Maandelijkse_aflossing-Int,\"\")","v":""},{"$f":"Beg_Bal*Maandelijkse_rente_percentage","v":{"$error":"#VALUE!"}},"",0,{"$f":"((1+Jaarlijk_rente_percentage)^(1/12))-1","v":0}]
[{"$f":"IF(Values_Entered,A147+1,\"\")","v":""},{"$f":"IF(Pay_Num<>\"\",DATE(YEAR(B147),MONTH(B147)+1,DAY(B147)),\"\")","v":""},"",{"$f":"IF(ISERROR(PMT(Maandelijkse_rente_percentage,(Loan_Years*12)-Pay_Num+1,Beg_Bal)),\"\",IF(Values_Entered,-PMT(Maandelijkse_rente_percentage,(Loan_Years*12)-Pay_Num+1,Beg_Bal),\"\"))","v":""},"",{"$error":"#VALUE!"},{"$f":"IF(Pay_Num<>\"\",Beg_Bal-Princ,\"\")","v":""},0,0]
["","",{"$f":"IF(Pay_Num<>\"\",G148,\"\")","v":""},{"$f":"IF(ISERROR(PMT(Maandelijkse_rente_percentage,(Loan_Years*12)-Pay_Num+1,Beg_Bal)),\"\",IF(Values_Entered,-PMT(Maandelijkse_rente_percentage,(Loan_Years*12)-Pay_Num+1,Beg_Bal),\"\"))","v":""},"",{"$error":"#VALUE!"},"",0,0]
["","","",{"$f":"IF(ISERROR(PMT(Maandelijkse_rente_percentage,(Loan_Years*12)-Pay_Num+1,Beg_Bal)),\"\",IF(Values_Entered,-PMT(Maandelijkse_rente_percentage,(Loan_Years*12)-Pay_Num+1,Beg_Bal),\"\"))","v":""},"",{"$error":"#VALUE!"},"",0,0]
["","","",{"$f":"IF(ISERROR(PMT(Maandelijkse_rente_percentage,(Loan_Years*12)-Pay_Num+1,Beg_Bal)),\"\",IF(Values_Entered,-PMT(Maandelijkse_rente_percentage,(Loan_Years*12)-Pay_Num+1,Beg_Bal),\"\"))","v":""},"",{"$error":"#VALUE!"},"",{"$f":"L14","v":0},0]
["","","",{"$f":"IF(ISERROR(PMT(Maandelijkse_rente_percentage,(Loan_Years*12)-Pay_Num+1,Beg_Bal)),\"\",IF(Values_Entered,-PMT(Maandelijkse_rente_percentage,(Loan_Years*12)-Pay_Num+1,Beg_Bal),\"\"))","v":""},"",{"$error":"#VALUE!"},"",0,0]
["","","",{"$f":"IF(ISERROR(PMT(Maandelijkse_rente_percentage,(Loan_Years*12)-Pay_Num+1,Beg_Bal)),\"\",IF(Values_Entered,-PMT(Maandelijkse_rente_percentage,(Loan_Years*12)-Pay_Num+1,Beg_Bal),\"\"))","v":""},"",{"$error":"#VALUE!"},"",0,0]
["","","",{"$f":"IF(ISERROR(PMT(Maandelijkse_rente_percentage,(Loan_Years*12)-Pay_Num+1,Beg_Bal)),\"\",IF(Values_Entered,-PMT(Maandelijkse_rente_percentage,(Loan_Years*12)-Pay_Num+1,Beg_Bal),\"\"))","v":""},"",{"$error":"#VALUE!"},"",0,0]
["","","",{"$f":"IF(ISERROR(PMT(Maandelijkse_rente_percentage,(Loan_Years*12)-Pay_Num+1,Beg_Bal)),\"\",IF(Values_Entered,-PMT(Maandelijkse_rente_percentage,(Loan_Years*12)-Pay_Num+1,Beg_Bal),\"\"))","v":""},"",{"$error":"#VALUE!"},"",0,0]
["","","",{"$f":"IF(ISERROR(PMT(Maandelijkse_rente_percentage,(Loan_Years*12)-Pay_Num+1,Beg_Bal)),\"\",IF(Values_Entered,-PMT(Maandelijkse_rente_percentage,(Loan_Years*12)-Pay_Num+1,Beg_Bal),\"\"))","v":""},"",{"$error":"#VALUE!"},"",0,0]
["","","",{"$f":"IF(ISERROR(PMT(Maandelijkse_rente_percentage,(Loan_Years*12)-Pay_Num+1,Beg_Bal)),\"\",IF(Values_Entered,-PMT(Maandelijkse_rente_percentage,(Loan_Years*12)-Pay_Num+1,Beg_Bal),\"\"))","v":""},"",{"$error":"#VALUE!"},"",0,0]
["","","",{"$f":"IF(ISERROR(PMT(Maandelijkse_rente_percentage,(Loan_Years*12)-Pay_Num+1,Beg_Bal)),\"\",IF(Values_Entered,-PMT(Maandelijkse_rente_percentage,(Loan_Years*12)-Pay_Num+1,Beg_Bal),\"\"))","v":""},"",{"$error":"#VALUE!"},"",0,0]
["","","",{"$f":"IF(ISERROR(PMT(Maandelijkse_rente_percentage,(Loan_Years*12)-Pay_Num+1,Beg_Bal)),\"\",IF(Values_Entered,-PMT(Maandelijkse_rente_percentage,(Loan_Years*12)-Pay_Num+1,Beg_Bal),\"\"))","v":""},"",{"$error":"#VALUE!"},"",0,0]
["","","",{"$f":"IF(ISERROR(PMT(Maandelijkse_rente_percentage,(Loan_Years*12)-Pay_Num+1,Beg_Bal)),\"\",IF(Values_Entered,-PMT(Maandelijkse_rente_percentage,(Loan_Years*12)-Pay_Num+1,Beg_Bal),\"\"))","v":""},"",{"$error":"#VALUE!"},"",0,0]
["","","",{"$f":"IF(ISERROR(PMT(Maandelijkse_rente_percentage,(Loan_Years*12)-Pay_Num+1,Beg_Bal)),\"\",IF(Values_Entered,-PMT(Maandelijkse_rente_percentage,(Loan_Years*12)-Pay_Num+1,Beg_Bal),\"\"))","v":""},"",{"$error":"#VALUE!"},"",0,0]
["","","",{"$f":"IF(ISERROR(PMT(Maandelijkse_rente_percentage,(Loan_Years*12)-Pay_Num+1,Beg_Bal)),\"\",IF(Values_Entered,-PMT(Maandelijkse_rente_percentage,(Loan_Years*12)-Pay_Num+1,Beg_Bal),\"\"))","v":""},"",{"$error":"#VALUE!"},"",0,0]
["","","",{"$f":"IF(ISERROR(PMT(Maandelijkse_rente_percentage,(Loan_Years*12)-Pay_Num+1,Beg_Bal)),\"\",IF(Values_Entered,-PMT(Maandelijkse_rente_percentage,(Loan_Years*12)-Pay_Num+1,Beg_Bal),\"\"))","v":""},"",{"$error":"#VALUE!"},"",{"$f":"L15","v":0},0]
["","","",{"$f":"IF(ISERROR(PMT(Maandelijkse_rente_percentage,(Loan_Years*12)-Pay_Num+1,Beg_Bal)),\"\",IF(Values_Entered,-PMT(Maandelijkse_rente_percentage,(Loan_Years*12)-Pay_Num+1,Beg_Bal),\"\"))","v":""},"",{"$error":"#VALUE!"},"",0,0]
["","","",{"$f":"IF(ISERROR(PMT(Maandelijkse_rente_percentage,(Loan_Years*12)-Pay_Num+1,Beg_Bal)),\"\",IF(Values_Entered,-PMT(Maandelijkse_rente_percentage,(Loan_Years*12)-Pay_Num+1,Beg_Bal),\"\"))","v":""},"",{"$error":"#VALUE!"},"",0,0]
["","","",{"$f":"IF(ISERROR(PMT(Maandelijkse_rente_percentage,(Loan_Years*12)-Pay_Num+1,Beg_Bal)),\"\",IF(Values_Entered,-PMT(Maandelijkse_rente_percentage,(Loan_Years*12)-Pay_Num+1,Beg_Bal),\"\"))","v":""},"",{"$error":"#VALUE!"},"",0,0]
["","","",{"$f":"IF(ISERROR(PMT(Maandelijkse_rente_percentage,(Loan_Years*12)-Pay_Num+1,Beg_Bal)),\"\",IF(Values_Entered,-PMT(Maandelijkse_rente_percentage,(Loan_Years*12)-Pay_Num+1,Beg_Bal),\"\"))","v":""},"",{"$error":"#VALUE!"},"",0,0]
["","","",{"$f":"IF(ISERROR(PMT(Maandelijkse_rente_percentage,(Loan_Years*12)-Pay_Num+1,Beg_Bal)),\"\",IF(Values_Entered,-PMT(Maandelijkse_rente_percentage,(Loan_Years*12)-Pay_Num+1,Beg_Bal),\"\"))","v":""},"",{"$error":"#VALUE!"},"",0,0]
["","","",{"$f":"IF(ISERROR(PMT(Maandelijkse_rente_percentage,(Loan_Years*12)-Pay_Num+1,Beg_Bal)),\"\",IF(Values_Entered,-PMT(Maandelijkse_rente_percentage,(Loan_Years*12)-Pay_Num+1,Beg_Bal),\"\"))","v":""},"",{"$error":"#VALUE!"},"",0,0]
["","","",{"$f":"IF(ISERROR(PMT(Maandelijkse_rente_percentage,(Loan_Years*12)-Pay_Num+1,Beg_Bal)),\"\",IF(Values_Entered,-PMT(Maandelijkse_rente_percentage,(Loan_Years*12)-Pay_Num+1,Beg_Bal),\"\"))","v":""},"",{"$error":"#VALUE!"},"",0,0]
["","","",{"$f":"IF(ISERROR(PMT(Maandelijkse_rente_percentage,(Loan_Years*12)-Pay_Num+1,Beg_Bal)),\"\",IF(Values_Entered,-PMT(Maandelijkse_rente_percentage,(Loan_Years*12)-Pay_Num+1,Beg_Bal),\"\"))","v":""},"",{"$error":"#VALUE!"},"",0,0]
["","","",{"$f":"IF(ISERROR(PMT(Maandelijkse_rente_percentage,(Loan_Years*12)-Pay_Num+1,Beg_Bal)),\"\",IF(Values_Entered,-PMT(Maandelijkse_rente_percentage,(Loan_Years*12)-Pay_Num+1,Beg_Bal),\"\"))","v":""},"",{"$error":"#VALUE!"},"",0,0]
["","","",{"$f":"IF(ISERROR(PMT(Maandelijkse_rente_percentage,(Loan_Years*12)-Pay_Num+1,Beg_Bal)),\"\",IF(Values_Entered,-PMT(Maandelijkse_rente_percentage,(Loan_Years*12)-Pay_Num+1,Beg_Bal),\"\"))","v":""},"",{"$error":"#VALUE!"},"",0,0]
["","","",{"$f":"IF(ISERROR(PMT(Maandelijkse_rente_percentage,(Loan_Years*12)-Pay_Num+1,Beg_Bal)),\"\",IF(Values_Entered,-PMT(Maandelijkse_rente_percentage,(Loan_Years*12)-Pay_Num+1,Beg_Bal),\"\"))","v":""},"",{"$error":"#VALUE!"},"",0,0]
["","","",{"$f":"IF(ISERROR(PMT(Maandelijkse_rente_percentage,(Loan_Years*12)-Pay_Num+1,Beg_Bal)),\"\",IF(Values_Entered,-PMT(Maandelijkse_rente_percentage,(Loan_Years*12)-Pay_Num+1,Beg_Bal),\"\"))","v":""},"",{"$error":"#VALUE!"},"",{"$f":"L16","v":0},0]
["","","",{"$f":"IF(ISERROR(PMT(Maandelijkse_rente_percentage,(Loan_Years*12)-Pay_Num+1,Beg_Bal)),\"\",IF(Values_Entered,-PMT(Maandelijkse_rente_percentage,(Loan_Years*12)-Pay_Num+1,Beg_Bal),\"\"))","v":""},"",{"$error":"#VALUE!"},"",0,0]
["","","",{"$f":"IF(ISERROR(PMT(Maandelijkse_rente_percentage,(Loan_Years*12)-Pay_Num+1,Beg_Bal)),\"\",IF(Values_Entered,-PMT(Maandelijkse_rente_percentage,(Loan_Years*12)-Pay_Num+1,Beg_Bal),\"\"))","v":""},"",{"$error":"#VALUE!"},"",0,0]
["","","",{"$f":"IF(ISERROR(PMT(Maandelijkse_rente_percentage,(Loan_Years*12)-Pay_Num+1,Beg_Bal)),\"\",IF(Values_Entered,-PMT(Maandelijkse_rente_percentage,(Loan_Years*12)-Pay_Num+1,Beg_Bal),\"\"))","v":""},"",{"$error":"#VALUE!"},"",0,0]
["","","",{"$f":"IF(ISERROR(PMT(Maandelijkse_rente_percentage,(Loan_Years*12)-Pay_Num+1,Beg_Bal)),\"\",IF(Values_Entered,-PMT(Maandelijkse_rente_percentage,(Loan_Years*12)-Pay_Num+1,Beg_Bal),\"\"))","v":""},"",{"$error":"#VALUE!"},"",0,0]
["","","",{"$f":"IF(ISERROR(PMT(Maandelijkse_rente_percentage,(Loan_Years*12)-Pay_Num+1,Beg_Bal)),\"\",IF(Values_Entered,-PMT(Maandelijkse_rente_percentage,(Loan_Years*12)-Pay_Num+1,Beg_Bal),\"\"))","v":""},"",{"$error":"#VALUE!"},"",0,0]
["","","",{"$f":"IF(ISERROR(PMT(Maandelijkse_rente_percentage,(Loan_Years*12)-Pay_Num+1,Beg_Bal)),\"\",IF(Values_Entered,-PMT(Maandelijkse_rente_percentage,(Loan_Years*12)-Pay_Num+1,Beg_Bal),\"\"))","v":""},"",{"$error":"#VALUE!"},"",0,0]
["","","",{"$f":"IF(ISERROR(PMT(Maandelijkse_rente_percentage,(Loan_Years*12)-Pay_Num+1,Beg_Bal)),\"\",IF(Values_Entered,-PMT(Maandelijkse_rente_percentage,(Loan_Years*12)-Pay_Num+1,Beg_Bal),\"\"))","v":""},"",{"$error":"#VALUE!"},"",0,0]
["","","",{"$f":"IF(ISERROR(PMT(Maandelijkse_rente_percentage,(Loan_Years*12)-Pay_Num+1,Beg_Bal)),\"\",IF(Values_Entered,-PMT(Maandelijkse_rente_percentage,(Loan_Years*12)-Pay_Num+1,Beg_Bal),\"\"))","v":""},"",{"$error":"#VALUE!"},"",0,0]
["","","",{"$f":"IF(ISERROR(PMT(Maandelijkse_rente_percentage,(Loan_Years*12)-Pay_Num+1,Beg_Bal)),\"\",IF(Values_Entered,-PMT(Maandelijkse_rente_percentage,(Loan_Years*12)-Pay_Num+1,Beg_Bal),\"\"))","v":""},"",{"$error":"#VALUE!"},"",0,0]
["","","",{"$f":"IF(ISERROR(PMT(Maandelijkse_rente_percentage,(Loan_Years*12)-Pay_Num+1,Beg_Bal)),\"\",IF(Values_Entered,-PMT(Maandelijkse_rente_percentage,(Loan_Years*12)-Pay_Num+1,Beg_Bal),\"\"))","v":""},"",{"$error":"#VALUE!"},"",0,0]
["","","",{"$f":"IF(ISERROR(PMT(Maandelijkse_rente_percentage,(Loan_Years*12)-Pay_Num+1,Beg_Bal)),\"\",IF(Values_Entered,-PMT(Maandelijkse_rente_percentage,(Loan_Years*12)-Pay_Num+1,Beg_Bal),\"\"))","v":""},"",{"$error":"#VALUE!"},"",0,0]
["","","",{"$f":"IF(ISERROR(PMT(Maandelijkse_rente_percentage,(Loan_Years*12)-Pay_Num+1,Beg_Bal)),\"\",IF(Values_Entered,-PMT(Maandelijkse_rente_percentage,(Loan_Years*12)-Pay_Num+1,Beg_Bal),\"\"))","v":""},"",{"$error":"#VALUE!"},"",{"$f":"L17","v":0},0]
["","","",{"$f":"IF(ISERROR(PMT(Maandelijkse_rente_percentage,(Loan_Years*12)-Pay_Num+1,Beg_Bal)),\"\",IF(Values_Entered,-PMT(Maandelijkse_rente_percentage,(Loan_Years*12)-Pay_Num+1,Beg_Bal),\"\"))","v":""},"",{"$error":"#VALUE!"},"",0,0]
["","","",{"$f":"IF(ISERROR(PMT(Maandelijkse_rente_percentage,(Loan_Years*12)-Pay_Num+1,Beg_Bal)),\"\",IF(Values_Entered,-PMT(Maandelijkse_rente_percentage,(Loan_Years*12)-Pay_Num+1,Beg_Bal),\"\"))","v":""},"",{"$error":"#VALUE!"},"",0,0]
["","","",{"$f":"IF(ISERROR(PMT(Maandelijkse_rente_percentage,(Loan_Years*12)-Pay_Num+1,Beg_Bal)),\"\",IF(Values_Entered,-PMT(Maandelijkse_rente_percentage,(Loan_Years*12)-Pay_Num+1,Beg_Bal),\"\"))","v":""},"",{"$error":"#VALUE!"},"",0,0]
["","","",{"$f":"IF(ISERROR(PMT(Maandelijkse_rente_percentage,(Loan_Years*12)-Pay_Num+1,Beg_Bal)),\"\",IF(Values_Entered,-PMT(Maandelijkse_rente_percentage,(Loan_Years*12)-Pay_Num+1,Beg_Bal),\"\"))","v":""},"",{"$error":"#VALUE!"},"",0,0]
["","","",{"$f":"IF(ISERROR(PMT(Maandelijkse_rente_percentage,(Loan_Years*12)-Pay_Num+1,Beg_Bal)),\"\",IF(Values_Entered,-PMT(Maandelijkse_rente_percentage,(Loan_Years*12)-Pay_Num+1,Beg_Bal),\"\"))","v":""},"",{"$error":"#VALUE!"},"",0,0]
["","","",{"$f":"IF(ISERROR(PMT(Maandelijkse_rente_percentage,(Loan_Years*12)-Pay_Num+1,Beg_Bal)),\"\",IF(Values_Entered,-PMT(Maandelijkse_rente_percentage,(Loan_Years*12)-Pay_Num+1,Beg_Bal),\"\"))","v":""},"",{"$error":"#VALUE!"},"",0,0]
["","","",{"$f":"IF(ISERROR(PMT(Maandelijkse_rente_percentage,(Loan_Years*12)-Pay_Num+1,Beg_Bal)),\"\",IF(Values_Entered,-PMT(Maandelijkse_rente_percentage,(Loan_Years*12)-Pay_Num+1,Beg_Bal),\"\"))","v":""},"",{"$error":"#VALUE!"},"",0,0]
["","","",{"$f":"IF(ISERROR(PMT(Maandelijkse_rente_percentage,(Loan_Years*12)-Pay_Num+1,Beg_Bal)),\"\",IF(Values_Entered,-PMT(Maandelijkse_rente_percentage,(Loan_Years*12)-Pay_Num+1,Beg_Bal),\"\"))","v":""},"",{"$error":"#VALUE!"},"",0,0]
["","","",{"$f":"IF(ISERROR(PMT(Maandelijkse_rente_percentage,(Loan_Years*12)-Pay_Num+1,Beg_Bal)),\"\",IF(Values_Entered,-PMT(Maandelijkse_rente_percentage,(Loan_Years*12)-Pay_Num+1,Beg_Bal),\"\"))","v":""},"",{"$error":"#VALUE!"},"",0,0]
["","","",{"$f":"IF(ISERROR(PMT(Maandelijkse_rente_percentage,(Loan_Years*12)-Pay_Num+1,Beg_Bal)),\"\",IF(Values_Entered,-PMT(Maandelijkse_rente_percentage,(Loan_Years*12)-Pay_Num+1,Beg_Bal),\"\"))","v":""},"",{"$error":"#VALUE!"},"",0,0]
["","","",{"$f":"IF(ISERROR(PMT(Maandelijkse_rente_percentage,(Loan_Years*12)-Pay_Num+1,Beg_Bal)),\"\",IF(Values_Entered,-PMT(Maandelijkse_rente_percentage,(Loan_Years*12)-Pay_Num+1,Beg_Bal),\"\"))","v":""},"",{"$error":"#VALUE!"},"",0,0]
["","","",{"$f":"IF(ISERROR(PMT(Maandelijkse_rente_percentage,(Loan_Years*12)-Pay_Num+1,Beg_Bal)),\"\",IF(Values_Entered,-PMT(Maandelijkse_rente_percentage,(Loan_Years*12)-Pay_Num+1,Beg_Bal),\"\"))","v":""},"",{"$error":"#VALUE!"},"",{"$f":"N3","v":0},0]
["","","",{"$f":"IF(ISERROR(PMT(Maandelijkse_rente_percentage,(Loan_Years*12)-Pay_Num+1,Beg_Bal)),\"\",IF(Values_Entered,-PMT(Maandelijkse_rente_percentage,(Loan_Years*12)-Pay_Num+1,Beg_Bal),\"\"))","v":""},"",{"$error":"#VALUE!"},"",0,0]
["","","",{"$f":"IF(ISERROR(PMT(Maandelijkse_rente_percentage,(Loan_Years*12)-Pay_Num+1,Beg_Bal)),\"\",IF(Values_Entered,-PMT(Maandelijkse_rente_percentage,(Loan_Years*12)-Pay_Num+1,Beg_Bal),\"\"))","v":""},"",{"$error":"#VALUE!"},"",0,0]
["","","",{"$f":"IF(ISERROR(PMT(Maandelijkse_rente_percentage,(Loan_Years*12)-Pay_Num+1,Beg_Bal)),\"\",IF(Values_Entered,-PMT(Maandelijkse_rente_percentage,(Loan_Years*12)-Pay_Num+1,Beg_Bal),\"\"))","v":""},"",{"$error":"#VALUE!"},"",0,0]
["","","",{"$f":"IF(ISERROR(PMT(Maandelijkse_rente_percentage,(Loan_Years*12)-Pay_Num+1,Beg_Bal)),\"\",IF(Values_Entered,-PMT(Maandelijkse_rente_percentage,(Loan_Years*12)-Pay_Num+1,Beg_Bal),\"\"))","v":""},"",{"$error":"#VALUE!"},"",0,0]
["","","",{"$f":"IF(ISERROR(PMT(Maandelijkse_rente_percentage,(Loan_Years*12)-Pay_Num+1,Beg_Bal)),\"\",IF(Values_Entered,-PMT(Maandelijkse_rente_percentage,(Loan_Years*12)-Pay_Num+1,Beg_Bal),\"\"))","v":""},"",{"$error":"#VALUE!"},"",0,0]
["","","",{"$f":"IF(ISERROR(PMT(Maandelijkse_rente_percentage,(Loan_Years*12)-Pay_Num+1,Beg_Bal)),\"\",IF(Values_Entered,-PMT(Maandelijkse_rente_percentage,(Loan_Years*12)-Pay_Num+1,Beg_Bal),\"\"))","v":""},"",{"$error":"#VALUE!"},"",0,0]
["","","",{"$f":"IF(ISERROR(PMT(Maandelijkse_rente_percentage,(Loan_Years*12)-Pay_Num+1,Beg_Bal)),\"\",IF(Values_Entered,-PMT(Maandelijkse_rente_percentage,(Loan_Years*12)-Pay_Num+1,Beg_Bal),\"\"))","v":""},"",{"$error":"#VALUE!"},"",0,0]
["","","",{"$f":"IF(ISERROR(PMT(Maandelijkse_rente_percentage,(Loan_Years*12)-Pay_Num+1,Beg_Bal)),\"\",IF(Values_Entered,-PMT(Maandelijkse_rente_percentage,(Loan_Years*12)-Pay_Num+1,Beg_Bal),\"\"))","v":""},"",{"$error":"#VALUE!"},"",0,0]
["","","",{"$f":"IF(ISERROR(PMT(Maandelijkse_rente_percentage,(Loan_Years*12)-Pay_Num+1,Beg_Bal)),\"\",IF(Values_Entered,-PMT(Maandelijkse_rente_percentage,(Loan_Years*12)-Pay_Num+1,Beg_Bal),\"\"))","v":""},"",{"$error":"#VALUE!"},"",{"$f":"H207","v":0},0]
["","","",{"$f":"IF(ISERROR(PMT(Maandelijkse_rente_percentage,(Loan_Years*12)-Pay_Num+1,Beg_Bal)),\"\",IF(Values_Entered,-PMT(Maandelijkse_rente_percentage,(Loan_Years*12)-Pay_Num+1,Beg_Bal),\"\"))","v":""},"",{"$error":"#VALUE!"},"",0,0]
["","","",{"$f":"IF(ISERROR(PMT(Maandelijkse_rente_percentage,(Loan_Years*12)-Pay_Num+1,Beg_Bal)),\"\",IF(Values_Entered,-PMT(Maandelijkse_rente_percentage,(Loan_Years*12)-Pay_Num+1,Beg_Bal),\"\"))","v":""},"",{"$error":"#VALUE!"},"",0,0]
["","","",{"$f":"IF(ISERROR(PMT(Maandelijkse_rente_percentage,(Loan_Years*12)-Pay_Num+1,Beg_Bal)),\"\",IF(Values_Entered,-PMT(Maandelijkse_rente_percentage,(Loan_Years*12)-Pay_Num+1,Beg_Bal),\"\"))","v":""},{"$f":"IF(Pay_Num<>\"\",Maandelijkse_aflossing-Int,\"\")","v":""},{"$f":"Beg_Bal*Maandelijkse_rente_percentage","v":{"$error":"#VALUE!"}},"",{"$f":"N4","v":0},{"$f":"((1+Jaarlijk_rente_percentage)^(1/12))-1","v":0}]
[{"$f":"IF(Values_Entered,A211+1,\"\")","v":""},{"$f":"IF(Pay_Num<>\"\",DATE(YEAR(B211),MONTH(B211)+1,DAY(B211)),\"\")","v":""},"",{"$f":"IF(ISERROR(PMT(Maandelijkse_rente_percentage,(Loan_Years*12)-Pay_Num+1,Beg_Bal)),\"\",IF(Values_Entered,-PMT(Maandelijkse_rente_percentage,(Loan_Years*12)-Pay_Num+1,Beg_Bal),\"\"))","v":""},"",{"$error":"#VALUE!"},{"$f":"IF(Pay_Num<>\"\",Beg_Bal-Princ,\"\")","v":""},0,0]
["","",{"$f":"IF(Pay_Num<>\"\",G212,\"\")","v":""},{"$f":"IF(ISERROR(PMT(Maandelijkse_rente_percentage,(Loan_Years*12)-Pay_Num+1,Beg_Bal)),\"\",IF(Values_Entered,-PMT(Maandelijkse_rente_percentage,(Loan_Years*12)-Pay_Num+1,Beg_Bal),\"\"))","v":""},"",{"$error":"#VALUE!"},"",0,0]
["","","",{"$f":"IF(ISERROR(PMT(Maandelijkse_rente_percentage,(Loan_Years*12)-Pay_Num+1,Beg_Bal)),\"\",IF(Values_Entered,-PMT(Maandelijkse_rente_percentage,(Loan_Years*12)-Pay_Num+1,Beg_Bal),\"\"))","v":""},"",{"$error":"#VALUE!"},"",0,0]
["","","",{"$f":"IF(ISERROR(PMT(Maandelijkse_rente_percentage,(Loan_Years*12)-Pay_Num+1,Beg_Bal)),\"\",IF(Values_Entered,-PMT(Maandelijkse_rente_percentage,(Loan_Years*12)-Pay_Num+1,Beg_Bal),\"\"))","v":""},"",{"$error":"#VALUE!"},"",0,0]
["","","",{"$f":"IF(ISERROR(PMT(Maandelijkse_rente_percentage,(Loan_Years*12)-Pay_Num+1,Beg_Bal)),\"\",IF(Values_Entered,-PMT(Maandelijkse_rente_percentage,(Loan_Years*12)-Pay_Num+1,Beg_Bal),\"\"))","v":""},"",{"$error":"#VALUE!"},"",0,0]
["","","",{"$f":"IF(ISERROR(PMT(Maandelijkse_rente_percentage,(Loan_Years*12)-Pay_Num+1,Beg_Bal)),\"\",IF(Values_Entered,-PMT(Maandelijkse_rente_percentage,(Loan_Years*12)-Pay_Num+1,Beg_Bal),\"\"))","v":""},"",{"$error":"#VALUE!"},"",0,0]
["","","",{"$f":"IF(ISERROR(PMT(Maandelijkse_rente_percentage,(Loan_Years*12)-Pay_Num+1,Beg_Bal)),\"\",IF(Values_Entered,-PMT(Maandelijkse_rente_percentage,(Loan_Years*12)-Pay_Num+1,Beg_Bal),\"\"))","v":""},"",{"$error":"#VALUE!"},"",0,0]
["","","",{"$f":"IF(ISERROR(PMT(Maandelijkse_rente_percentage,(Loan_Years*12)-Pay_Num+1,Beg_Bal)),\"\",IF(Values_Entered,-PMT(Maandelijkse_rente_percentage,(Loan_Years*12)-Pay_Num+1,Beg_Bal),\"\"))","v":""},"",{"$error":"#VALUE!"},"",0,0]
["","","",{"$f":"IF(ISERROR(PMT(Maandelijkse_rente_percentage,(Loan_Years*12)-Pay_Num+1,Beg_Bal)),\"\",IF(Values_Entered,-PMT(Maandelijkse_rente_percentage,(Loan_Years*12)-Pay_Num+1,Beg_Bal),\"\"))","v":""},"",{"$error":"#VALUE!"},"",0,0]
["","","",{"$f":"IF(ISERROR(PMT(Maandelijkse_rente_percentage,(Loan_Years*12)-Pay_Num+1,Beg_Bal)),\"\",IF(Values_Entered,-PMT(Maandelijkse_rente_percentage,(Loan_Years*12)-Pay_Num+1,Beg_Bal),\"\"))","v":""},"",{"$error":"#VALUE!"},"",0,0]
["","","",{"$f":"IF(ISERROR(PMT(Maandelijkse_rente_percentage,(Loan_Years*12)-Pay_Num+1,Beg_Bal)),\"\",IF(Values_Entered,-PMT(Maandelijkse_rente_percentage,(Loan_Years*12)-Pay_Num+1,Beg_Bal),\"\"))","v":""},"",{"$error":"#VALUE!"},"",0,0]
["","","",{"$f":"IF(ISERROR(PMT(Maandelijkse_rente_percentage,(Loan_Years*12)-Pay_Num+1,Beg_Bal)),\"\",IF(Values_Entered,-PMT(Maandelijkse_rente_percentage,(Loan_Years*12)-Pay_Num+1,Beg_Bal),\"\"))","v":""},"",{"$error":"#VALUE!"},"",{"$f":"N5","v":0},0]
["","","",{"$f":"IF(ISERROR(PMT(Maandelijkse_rente_percentage,(Loan_Years*12)-Pay_Num+1,Beg_Bal)),\"\",IF(Values_Entered,-PMT(Maandelijkse_rente_percentage,(Loan_Years*12)-Pay_Num+1,Beg_Bal),\"\"))","v":""},"",{"$error":"#VALUE!"},"",0,0]
["","","",{"$f":"IF(ISERROR(PMT(Maandelijkse_rente_percentage,(Loan_Years*12)-Pay_Num+1,Beg_Bal)),\"\",IF(Values_Entered,-PMT(Maandelijkse_rente_percentage,(Loan_Years*12)-Pay_Num+1,Beg_Bal),\"\"))","v":""},"",{"$error":"#VALUE!"},"",0,0]
["","","",{"$f":"IF(ISERROR(PMT(Maandelijkse_rente_percentage,(Loan_Years*12)-Pay_Num+1,Beg_Bal)),\"\",IF(Values_Entered,-PMT(Maandelijkse_rente_percentage,(Loan_Years*12)-Pay_Num+1,Beg_Bal),\"\"))","v":""},"",{"$error":"#VALUE!"},"",0,0]
["","","",{"$f":"IF(ISERROR(PMT(Maandelijkse_rente_percentage,(Loan_Years*12)-Pay_Num+1,Beg_Bal)),\"\",IF(Values_Entered,-PMT(Maandelijkse_rente_percentage,(Loan_Years*12)-Pay_Num+1,Beg_Bal),\"\"))","v":""},"",{"$error":"#VALUE!"},"",0,0]
["","","",{"$f":"IF(ISERROR(PMT(Maandelijkse_rente_percentage,(Loan_Years*12)-Pay_Num+1,Beg_Bal)),\"\",IF(Values_Entered,-PMT(Maandelijkse_rente_percentage,(Loan_Years*12)-Pay_Num+1,Beg_Bal),\"\"))","v":""},"",{"$error":"#VALUE!"},"",0,0]
["","","",{"$f":"IF(ISERROR(PMT(Maandelijkse_rente_percentage,(Loan_Years*12)-Pay_Num+1,Beg_Bal)),\"\",IF(Values_Entered,-PMT(Maandelijkse_rente_percentage,(Loan_Years*12)-Pay_Num+1,Beg_Bal),\"\"))","v":""},"",{"$error":"#VALUE!"},"",0,0]
["","","",{"$f":"IF(ISERROR(PMT(Maandelijkse_rente_percentage,(Loan_Years*12)-Pay_Num+1,Beg_Bal)),\"\",IF(Values_Entered,-PMT(Maandelijkse_rente_percentage,(Loan_Years*12)-Pay_Num+1,Beg_Bal),\"\"))","v":""},"",{"$error":"#VALUE!"},"",0,0]
["","","",{"$f":"IF(ISERROR(PMT(Maandelijkse_rente_percentage,(Loan_Years*12)-Pay_Num+1,Beg_Bal)),\"\",IF(Values_Entered,-PMT(Maandelijkse_rente_percentage,(Loan_Years*12)-Pay_Num+1,Beg_Bal),\"\"))","v":""},"",{"$error":"#VALUE!"},"",0,0]
["","","",{"$f":"IF(ISERROR(PMT(Maandelijkse_rente_percentage,(Loan_Years*12)-Pay_Num+1,Beg_Bal)),\"\",IF(Values_Entered,-PMT(Maandelijkse_rente_percentage,(Loan_Years*12)-Pay_Num+1,Beg_Bal),\"\"))","v":""},"",{"$error":"#VALUE!"},"",0,0]
["","","",{"$f":"IF(ISERROR(PMT(Maandelijkse_rente_percentage,(Loan_Years*12)-Pay_Num+1,Beg_Bal)),\"\",IF(Values_Entered,-PMT(Maandelijkse_rente_percentage,(Loan_Years*12)-Pay_Num+1,Beg_Bal),\"\"))","v":""},"",{"$error":"#VALUE!"},"",0,0]
["","","",{"$f":"IF(ISERROR(PMT(Maandelijkse_rente_percentage,(Loan_Years*12)-Pay_Num+1,Beg_Bal)),\"\",IF(Values_Entered,-PMT(Maandelijkse_rente_percentage,(Loan_Years*12)-Pay_Num+1,Beg_Bal),\"\"))","v":""},"",{"$error":"#VALUE!"},"",0,0]
["","","",{"$f":"IF(ISERROR(PMT(Maandelijkse_rente_percentage,(Loan_Years*12)-Pay_Num+1,Beg_Bal)),\"\",IF(Values_Entered,-PMT(Maandelijkse_rente_percentage,(Loan_Years*12)-Pay_Num+1,Beg_Bal),\"\"))","v":""},"",{"$error":"#VALUE!"},"",{"$f":"N6","v":0},0]
["","","",{"$f":"IF(ISERROR(PMT(Maandelijkse_rente_percentage,(Loan_Years*12)-Pay_Num+1,Beg_Bal)),\"\",IF(Values_Entered,-PMT(Maandelijkse_rente_percentage,(Loan_Years*12)-Pay_Num+1,Beg_Bal),\"\"))","v":""},"",{"$error":"#VALUE!"},"",0,0]
["","","",{"$f":"IF(ISERROR(PMT(Maandelijkse_rente_percentage,(Loan_Years*12)-Pay_Num+1,Beg_Bal)),\"\",IF(Values_Entered,-PMT(Maandelijkse_rente_percentage,(Loan_Years*12)-Pay_Num+1,Beg_Bal),\"\"))","v":""},"",{"$error":"#VALUE!"},"",0,0]
["","","",{"$f":"IF(ISERROR(PMT(Maandelijkse_rente_percentage,(Loan_Years*12)-Pay_Num+1,Beg_Bal)),\"\",IF(Values_Entered,-PMT(Maandelijkse_rente_percentage,(Loan_Years*12)-Pay_Num+1,Beg_Bal),\"\"))","v":""},"",{"$error":"#VALUE!"},"",0,0]
["","","",{"$f":"IF(ISERROR(PMT(Maandelijkse_rente_percentage,(Loan_Years*12)-Pay_Num+1,Beg_Bal)),\"\",IF(Values_Entered,-PMT(Maandelijkse_rente_percentage,(Loan_Years*12)-Pay_Num+1,Beg_Bal),\"\"))","v":""},"",{"$error":"#VALUE!"},"",0,0]
["","","",{"$f":"IF(ISERROR(PMT(Maandelijkse_rente_percentage,(Loan_Years*12)-Pay_Num+1,Beg_Bal)),\"\",IF(Values_Entered,-PMT(Maandelijkse_rente_percentage,(Loan_Years*12)-Pay_Num+1,Beg_Bal),\"\"))","v":""},"",{"$error":"#VALUE!"},"",0,0]
["","","",{"$f":"IF(ISERROR(PMT(Maandelijkse_rente_percentage,(Loan_Years*12)-Pay_Num+1,Beg_Bal)),\"\",IF(Values_Entered,-PMT(Maandelijkse_rente_percentage,(Loan_Years*12)-Pay_Num+1,Beg_Bal),\"\"))","v":""},"",{"$error":"#VALUE!"},"",0,0]
["","","",{"$f":"IF(ISERROR(PMT(Maandelijkse_rente_percentage,(Loan_Years*12)-Pay_Num+1,Beg_Bal)),\"\",IF(Values_Entered,-PMT(Maandelijkse_rente_percentage,(Loan_Years*12)-Pay_Num+1,Beg_Bal),\"\"))","v":""},"",{"$error":"#VALUE!"},"",0,0]
["","","",{"$f":"IF(ISERROR(PMT(Maandelijkse_rente_percentage,(Loan_Years*12)-Pay_Num+1,Beg_Bal)),\"\",IF(Values_Entered,-PMT(Maandelijkse_rente_percentage,(Loan_Years*12)-Pay_Num+1,Beg_Bal),\"\"))","v":""},"",{"$error":"#VALUE!"},"",0,0]
["","","",{"$f":"IF(ISERROR(PMT(Maandelijkse_rente_percentage,(Loan_Years*12)-Pay_Num+1,Beg_Bal)),\"\",IF(Values_Entered,-PMT(Maandelijkse_rente_percentage,(Loan_Years*12)-Pay_Num+1,Beg_Bal),\"\"))","v":""},"",{"$error":"#VALUE!"},"",0,0]
["","","",{"$f":"IF(ISERROR(PMT(Maandelijkse_rente_percentage,(Loan_Years*12)-Pay_Num+1,Beg_Bal)),\"\",IF(Values_Entered,-PMT(Maandelijkse_rente_percentage,(Loan_Years*12)-Pay_Num+1,Beg_Bal),\"\"))","v":""},"",{"$error":"#VALUE!"},"",0,0]
["","","",{"$f":"IF(ISERROR(PMT(Maandelijkse_rente_percentage,(Loan_Years*12)-Pay_Num+1,Beg_Bal)),\"\",IF(Values_Entered,-PMT(Maandelijkse_rente_percentage,(Loan_Years*12)-Pay_Num+1,Beg_Bal),\"\"))","v":""},"",{"$error":"#VALUE!"},"",0,0]
["","","",{"$f":"IF(ISERROR(PMT(Maandelijkse_rente_percentage,(Loan_Years*12)-Pay_Num+1,Beg_Bal)),\"\",IF(Values_Entered,-PMT(Maandelijkse_rente_percentage,(Loan_Years*12)-Pay_Num+1,Beg_Bal),\"\"))","v":""},"",{"$error":"#VALUE!"},"",{"$f":"N7","v":0},0]
["","","",{"$f":"IF(ISERROR(PMT(Maandelijkse_rente_percentage,(Loan_Years*12)-Pay_Num+1,Beg_Bal)),\"\",IF(Values_Entered,-PMT(Maandelijkse_rente_percentage,(Loan_Years*12)-Pay_Num+1,Beg_Bal),\"\"))","v":""},"",{"$error":"#VALUE!"},"",0,0]
["","","",{"$f":"IF(ISERROR(PMT(Maandelijkse_rente_percentage,(Loan_Years*12)-Pay_Num+1,Beg_Bal)),\"\",IF(Values_Entered,-PMT(Maandelijkse_rente_percentage,(Loan_Years*12)-Pay_Num+1,Beg_Bal),\"\"))","v":""},"",{"$error":"#VALUE!"},"",0,0]
["","","",{"$f":"IF(ISERROR(PMT(Maandelijkse_rente_percentage,(Loan_Years*12)-Pay_Num+1,Beg_Bal)),\"\",IF(Values_Entered,-PMT(Maandelijkse_rente_percentage,(Loan_Years*12)-Pay_Num+1,Beg_Bal),\"\"))","v":""},"",{"$error":"#VALUE!"},"",0,0]
["","","",{"$f":"IF(ISERROR(PMT(Maandelijkse_rente_percentage,(Loan_Years*12)-Pay_Num+1,Beg_Bal)),\"\",IF(Values_Entered,-PMT(Maandelijkse_rente_percentage,(Loan_Years*12)-Pay_Num+1,Beg_Bal),\"\"))","v":""},"",{"$error":"#VALUE!"},"",0,0]
["","","",{"$f":"IF(ISERROR(PMT(Maandelijkse_rente_percentage,(Loan_Years*12)-Pay_Num+1,Beg_Bal)),\"\",IF(Values_Entered,-PMT(Maandelijkse_rente_percentage,(Loan_Years*12)-Pay_Num+1,Beg_Bal),\"\"))","v":""},"",{"$error":"#VALUE!"},"",0,0]
["","","",{"$f":"IF(ISERROR(PMT(Maandelijkse_rente_percentage,(Loan_Years*12)-Pay_Num+1,Beg_Bal)),\"\",IF(Values_Entered,-PMT(Maandelijkse_rente_percentage,(Loan_Years*12)-Pay_Num+1,Beg_Bal),\"\"))","v":""},"",{"$error":"#VALUE!"},"",0,0]
["","","",{"$f":"IF(ISERROR(PMT(Maandelijkse_rente_percentage,(Loan_Years*12)-Pay_Num+1,Beg_Bal)),\"\",IF(Values_Entered,-PMT(Maandelijkse_rente_percentage,(Loan_Years*12)-Pay_Num+1,Beg_Bal),\"\"))","v":""},"",{"$error":"#VALUE!"},"",0,0]
["","","",{"$f":"IF(ISERROR(PMT(Maandelijkse_rente_percentage,(Loan_Years*12)-Pay_Num+1,Beg_Bal)),\"\",IF(Values_Entered,-PMT(Maandelijkse_rente_percentage,(Loan_Years*12)-Pay_Num+1,Beg_Bal),\"\"))","v":""},"",{"$error":"#VALUE!"},"",0,0]
["","","",{"$f":"IF(ISERROR(PMT(Maandelijkse_rente_percentage,(Loan_Years*12)-Pay_Num+1,Beg_Bal)),\"\",IF(Values_Entered,-PMT(Maandelijkse_rente_percentage,(Loan_Years*12)-Pay_Num+1,Beg_Bal),\"\"))","v":""},"",{"$error":"#VALUE!"},"",0,0]
["","","",{"$f":"IF(ISERROR(PMT(Maandelijkse_rente_percentage,(Loan_Years*12)-Pay_Num+1,Beg_Bal)),\"\",IF(Values_Entered,-PMT(Maandelijkse_rente_percentage,(Loan_Years*12)-Pay_Num+1,Beg_Bal),\"\"))","v":""},"",{"$error":"#VALUE!"},"",0,0]
["","","",{"$f":"IF(ISERROR(PMT(Maandelijkse_rente_percentage,(Loan_Years*12)-Pay_Num+1,Beg_Bal)),\"\",IF(Values_Entered,-PMT(Maandelijkse_rente_percentage,(Loan_Years*12)-Pay_Num+1,Beg_Bal),\"\"))","v":""},"",{"$error":"#VALUE!"},"",0,0]
["","","",{"$f":"IF(ISERROR(PMT(Maandelijkse_rente_percentage,(Loan_Years*12)-Pay_Num+1,Beg_Bal)),\"\",IF(Values_Entered,-PMT(Maandelijkse_rente_percentage,(Loan_Years*12)-Pay_Num+1,Beg_Bal),\"\"))","v":""},"",{"$error":"#VALUE!"},"",{"$f":"N8","v":0},0]
["","","",{"$f":"IF(ISERROR(PMT(Maandelijkse_rente_percentage,(Loan_Years*12)-Pay_Num+1,Beg_Bal)),\"\",IF(Values_Entered,-PMT(Maandelijkse_rente_percentage,(Loan_Years*12)-Pay_Num+1,Beg_Bal),\"\"))","v":""},"",{"$error":"#VALUE!"},"",0,0]
["","","",{"$f":"IF(ISERROR(PMT(Maandelijkse_rente_percentage,(Loan_Years*12)-Pay_Num+1,Beg_Bal)),\"\",IF(Values_Entered,-PMT(Maandelijkse_rente_percentage,(Loan_Years*12)-Pay_Num+1,Beg_Bal),\"\"))","v":""},"",{"$error":"#VALUE!"},"",0,0]
["","","",{"$f":"IF(ISERROR(PMT(Maandelijkse_rente_percentage,(Loan_Years*12)-Pay_Num+1,Beg_Bal)),\"\",IF(Values_Entered,-PMT(Maandelijkse_rente_percentage,(Loan_Years*12)-Pay_Num+1,Beg_Bal),\"\"))","v":""},"",{"$error":"#VALUE!"},"",0,0]
["","","",{"$f":"IF(ISERROR(PMT(Maandelijkse_rente_percentage,(Loan_Years*12)-Pay_Num+1,Beg_Bal)),\"\",IF(Values_Entered,-PMT(Maandelijkse_rente_percentage,(Loan_Years*12)-Pay_Num+1,Beg_Bal),\"\"))","v":""},"",{"$error":"#VALUE!"},"",0,0]
["","","",{"$f":"IF(ISERROR(PMT(Maandelijkse_rente_percentage,(Loan_Years*12)-Pay_Num+1,Beg_Bal)),\"\",IF(Values_Entered,-PMT(Maandelijkse_rente_percentage,(Loan_Years*12)-Pay_Num+1,Beg_Bal),\"\"))","v":""},"",{"$error":"#VALUE!"},"",0,0]
["","","",{"$f":"IF(ISERROR(PMT(Maandelijkse_rente_percentage,(Loan_Years*12)-Pay_Num+1,Beg_Bal)),\"\",IF(Values_Entered,-PMT(Maandelijkse_rente_percentage,(Loan_Years*12)-Pay_Num+1,Beg_Bal),\"\"))","v":""},"",{"$error":"#VALUE!"},"",0,0]
["","","",{"$f":"IF(ISERROR(PMT(Maandelijkse_rente_percentage,(Loan_Years*12)-Pay_Num+1,Beg_Bal)),\"\",IF(Values_Entered,-PMT(Maandelijkse_rente_percentage,(Loan_Years*12)-Pay_Num+1,Beg_Bal),\"\"))","v":""},"",{"$error":"#VALUE!"},"",0,0]
["","","",{"$f":"IF(ISERROR(PMT(Maandelijkse_rente_percentage,(Loan_Years*12)-Pay_Num+1,Beg_Bal)),\"\",IF(Values_Entered,-PMT(Maandelijkse_rente_percentage,(Loan_Years*12)-Pay_Num+1,Beg_Bal),\"\"))","v":""},"",{"$error":"#VALUE!"},"",0,0]
["","","",{"$f":"IF(ISERROR(PMT(Maandelijkse_rente_percentage,(Loan_Years*12)-Pay_Num+1,Beg_Bal)),\"\",IF(Values_Entered,-PMT(Maandelijkse_rente_percentage,(Loan_Years*12)-Pay_Num+1,Beg_Bal),\"\"))","v":""},"",{"$error":"#VALUE!"},"",0,0]
["","","",{"$f":"IF(ISERROR(PMT(Maandelijkse_rente_percentage,(Loan_Years*12)-Pay_Num+1,Beg_Bal)),\"\",IF(Values_Entered,-PMT(Maandelijkse_rente_percentage,(Loan_Years*12)-Pay_Num+1,Beg_Bal),\"\"))","v":""},"",{"$error":"#VALUE!"},"",0,0]
["","","",{"$f":"IF(ISERROR(PMT(Maandelijkse_rente_percentage,(Loan_Years*12)-Pay_Num+1,Beg_Bal)),\"\",IF(Values_Entered,-PMT(Maandelijkse_rente_percentage,(Loan_Years*12)-Pay_Num+1,Beg_Bal),\"\"))","v":""},"",{"$error":"#VALUE!"},"",0,0]
["","","",{"$f":"IF(ISERROR(PMT(Maandelijkse_rente_percentage,(Loan_Years*12)-Pay_Num+1,Beg_Bal)),\"\",IF(Values_Entered,-PMT(Maandelijkse_rente_percentage,(Loan_Years*12)-Pay_Num+1,Beg_Bal),\"\"))","v":""},"",{"$error":"#VALUE!"},"",{"$f":"N9","v":0},0]
["","","",{"$f":"IF(ISERROR(PMT(Maandelijkse_rente_percentage,(Loan_Years*12)-Pay_Num+1,Beg_Bal)),\"\",IF(Values_Entered,-PMT(Maandelijkse_rente_percentage,(Loan_Years*12)-Pay_Num+1,Beg_Bal),\"\"))","v":""},"",{"$error":"#VALUE!"},"",{"$f":"H271","v":0},0]
["","","",{"$f":"IF(ISERROR(PMT(Maandelijkse_rente_percentage,(Loan_Years*12)-Pay_Num+1,Beg_Bal)),\"\",IF(Values_Entered,-PMT(Maandelijkse_rente_percentage,(Loan_Years*12)-Pay_Num+1,Beg_Bal),\"\"))","v":""},"",{"$error":"#VALUE!"},"",0,0]
["","","",{"$f":"IF(ISERROR(PMT(Maandelijkse_rente_percentage,(Loan_Years*12)-Pay_Num+1,Beg_Bal)),\"\",IF(Values_Entered,-PMT(Maandelijkse_rente_percentage,(Loan_Years*12)-Pay_Num+1,Beg_Bal),\"\"))","v":""},"",{"$error":"#VALUE!"},"",0,0]
["","","",{"$f":"IF(ISERROR(PMT(Maandelijkse_rente_percentage,(Loan_Years*12)-Pay_Num+1,Beg_Bal)),\"\",IF(Values_Entered,-PMT(Maandelijkse_rente_percentage,(Loan_Years*12)-Pay_Num+1,Beg_Bal),\"\"))","v":""},{"$f":"IF(Pay_Num<>\"\",Maandelijkse_aflossing-Int,\"\")","v":""},{"$f":"Beg_Bal*Maandelijkse_rente_percentage","v":{"$error":"#VALUE!"}},"",0,{"$f":"((1+Jaarlijk_rente_percentage)^(1/12))-1","v":0}]
[{"$f":"IF(Values_Entered,A275+1,\"\")","v":""},{"$f":"IF(Pay_Num<>\"\",DATE(YEAR(B275),MONTH(B275)+1,DAY(B275)),\"\")","v":""},"",{"$f":"IF(ISERROR(PMT(Maandelijkse_rente_percentage,(Loan_Years*12)-Pay_Num+1,Beg_Bal)),\"\",IF(Values_Entered,-PMT(Maandelijkse_rente_percentage,(Loan_Years*12)-Pay_Num+1,Beg_Bal),\"\"))","v":""},"",{"$error":"#VALUE!"},{"$f":"IF(Pay_Num<>\"\",Beg_Bal-Princ,\"\")","v":""},0,0]
["","",{"$f":"IF(Pay_Num<>\"\",G276,\"\")","v":""},{"$f":"IF(ISERROR(PMT(Maandelijkse_rente_percentage,(Loan_Years*12)-Pay_Num+1,Beg_Bal)),\"\",IF(Values_Entered,-PMT(Maandelijkse_rente_percentage,(Loan_Years*12)-Pay_Num+1,Beg_Bal),\"\"))","v":""},"",{"$error":"#VALUE!"},"",0,0]
["","","",{"$f":"IF(ISERROR(PMT(Maandelijkse_rente_percentage,(Loan_Years*12)-Pay_Num+1,Beg_Bal)),\"\",IF(Values_Entered,-PMT(Maandelijkse_rente_percentage,(Loan_Years*12)-Pay_Num+1,Beg_Bal),\"\"))","v":""},"",{"$error":"#VALUE!"},"",0,0]
["","","",{"$f":"IF(ISERROR(PMT(Maandelijkse_rente_percentage,(Loan_Years*12)-Pay_Num+1,Beg_Bal)),\"\",IF(Values_Entered,-PMT(Maandelijkse_rente_percentage,(Loan_Years*12)-Pay_Num+1,Beg_Bal),\"\"))","v":""},"",{"$error":"#VALUE!"},"",0,0]
["","","",{"$f":"IF(ISERROR(PMT(Maandelijkse_rente_percentage,(Loan_Years*12)-Pay_Num+1,Beg_Bal)),\"\",IF(Values_Entered,-PMT(Maandelijkse_rente_percentage,(Loan_Years*12)-Pay_Num+1,Beg_Bal),\"\"))","v":""},"",{"$error":"#VALUE!"},"",0,0]
["","","",{"$f":"IF(ISERROR(PMT(Maandelijkse_rente_percentage,(Loan_Years*12)-Pay_Num+1,Beg_Bal)),\"\",IF(Values_Entered,-PMT(Maandelijkse_rente_percentage,(Loan_Years*12)-Pay_Num+1,Beg_Bal),\"\"))","v":""},"",{"$error":"#VALUE!"},"",0,0]
["","","",{"$f":"IF(ISERROR(PMT(Maandelijkse_rente_percentage,(Loan_Years*12)-Pay_Num+1,Beg_Bal)),\"\",IF(Values_Entered,-PMT(Maandelijkse_rente_percentage,(Loan_Years*12)-Pay_Num+1,Beg_Bal),\"\"))","v":""},"",{"$error":"#VALUE!"},"",0,0]
["","","",{"$f":"IF(ISERROR(PMT(Maandelijkse_rente_percentage,(Loan_Years*12)-Pay_Num+1,Beg_Bal)),\"\",IF(Values_Entered,-PMT(Maandelijkse_rente_percentage,(Loan_Years*12)-Pay_Num+1,Beg_Bal),\"\"))","v":""},"",{"$error":"#VALUE!"},"",{"$f":"N10","v":0},0]
["","","",{"$f":"IF(ISERROR(PMT(Maandelijkse_rente_percentage,(Loan_Years*12)-Pay_Num+1,Beg_Bal)),\"\",IF(Values_Entered,-PMT(Maandelijkse_rente_percentage,(Loan_Years*12)-Pay_Num+1,Beg_Bal),\"\"))","v":""},"",{"$error":"#VALUE!"},"",0,0]
["","","",{"$f":"IF(ISERROR(PMT(Maandelijkse_rente_percentage,(Loan_Years*12)-Pay_Num+1,Beg_Bal)),\"\",IF(Values_Entered,-PMT(Maandelijkse_rente_percentage,(Loan_Years*12)-Pay_Num+1,Beg_Bal),\"\"))","v":""},"",{"$error":"#VALUE!"},"",0,0]
["","","",{"$f":"IF(ISERROR(PMT(Maandelijkse_rente_percentage,(Loan_Years*12)-Pay_Num+1,Beg_Bal)),\"\",IF(Values_Entered,-PMT(Maandelijkse_rente_percentage,(Loan_Years*12)-Pay_Num+1,Beg_Bal),\"\"))","v":""},"",{"$error":"#VALUE!"},"",0,0]
["","","",{"$f":"IF(ISERROR(PMT(Maandelijkse_rente_percentage,(Loan_Years*12)-Pay_Num+1,Beg_Bal)),\"\",IF(Values_Entered,-PMT(Maandelijkse_rente_percentage,(Loan_Years*12)-Pay_Num+1,Beg_Bal),\"\"))","v":""},"",{"$error":"#VALUE!"},"",0,0]
["","","",{"$f":"IF(ISERROR(PMT(Maandelijkse_rente_percentage,(Loan_Years*12)-Pay_Num+1,Beg_Bal)),\"\",IF(Values_Entered,-PMT(Maandelijkse_rente_percentage,(Loan_Years*12)-Pay_Num+1,Beg_Bal),\"\"))","v":""},"",{"$error":"#VALUE!"},"",0,0]
["","","",{"$f":"IF(ISERROR(PMT(Maandelijkse_rente_percentage,(Loan_Years*12)-Pay_Num+1,Beg_Bal)),\"\",IF(Values_Entered,-PMT(Maandelijkse_rente_percentage,(Loan_Years*12)-Pay_Num+1,Beg_Bal),\"\"))","v":""},"",{"$error":"#VALUE!"},"",0,0]
["","","",{"$f":"IF(ISERROR(PMT(Maandelijkse_rente_percentage,(Loan_Years*12)-Pay_Num+1,Beg_Bal)),\"\",IF(Values_Entered,-PMT(Maandelijkse_rente_percentage,(Loan_Years*12)-Pay_Num+1,Beg_Bal),\"\"))","v":""},"",{"$error":"#VALUE!"},"",0,0]
["","","",{"$f":"IF(ISERROR(PMT(Maandelijkse_rente_percentage,(Loan_Years*12)-Pay_Num+1,Beg_Bal)),\"\",IF(Values_Entered,-PMT(Maandelijkse_rente_percentage,(Loan_Years*12)-Pay_Num+1,Beg_Bal),\"\"))","v":""},"",{"$error":"#VALUE!"},"",0,0]
["","","",{"$f":"IF(ISERROR(PMT(Maandelijkse_rente_percentage,(Loan_Years*12)-Pay_Num+1,Beg_Bal)),\"\",IF(Values_Entered,-PMT(Maandelijkse_rente_percentage,(Loan_Years*12)-Pay_Num+1,Beg_Bal),\"\"))","v":""},"",{"$error":"#VALUE!"},"",0,0]
["","","",{"$f":"IF(ISERROR(PMT(Maandelijkse_rente_percentage,(Loan_Years*12)-Pay_Num+1,Beg_Bal)),\"\",IF(Values_Entered,-PMT(Maandelijkse_rente_percentage,(Loan_Years*12)-Pay_Num+1,Beg_Bal),\"\"))","v":""},"",{"$error":"#VALUE!"},"",0,0]
["","","",{"$f":"IF(ISERROR(PMT(Maandelijkse_rente_percentage,(Loan_Years*12)-Pay_Num+1,Beg_Bal)),\"\",IF(Values_Entered,-PMT(Maandelijkse_rente_percentage,(Loan_Years*12)-Pay_Num+1,Beg_Bal),\"\"))","v":""},"",{"$error":"#VALUE!"},"",0,0]
["","","",{"$f":"IF(ISERROR(PMT(Maandelijkse_rente_percentage,(Loan_Years*12)-Pay_Num+1,Beg_Bal)),\"\",IF(Values_Entered,-PMT(Maandelijkse_rente_percentage,(Loan_Years*12)-Pay_Num+1,Beg_Bal),\"\"))","v":""},"",{"$error":"#VALUE!"},"",{"$f":"N11","v":0},0]
["","","",{"$f":"IF(ISERROR(PMT(Maandelijkse_rente_percentage,(Loan_Years*12)-Pay_Num+1,Beg_Bal)),\"\",IF(Values_Entered,-PMT(Maandelijkse_rente_percentage,(Loan_Years*12)-Pay_Num+1,Beg_Bal),\"\"))","v":""},"",{"$error":"#VALUE!"},"",0,0]
["","","",{"$f":"IF(ISERROR(PMT(Maandelijkse_rente_percentage,(Loan_Years*12)-Pay_Num+1,Beg_Bal)),\"\",IF(Values_Entered,-PMT(Maandelijkse_rente_percentage,(Loan_Years*12)-Pay_Num+1,Beg_Bal),\"\"))","v":""},"",{"$error":"#VALUE!"},"",0,0]
["","","",{"$f":"IF(ISERROR(PMT(Maandelijkse_rente_percentage,(Loan_Years*12)-Pay_Num+1,Beg_Bal)),\"\",IF(Values_Entered,-PMT(Maandelijkse_rente_percentage,(Loan_Years*12)-Pay_Num+1,Beg_Bal),\"\"))","v":""},"",{"$error":"#VALUE!"},"",0,0]
["","","",{"$f":"IF(ISERROR(PMT(Maandelijkse_rente_percentage,(Loan_Years*12)-Pay_Num+1,Beg_Bal)),\"\",IF(Values_Entered,-PMT(Maandelijkse_rente_percentage,(Loan_Years*12)-Pay_Num+1,Beg_Bal),\"\"))","v":""},"",{"$error":"#VALUE!"},"",0,0]
["","","",{"$f":"IF(ISERROR(PMT(Maandelijkse_rente_percentage,(Loan_Years*12)-Pay_Num+1,Beg_Bal)),\"\",IF(Values_Entered,-PMT(Maandelijkse_rente_percentage,(Loan_Years*12)-Pay_Num+1,Beg_Bal),\"\"))","v":""},"",{"$error":"#VALUE!"},"",0,0]
["","","",{"$f":"IF(ISERROR(PMT(Maandelijkse_rente_percentage,(Loan_Years*12)-Pay_Num+1,Beg_Bal)),\"\",IF(Values_Entered,-PMT(Maandelijkse_rente_percentage,(Loan_Years*12)-Pay_Num+1,Beg_Bal),\"\"))","v":""},"",{"$error":"#VALUE!"},"",0,0]
["","","",{"$f":"IF(ISERROR(PMT(Maandelijkse_rente_percentage,(Loan_Years*12)-Pay_Num+1,Beg_Bal)),\"\",IF(Values_Entered,-PMT(Maandelijkse_rente_percentage,(Loan_Years*12)-Pay_Num+1,Beg_Bal),\"\"))","v":""},"",{"$error":"#VALUE!"},"",0,0]
["","","",{"$f":"IF(ISERROR(PMT(Maandelijkse_rente_percentage,(Loan_Years*12)-Pay_Num+1,Beg_Bal)),\"\",IF(Values_Entered,-PMT(Maandelijkse_rente_percentage,(Loan_Years*12)-Pay_Num+1,Beg_Bal),\"\"))","v":""},"",{"$error":"#VALUE!"},"",0,0]
["","","",{"$f":"IF(ISERROR(PMT(Maandelijkse_rente_percentage,(Loan_Years*12)-Pay_Num+1,Beg_Bal)),\"\",IF(Values_Entered,-PMT(Maandelijkse_rente_percentage,(Loan_Years*12)-Pay_Num+1,Beg_Bal),\"\"))","v":""},"",{"$error":"#VALUE!"},"",0,0]
["","","",{"$f":"IF(ISERROR(PMT(Maandelijkse_rente_percentage,(Loan_Years*12)-Pay_Num+1,Beg_Bal)),\"\",IF(Values_Entered,-PMT(Maandelijkse_rente_percentage,(Loan_Years*12)-Pay_Num+1,Beg_Bal),\"\"))","v":""},"",{"$error":"#VALUE!"},"",0,0]
["","","",{"$f":"IF(ISERROR(PMT(Maandelijkse_rente_percentage,(Loan_Years*12)-Pay_Num+1,Beg_Bal)),\"\",IF(Values_Entered,-PMT(Maandelijkse_rente_percentage,(Loan_Years*12)-Pay_Num+1,Beg_Bal),\"\"))","v":""},"",{"$error":"#VALUE!"},"",0,0]
["","","",{"$f":"IF(ISERROR(PMT(Maandelijkse_rente_percentage,(Loan_Years*12)-Pay_Num+1,Beg_Bal)),\"\",IF(Values_Entered,-PMT(Maandelijkse_rente_percentage,(Loan_Years*12)-Pay_Num+1,Beg_Bal),\"\"))","v":""},"",{"$error":"#VALUE!"},"",{"$f":"N12","v":0},0]
["","","",{"$f":"IF(ISERROR(PMT(Maandelijkse_rente_percentage,(Loan_Years*12)-Pay_Num+1,Beg_Bal)),\"\",IF(Values_Entered,-PMT(Maandelijkse_rente_percentage,(Loan_Years*12)-Pay_Num+1,Beg_Bal),\"\"))","v":""},"",{"$error":"#VALUE!"},"",0,0]
["","","",{"$f":"IF(ISERROR(PMT(Maandelijkse_rente_percentage,(Loan_Years*12)-Pay_Num+1,Beg_Bal)),\"\",IF(Values_Entered,-PMT(Maandelijkse_rente_percentage,(Loan_Years*12)-Pay_Num+1,Beg_Bal),\"\"))","v":""},"",{"$error":"#VALUE!"},"",0,0]
["","","",{"$f":"IF(ISERROR(PMT(Maandelijkse_rente_percentage,(Loan_Years*12)-Pay_Num+1,Beg_Bal)),\"\",IF(Values_Entered,-PMT(Maandelijkse_rente_percentage,(Loan_Years*12)-Pay_Num+1,Beg_Bal),\"\"))","v":""},"",{"$error":"#VALUE!"},"",0,0]
["","","",{"$f":"IF(ISERROR(PMT(Maandelijkse_rente_percentage,(Loan_Years*12)-Pay_Num+1,Beg_Bal)),\"\",IF(Values_Entered,-PMT(Maandelijkse_rente_percentage,(Loan_Years*12)-Pay_Num+1,Beg_Bal),\"\"))","v":""},"",{"$error":"#VALUE!"},"",0,0]
["","","",{"$f":"IF(ISERROR(PMT(Maandelijkse_rente_percentage,(Loan_Years*12)-Pay_Num+1,Beg_Bal)),\"\",IF(Values_Entered,-PMT(Maandelijkse_rente_percentage,(Loan_Years*12)-Pay_Num+1,Beg_Bal),\"\"))","v":""},"",{"$error":"#VALUE!"},"",0,0]
["","","",{"$f":"IF(ISERROR(PMT(Maandelijkse_rente_percentage,(Loan_Years*12)-Pay_Num+1,Beg_Bal)),\"\",IF(Values_Entered,-PMT(Maandelijkse_rente_percentage,(Loan_Years*12)-Pay_Num+1,Beg_Bal),\"\"))","v":""},"",{"$error":"#VALUE!"},"",0,0]
["","","",{"$f":"IF(ISERROR(PMT(Maandelijkse_rente_percentage,(Loan_Years*12)-Pay_Num+1,Beg_Bal)),\"\",IF(Values_Entered,-PMT(Maandelijkse_rente_percentage,(Loan_Years*12)-Pay_Num+1,Beg_Bal),\"\"))","v":""},"",{"$error":"#VALUE!"},"",0,0]
["","","",{"$f":"IF(ISERROR(PMT(Maandelijkse_rente_percentage,(Loan_Years*12)-Pay_Num+1,Beg_Bal)),\"\",IF(Values_Entered,-PMT(Maandelijkse_rente_percentage,(Loan_Years*12)-Pay_Num+1,Beg_Bal),\"\"))","v":""},"",{"$error":"#VALUE!"},"",0,0]
["","","",{"$f":"IF(ISERROR(PMT(Maandelijkse_rente_percentage,(Loan_Years*12)-Pay_Num+1,Beg_Bal)),\"\",IF(Values_Entered,-PMT(Maandelijkse_rente_percentage,(Loan_Years*12)-Pay_Num+1,Beg_Bal),\"\"))","v":""},"",{"$error":"#VALUE!"},"",0,0]
["","","",{"$f":"IF(ISERROR(PMT(Maandelijkse_rente_percentage,(Loan_Years*12)-Pay_Num+1,Beg_Bal)),\"\",IF(Values_Entered,-PMT(Maandelijkse_rente_percentage,(Loan_Years*12)-Pay_Num+1,Beg_Bal),\"\"))","v":""},"",{"$error":"#VALUE!"},"",0,0]
["","","",{"$f":"IF(ISERROR(PMT(Maandelijkse_rente_percentage,(Loan_Years*12)-Pay_Num+1,Beg_Bal)),\"\",IF(Values_Entered,-PMT(Maandelijkse_rente_percentage,(Loan_Years*12)-Pay_Num+1,Beg_Bal),\"\"))","v":""},"",{"$error":"#VALUE!"},"",0,0]
["","","",{"$f":"IF(ISERROR(PMT(Maandelijkse_rente_percentage,(Loan_Years*12)-Pay_Num+1,Beg_Bal)),\"\",IF(Values_Entered,-PMT(Maandelijkse_rente_percentage,(Loan_Years*12)-Pay_Num+1,Beg_Bal),\"\"))","v":""},"",{"$error":"#VALUE!"},"",{"$f":"N13","v":0},0]
["","","",{"$f":"IF(ISERROR(PMT(Maandelijkse_rente_percentage,(Loan_Years*12)-Pay_Num+1,Beg_Bal)),\"\",IF(Values_Entered,-PMT(Maandelijkse_rente_percentage,(Loan_Years*12)-Pay_Num+1,Beg_Bal),\"\"))","v":""},"",{"$error":"#VALUE!"},"",0,0]
["","","",{"$f":"IF(ISERROR(PMT(Maandelijkse_rente_percentage,(Loan_Years*12)-Pay_Num+1,Beg_Bal)),\"\",IF(Values_Entered,-PMT(Maandelijkse_rente_percentage,(Loan_Years*12)-Pay_Num+1,Beg_Bal),\"\"))","v":""},"",{"$error":"#VALUE!"},"",0,0]
["","","",{"$f":"IF(ISERROR(PMT(Maandelijkse_rente_percentage,(Loan_Years*12)-Pay_Num+1,Beg_Bal)),\"\",IF(Values_Entered,-PMT(Maandelijkse_rente_percentage,(Loan_Years*12)-Pay_Num+1,Beg_Bal),\"\"))","v":""},"",{"$error":"#VALUE!"},"",0,0]
["","","",{"$f":"IF(ISERROR(PMT(Maandelijkse_rente_percentage,(Loan_Years*12)-Pay_Num+1,Beg_Bal)),\"\",IF(Values_Entered,-PMT(Maandelijkse_rente_percentage,(Loan_Years*12)-Pay_Num+1,Beg_Bal),\"\"))","v":""},"",{"$error":"#VALUE!"},"",0,0]
["","","",{"$f":"IF(ISERROR(PMT(Maandelijkse_rente_percentage,(Loan_Years*12)-Pay_Num+1,Beg_Bal)),\"\",IF(Values_Entered,-PMT(Maandelijkse_rente_percentage,(Loan_Years*12)-Pay_Num+1,Beg_Bal),\"\"))","v":""},"",{"$error":"#VALUE!"},"",0,0]
["","","",{"$f":"IF(ISERROR(PMT(Maandelijkse_rente_percentage,(Loan_Years*12)-Pay_Num+1,Beg_Bal)),\"\",IF(Values_Entered,-PMT(Maandelijkse_rente_percentage,(Loan_Years*12)-Pay_Num+1,Beg_Bal),\"\"))","v":""},"",{"$error":"#VALUE!"},"",0,0]
["","","",{"$f":"IF(ISERROR(PMT(Maandelijkse_rente_percentage,(Loan_Years*12)-Pay_Num+1,Beg_Bal)),\"\",IF(Values_Entered,-PMT(Maandelijkse_rente_percentage,(Loan_Years*12)-Pay_Num+1,Beg_Bal),\"\"))","v":""},"",{"$error":"#VALUE!"},"",0,0]
["","","",{"$f":"IF(ISERROR(PMT(Maandelijkse_rente_percentage,(Loan_Years*12)-Pay_Num+1,Beg_Bal)),\"\",IF(Values_Entered,-PMT(Maandelijkse_rente_percentage,(Loan_Years*12)-Pay_Num+1,Beg_Bal),\"\"))","v":""},"",{"$error":"#VALUE!"},"",0,0]
["","","",{"$f":"IF(ISERROR(PMT(Maandelijkse_rente_percentage,(Loan_Years*12)-Pay_Num+1,Beg_Bal)),\"\",IF(Values_Entered,-PMT(Maandelijkse_rente_percentage,(Loan_Years*12)-Pay_Num+1,Beg_Bal),\"\"))","v":""},"",{"$error":"#VALUE!"},"",0,0]
["","","",{"$f":"IF(ISERROR(PMT(Maandelijkse_rente_percentage,(Loan_Years*12)-Pay_Num+1,Beg_Bal)),\"\",IF(Values_Entered,-PMT(Maandelijkse_rente_percentage,(Loan_Years*12)-Pay_Num+1,Beg_Bal),\"\"))","v":""},"",{"$error":"#VALUE!"},"",0,0]
["","","",{"$f":"IF(ISERROR(PMT(Maandelijkse_rente_percentage,(Loan_Years*12)-Pay_Num+1,Beg_Bal)),\"\",IF(Values_Entered,-PMT(Maandelijkse_rente_percentage,(Loan_Years*12)-Pay_Num+1,Beg_Bal),\"\"))","v":""},"",{"$error":"#VALUE!"},"",0,0]
["","","",{"$f":"IF(ISERROR(PMT(Maandelijkse_rente_percentage,(Loan_Years*12)-Pay_Num+1,Beg_Bal)),\"\",IF(Values_Entered,-PMT(Maandelijkse_rente_percentage,(Loan_Years*12)-Pay_Num+1,Beg_Bal),\"\"))","v":""},"",{"$error":"#VALUE!"},"",{"$f":"N14","v":0},0]
["","","",{"$f":"IF(ISERROR(PMT(Maandelijkse_rente_percentage,(Loan_Years*12)-Pay_Num+1,Beg_Bal)),\"\",IF(Values_Entered,-PMT(Maandelijkse_rente_percentage,(Loan_Years*12)-Pay_Num+1,Beg_Bal),\"\"))","v":""},"",{"$error":"#VALUE!"},"",0,0]
["","","",{"$f":"IF(ISERROR(PMT(Maandelijkse_rente_percentage,(Loan_Years*12)-Pay_Num+1,Beg_Bal)),\"\",IF(Values_Entered,-PMT(Maandelijkse_rente_percentage,(Loan_Years*12)-Pay_Num+1,Beg_Bal),\"\"))","v":""},"",{"$error":"#VALUE!"},"",0,0]
["","","",{"$f":"IF(ISERROR(PMT(Maandelijkse_rente_percentage,(Loan_Years*12)-Pay_Num+1,Beg_Bal)),\"\",IF(Values_Entered,-PMT(Maandelijkse_rente_percentage,(Loan_Years*12)-Pay_Num+1,Beg_Bal),\"\"))","v":""},"",{"$error":"#VALUE!"},"",0,0]
["","","",{"$f":"IF(ISERROR(PMT(Maandelijkse_rente_percentage,(Loan_Years*12)-Pay_Num+1,Beg_Bal)),\"\",IF(Values_Entered,-PMT(Maandelijkse_rente_percentage,(Loan_Years*12)-Pay_Num+1,Beg_Bal),\"\"))","v":""},"",{"$error":"#VALUE!"},"",0,0]
["","","",{"$f":"IF(ISERROR(PMT(Maandelijkse_rente_percentage,(Loan_Years*12)-Pay_Num+1,Beg_Bal)),\"\",IF(Values_Entered,-PMT(Maandelijkse_rente_percentage,(Loan_Years*12)-Pay_Num+1,Beg_Bal),\"\"))","v":""},"",{"$error":"#VALUE!"},"",{"$f":"H335","v":0},0]
["","","",{"$f":"IF(ISERROR(PMT(Maandelijkse_rente_percentage,(Loan_Years*12)-Pay_Num+1,Beg_Bal)),\"\",IF(Values_Entered,-PMT(Maandelijkse_rente_percentage,(Loan_Years*12)-Pay_Num+1,Beg_Bal),\"\"))","v":""},"",{"$error":"#VALUE!"},"",0,0]
["","","",{"$f":"IF(ISERROR(PMT(Maandelijkse_rente_percentage,(Loan_Years*12)-Pay_Num+1,Beg_Bal)),\"\",IF(Values_Entered,-PMT(Maandelijkse_rente_percentage,(Loan_Years*12)-Pay_Num+1,Beg_Bal),\"\"))","v":""},"",{"$error":"#VALUE!"},"",0,0]
["","","",{"$f":"IF(ISERROR(PMT(Maandelijkse_rente_percentage,(Loan_Years*12)-Pay_Num+1,Beg_Bal)),\"\",IF(Values_Entered,-PMT(Maandelijkse_rente_percentage,(Loan_Years*12)-Pay_Num+1,Beg_Bal),\"\"))","v":""},{"$f":"IF(Pay_Num<>\"\",Maandelijkse_aflossing-Int,\"\")","v":""},{"$f":"Beg_Bal*Maandelijkse_rente_percentage","v":{"$error":"#VALUE!"}},"",0,{"$f":"((1+Jaarlijk_rente_percentage)^(1/12))-1","v":0}]
[{"$f":"IF(Values_Entered,A339+1,\"\")","v":""},{"$f":"IF(Pay_Num<>\"\",DATE(YEAR(B339),MONTH(B339)+1,DAY(B339)),\"\")","v":""},"",{"$f":"IF(ISERROR(PMT(Maandelijkse_rente_percentage,(Loan_Years*12)-Pay_Num+1,Beg_Bal)),\"\",IF(Values_Entered,-PMT(Maandelijkse_rente_percentage,(Loan_Years*12)-Pay_Num+1,Beg_Bal),\"\"))","v":""},"",{"$error":"#VALUE!"},{"$f":"IF(Pay_Num<>\"\",Beg_Bal-Princ,\"\")","v":""},0,0]
["","",{"$f":"IF(Pay_Num<>\"\",G340,\"\")","v":""},{"$f":"IF(ISERROR(PMT(Maandelijkse_rente_percentage,(Loan_Years*12)-Pay_Num+1,Beg_Bal)),\"\",IF(Values_Entered,-PMT(Maandelijkse_rente_percentage,(Loan_Years*12)-Pay_Num+1,Beg_Bal),\"\"))","v":""},"",{"$error":"#VALUE!"},"",0,0]
["","","",{"$f":"IF(ISERROR(PMT(Maandelijkse_rente_percentage,(Loan_Years*12)-Pay_Num+1,Beg_Bal)),\"\",IF(Values_Entered,-PMT(Maandelijkse_rente_percentage,(Loan_Years*12)-Pay_Num+1,Beg_Bal),\"\"))","v":""},"",{"$error":"#VALUE!"},"",0,0]
["","","",{"$f":"IF(ISERROR(PMT(Maandelijkse_rente_percentage,(Loan_Years*12)-Pay_Num+1,Beg_Bal)),\"\",IF(Values_Entered,-PMT(Maandelijkse_rente_percentage,(Loan_Years*12)-Pay_Num+1,Beg_Bal),\"\"))","v":""},"",{"$error":"#VALUE!"},"",{"$f":"N15","v":0},0]
["","","",{"$f":"IF(ISERROR(PMT(Maandelijkse_rente_percentage,(Loan_Years*12)-Pay_Num+1,Beg_Bal)),\"\",IF(Values_Entered,-PMT(Maandelijkse_rente_percentage,(Loan_Years*12)-Pay_Num+1,Beg_Bal),\"\"))","v":""},"",{"$error":"#VALUE!"},"",0,0]
["","","",{"$f":"IF(ISERROR(PMT(Maandelijkse_rente_percentage,(Loan_Years*12)-Pay_Num+1,Beg_Bal)),\"\",IF(Values_Entered,-PMT(Maandelijkse_rente_percentage,(Loan_Years*12)-Pay_Num+1,Beg_Bal),\"\"))","v":""},"",{"$error":"#VALUE!"},"",0,0]
["","","",{"$f":"IF(ISERROR(PMT(Maandelijkse_rente_percentage,(Loan_Years*12)-Pay_Num+1,Beg_Bal)),\"\",IF(Values_Entered,-PMT(Maandelijkse_rente_percentage,(Loan_Years*12)-Pay_Num+1,Beg_Bal),\"\"))","v":""},"",{"$error":"#VALUE!"},"",0,0]
["","","",{"$f":"IF(ISERROR(PMT(Maandelijkse_rente_percentage,(Loan_Years*12)-Pay_Num+1,Beg_Bal)),\"\",IF(Values_Entered,-PMT(Maandelijkse_rente_percentage,(Loan_Years*12)-Pay_Num+1,Beg_Bal),\"\"))","v":""},"",{"$error":"#VALUE!"},"",0,0]
["","","",{"$f":"IF(ISERROR(PMT(Maandelijkse_rente_percentage,(Loan_Years*12)-Pay_Num+1,Beg_Bal)),\"\",IF(Values_Entered,-PMT(Maandelijkse_rente_percentage,(Loan_Years*12)-Pay_Num+1,Beg_Bal),\"\"))","v":""},"",{"$error":"#VALUE!"},"",0,0]
["","","",{"$f":"IF(ISERROR(PMT(Maandelijkse_rente_percentage,(Loan_Years*12)-Pay_Num+1,Beg_Bal)),\"\",IF(Values_Entered,-PMT(Maandelijkse_rente_percentage,(Loan_Years*12)-Pay_Num+1,Beg_Bal),\"\"))","v":""},"",{"$error":"#VALUE!"},"",0,0]
["","","",{"$f":"IF(ISERROR(PMT(Maandelijkse_rente_percentage,(Loan_Years*12)-Pay_Num+1,Beg_Bal)),\"\",IF(Values_Entered,-PMT(Maandelijkse_rente_percentage,(Loan_Years*12)-Pay_Num+1,Beg_Bal),\"\"))","v":""},"",{"$error":"#VALUE!"},"",0,0]
["","","",{"$f":"IF(ISERROR(PMT(Maandelijkse_rente_percentage,(Loan_Years*12)-Pay_Num+1,Beg_Bal)),\"\",IF(Values_Entered,-PMT(Maandelijkse_rente_percentage,(Loan_Years*12)-Pay_Num+1,Beg_Bal),\"\"))","v":""},"",{"$error":"#VALUE!"},"",0,0]
["","","",{"$f":"IF(ISERROR(PMT(Maandelijkse_rente_percentage,(Loan_Years*12)-Pay_Num+1,Beg_Bal)),\"\",IF(Values_Entered,-PMT(Maandelijkse_rente_percentage,(Loan_Years*12)-Pay_Num+1,Beg_Bal),\"\"))","v":""},"",{"$error":"#VALUE!"},"",0,0]
["","","",{"$f":"IF(ISERROR(PMT(Maandelijkse_rente_percentage,(Loan_Years*12)-Pay_Num+1,Beg_Bal)),\"\",IF(Values_Entered,-PMT(Maandelijkse_rente_percentage,(Loan_Years*12)-Pay_Num+1,Beg_Bal),\"\"))","v":""},"",{"$error":"#VALUE!"},"",0,0]
["","","",{"$f":"IF(ISERROR(PMT(Maandelijkse_rente_percentage,(Loan_Years*12)-Pay_Num+1,Beg_Bal)),\"\",IF(Values_Entered,-PMT(Maandelijkse_rente_percentage,(Loan_Years*12)-Pay_Num+1,Beg_Bal),\"\"))","v":""},"",{"$error":"#VALUE!"},"",0,0]
["","","",{"$f":"IF(ISERROR(PMT(Maandelijkse_rente_percentage,(Loan_Years*12)-Pay_Num+1,Beg_Bal)),\"\",IF(Values_Entered,-PMT(Maandelijkse_rente_percentage,(Loan_Years*12)-Pay_Num+1,Beg_Bal),\"\"))","v":""},"",{"$error":"#VALUE!"},"",{"$f":"N16","v":0},0]
["","","",{"$f":"IF(ISERROR(PMT(Maandelijkse_rente_percentage,(Loan_Years*12)-Pay_Num+1,Beg_Bal)),\"\",IF(Values_Entered,-PMT(Maandelijkse_rente_percentage,(Loan_Years*12)-Pay_Num+1,Beg_Bal),\"\"))","v":""},"",{"$error":"#VALUE!"},"",0,0]
["","","",{"$f":"IF(ISERROR(PMT(Maandelijkse_rente_percentage,(Loan_Years*12)-Pay_Num+1,Beg_Bal)),\"\",IF(Values_Entered,-PMT(Maandelijkse_rente_percentage,(Loan_Years*12)-Pay_Num+1,Beg_Bal),\"\"))","v":""},"",{"$error":"#VALUE!"},"",0,0]
["","","",{"$f":"IF(ISERROR(PMT(Maandelijkse_rente_percentage,(Loan_Years*12)-Pay_Num+1,Beg_Bal)),\"\",IF(Values_Entered,-PMT(Maandelijkse_rente_percentage,(Loan_Years*12)-Pay_Num+1,Beg_Bal),\"\"))","v":""},"",{"$error":"#VALUE!"},"",0,0]
["","","",{"$f":"IF(ISERROR(PMT(Maandelijkse_rente_percentage,(Loan_Years*12)-Pay_Num+1,Beg_Bal)),\"\",IF(Values_Entered,-PMT(Maandelijkse_rente_percentage,(Loan_Years*12)-Pay_Num+1,Beg_Bal),\"\"))","v":""},"",{"$error":"#VALUE!"},"",0,0]
["","","",{"$f":"IF(ISERROR(PMT(Maandelijkse_rente_percentage,(Loan_Years*12)-Pay_Num+1,Beg_Bal)),\"\",IF(Values_Entered,-PMT(Maandelijkse_rente_percentage,(Loan_Years*12)-Pay_Num+1,Beg_Bal),\"\"))","v":""},"",{"$error":"#VALUE!"},"",0,0]
["","","",{"$f":"IF(ISERROR(PMT(Maandelijkse_rente_percentage,(Loan_Years*12)-Pay_Num+1,Beg_Bal)),\"\",IF(Values_Entered,-PMT(Maandelijkse_rente_percentage,(Loan_Years*12)-Pay_Num+1,Beg_Bal),\"\"))","v":""},"",{"$error":"#VALUE!"},"",0,0]
["","","",{"$f":"IF(ISERROR(PMT(Maandelijkse_rente_percentage,(Loan_Years*12)-Pay_Num+1,Beg_Bal)),\"\",IF(Values_Entered,-PMT(Maandelijkse_rente_percentage,(Loan_Years*12)-Pay_Num+1,Beg_Bal),\"\"))","v":""},"",{"$error":"#VALUE!"},"",0,0]
["","","",{"$f":"IF(ISERROR(PMT(Maandelijkse_rente_percentage,(Loan_Years*12)-Pay_Num+1,Beg_Bal)),\"\",IF(Values_Entered,-PMT(Maandelijkse_rente_percentage,(Loan_Years*12)-Pay_Num+1,Beg_Bal),\"\"))","v":""},"",{"$error":"#VALUE!"},"",0,0]
["","","",{"$f":"IF(ISERROR(PMT(Maandelijkse_rente_percentage,(Loan_Years*12)-Pay_Num+1,Beg_Bal)),\"\",IF(Values_Entered,-PMT(Maandelijkse_rente_percentage,(Loan_Years*12)-Pay_Num+1,Beg_Bal),\"\"))","v":""},"",{"$error":"#VALUE!"},"",0,0]
["","","",{"$f":"IF(ISERROR(PMT(Maandelijkse_rente_percentage,(Loan_Years*12)-Pay_Num+1,Beg_Bal)),\"\",IF(Values_Entered,-PMT(Maandelijkse_rente_percentage,(Loan_Years*12)-Pay_Num+1,Beg_Bal),\"\"))","v":""},"",{"$error":"#VALUE!"},"",0,0]
["","","",{"$f":"IF(ISERROR(PMT(Maandelijkse_rente_percentage,(Loan_Years*12)-Pay_Num+1,Beg_Bal)),\"\",IF(Values_Entered,-PMT(Maandelijkse_rente_percentage,(Loan_Years*12)-Pay_Num+1,Beg_Bal),\"\"))","v":""},"",{"$error":"#VALUE!"},"",0,0]
["","","",{"$f":"IF(ISERROR(PMT(Maandelijkse_rente_percentage,(Loan_Years*12)-Pay_Num+1,Beg_Bal)),\"\",IF(Values_Entered,-PMT(Maandelijkse_rente_percentage,(Loan_Years*12)-Pay_Num+1,Beg_Bal),\"\"))","v":""},"",{"$error":"#VALUE!"},"",{"$f":"N17","v":0},0]
["","","",{"$f":"IF(ISERROR(PMT(Maandelijkse_rente_percentage,(Loan_Years*12)-Pay_Num+1,Beg_Bal)),\"\",IF(Values_Entered,-PMT(Maandelijkse_rente_percentage,(Loan_Years*12)-Pay_Num+1,Beg_Bal),\"\"))","v":""},"",{"$error":"#VALUE!"},"",0,0]
["","","",{"$f":"IF(ISERROR(PMT(Maandelijkse_rente_percentage,(Loan_Years*12)-Pay_Num+1,Beg_Bal)),\"\",IF(Values_Entered,-PMT(Maandelijkse_rente_percentage,(Loan_Years*12)-Pay_Num+1,Beg_Bal),\"\"))","v":""},"",{"$error":"#VALUE!"},"",0,0]
["","","",{"$f":"IF(ISERROR(PMT(Maandelijkse_rente_percentage,(Loan_Years*12)-Pay_Num+1,Beg_Bal)),\"\",IF(Values_Entered,-PMT(Maandelijkse_rente_percentage,(Loan_Years*12)-Pay_Num+1,Beg_Bal),\"\"))","v":""},"",{"$error":"#VALUE!"},"",0,0]
["","","",{"$f":"IF(ISERROR(PMT(Maandelijkse_rente_percentage,(Loan_Years*12)-Pay_Num+1,Beg_Bal)),\"\",IF(Values_Entered,-PMT(Maandelijkse_rente_percentage,(Loan_Years*12)-Pay_Num+1,Beg_Bal),\"\"))","v":""},"",{"$error":"#VALUE!"},"",0,0]
["","","",{"$f":"IF(ISERROR(PMT(Maandelijkse_rente_percentage,(Loan_Years*12)-Pay_Num+1,Beg_Bal)),\"\",IF(Values_Entered,-PMT(Maandelijkse_rente_percentage,(Loan_Years*12)-Pay_Num+1,Beg_Bal),\"\"))","v":""},"",{"$error":"#VALUE!"},"",0,0]
["","","",{"$f":"IF(ISERROR(PMT(Maandelijkse_rente_percentage,(Loan_Years*12)-Pay_Num+1,Beg_Bal)),\"\",IF(Values_Entered,-PMT(Maandelijkse_rente_percentage,(Loan_Years*12)-Pay_Num+1,Beg_Bal),\"\"))","v":""},"",{"$error":"#VALUE!"},"",0,0]
["","","",{"$f":"IF(ISERROR(PMT(Maandelijkse_rente_percentage,(Loan_Years*12)-Pay_Num+1,Beg_Bal)),\"\",IF(Values_Entered,-PMT(Maandelijkse_rente_percentage,(Loan_Years*12)-Pay_Num+1,Beg_Bal),\"\"))","v":""},"",{"$error":"#VALUE!"},"",0,0]
["","","",{"$f":"IF(ISERROR(PMT(Maandelijkse_rente_percentage,(Loan_Years*12)-Pay_Num+1,Beg_Bal)),\"\",IF(Values_Entered,-PMT(Maandelijkse_rente_percentage,(Loan_Years*12)-Pay_Num+1,Beg_Bal),\"\"))","v":""},"",{"$error":"#VALUE!"},"",0,0]
["","","",{"$f":"IF(ISERROR(PMT(Maandelijkse_rente_percentage,(Loan_Years*12)-Pay_Num+1,Beg_Bal)),\"\",IF(Values_Entered,-PMT(Maandelijkse_rente_percentage,(Loan_Years*12)-Pay_Num+1,Beg_Bal),\"\"))","v":""},"",{"$error":"#VALUE!"},"",0,0]
["","","",{"$f":"IF(ISERROR(PMT(Maandelijkse_rente_percentage,(Loan_Years*12)-Pay_Num+1,Beg_Bal)),\"\",IF(Values_Entered,-PMT(Maandelijkse_rente_percentage,(Loan_Years*12)-Pay_Num+1,Beg_Bal),\"\"))","v":""},"",{"$error":"#VALUE!"},"",0,0]
["","","",{"$f":"IF(ISERROR(PMT(Maandelijkse_rente_percentage,(Loan_Years*12)-Pay_Num+1,Beg_Bal)),\"\",IF(Values_Entered,-PMT(Maandelijkse_rente_percentage,(Loan_Years*12)-Pay_Num+1,Beg_Bal),\"\"))","v":""},"",{"$error":"#VALUE!"},"",0,0]